date,department/service,beneficiary,amount,summary of purpose,category,transaction number,SAP vendor number,
01.11.2020,COMMUNITIES,FALCON POINT MANAGEMENT GROUP LTD,"51,096.00",FALCON POINT TMO,M&M ALLOWANCE CO-OPS,5902439827,11117573,
01.11.2020,ENVIRONMENT DIRECTORATE,TMS CONSULTANCY,620.00,SECTION 278 & 38,TRAINING,5902439831,1000045824,
01.11.2020,HOUSING HRA,AIREY MILLER LIMITED,"1,590.00",CAPITAL PS (HRA),CONSTRUCTION FEES - EMPLOYERS AGENT,5902440589,1000085476,
01.11.2020,HOUSING HRA,AIREY MILLER LIMITED,"1,590.00",CAPITAL PS (HRA),CONSTRUCTION FEES - EMPLOYERS AGENT,5902440592,1000085476,
01.11.2020,HOUSING HRA,AIREY MILLER LIMITED,"1,590.00",CAPITAL PS (HRA),CONSTRUCTION FEES - EMPLOYERS AGENT,5902440593,1000085476,
01.11.2020,HOUSING HRA,C&C BUILDERS LTD,"8,960.95",CAPITAL PS (HRA),CONST'N MAIN CONTRACT - NON CERTIFICATED,2103166161,3000001986,
01.11.2020,MODERNISATION HGF,THE KNOWLEDGE ACADEMY LTD,"1,435.00",IT MANAGEMENT,TRAINING,5902439980,1000064533,
01.11.2020,MODERNISATION HGF,CAPITA SECURE INFORMATION,"22,349.03",IT MANAGEMENT,COMMS & COMPUTING CONTRACT CHARGES,5902440342,1000070739,
02.11.2020,ASSET MANAGEMENT,GC CONSTRUCT LTD,"39,480.00",DIRECTOR OF ASSET MANAGEMENT,OTHER R&M,5902440518,1000082102,
02.11.2020,CHIEF EXECUTIVE'S OFFICE,THE BLUE BERMONDSEY BID CO LTD,"2,000.00",BUSINESS SUPPORT,GRANTS,5902440021,1000074877,
02.11.2020,ENVIRONMENT AND LEISURE,F M CONWAY LTD,"202,584.62",CAPITAL PS (LEISURE),CONSTRUCTION,2103165333,4001384,
02.11.2020,ENVIRONMENT DIRECTORATE,ACTIVATE LEARNING,700.00,NON HOUSING GROUNDS,TRAINING,5902440352,1000034972,
02.11.2020,HOUSING HRA,BSW HEATING LTD,"310,467.30",CAPITAL PS (HRA),CONSTRUCTION MAIN CONTRACT -CERTIFICATED,2103165914,3000000580,
02.11.2020,HOUSING HRA,BSW HEATING LTD,"363,208.72",CAPITAL PS (HRA),CONSTRUCTION MAIN CONTRACT -CERTIFICATED,2103165911,3000000580,
02.11.2020,LEISURE DIRECTORATE,WESTMINSTER HOUSE YOUTH CLUB,"7,740.00",GRANTS COMMISSIONING,GRANTS,5902439983,11088645,
03.11.2020,ADULT SOCIAL CARE,BOWLING & CO SOLICITORS,"2,534.03",APPOINTEESHIPS,OTHER PAYMENTS FOR CLIENTS,5902440728,1000085824,
03.11.2020,ADULT SOCIAL CARE,CHOICE SUPPORT,293.92,LD LTS 18-64,SUPPORTED LIVING,2103166421,1104183,
03.11.2020,ADULT SOCIAL CARE,CHOICE SUPPORT,293.92,LD LTS 18-64,SUPPORTED LIVING,2103166422,1104183,
03.11.2020,ADULT SOCIAL CARE,CHOICE SUPPORT,293.92,LD LTS 18-64,SUPPORTED LIVING,2103166424,1104183,
03.11.2020,ADULT SOCIAL CARE,CHOICE SUPPORT,293.92,LD LTS 18-64,SUPPORTED LIVING,2103166453,1104183,
03.11.2020,ADULT SOCIAL CARE,CHOICE SUPPORT,293.92,LD LTS 18-64,SUPPORTED LIVING,2103166456,1104183,
03.11.2020,ADULT SOCIAL CARE,CHOICE SUPPORT,293.92,LD LTS 18-64,SUPPORTED LIVING,2103166458,1104183,
03.11.2020,ADULT SOCIAL CARE,CHOICE SUPPORT,293.92,LD LTS 18-64,SUPPORTED LIVING,2103166461,1104183,
03.11.2020,ADULT SOCIAL CARE,CHOICE SUPPORT,293.92,LD LTS 18-64,SUPPORTED LIVING,2103166466,1104183,
03.11.2020,ADULT SOCIAL CARE,CHOICE SUPPORT,367.40,LD LTS 18-64,SUPPORTED LIVING,2103166413,1104183,
03.11.2020,ADULT SOCIAL CARE,CHOICE SUPPORT,367.40,LD LTS 18-64,SUPPORTED LIVING,2103166425,1104183,
03.11.2020,ADULT SOCIAL CARE,CHOICE SUPPORT,367.40,LD LTS 18-64,SUPPORTED LIVING,2103166426,1104183,
03.11.2020,ADULT SOCIAL CARE,CHOICE SUPPORT,367.40,LD LTS 18-64,SUPPORTED LIVING,2103166427,1104183,
03.11.2020,ADULT SOCIAL CARE,CHOICE SUPPORT,367.40,LD LTS 18-64,SUPPORTED LIVING,2103166434,1104183,
03.11.2020,ADULT SOCIAL CARE,CHOICE SUPPORT,367.40,LD LTS 18-64,SUPPORTED LIVING,2103166435,1104183,
03.11.2020,ADULT SOCIAL CARE,CHOICE SUPPORT,367.40,LD LTS 18-64,SUPPORTED LIVING,2103166437,1104183,
03.11.2020,ADULT SOCIAL CARE,CHOICE SUPPORT,367.40,LD LTS 18-64,SUPPORTED LIVING,2103166441,1104183,
03.11.2020,ADULT SOCIAL CARE,CHOICE SUPPORT,367.40,LD LTS 18-64,SUPPORTED LIVING,2103166446,1104183,
03.11.2020,ADULT SOCIAL CARE,CHOICE SUPPORT,367.40,LD LTS 18-64,SUPPORTED LIVING,2103166450,1104183,
03.11.2020,ADULT SOCIAL CARE,CHOICE SUPPORT,367.40,LD LTS 18-64,SUPPORTED LIVING,2103166454,1104183,
03.11.2020,ADULT SOCIAL CARE,CHOICE SUPPORT,367.40,LD LTS 18-64,SUPPORTED LIVING,2103166470,1104183,
03.11.2020,ADULT SOCIAL CARE,CHOICE SUPPORT,367.40,LD LTS 18-64,SUPPORTED LIVING,2103166471,1104183,
03.11.2020,ADULT SOCIAL CARE,CHOICE SUPPORT,440.88,LD LTS 18-64,SUPPORTED LIVING,2103166438,1104183,
03.11.2020,ADULT SOCIAL CARE,CHOICE SUPPORT,514.36,LD LTS 18-64,SUPPORTED LIVING,2103166460,1104183,
03.11.2020,ADULT SOCIAL CARE,CHOICE SUPPORT,514.36,LD LTS 18-64,SUPPORTED LIVING,2103166467,1104183,
03.11.2020,ADULT SOCIAL CARE,CHOICE SUPPORT,661.32,LD LTS 18-64,SUPPORTED LIVING,2103166419,1104183,
03.11.2020,ADULT SOCIAL CARE,CHOICE SUPPORT,661.32,LD LTS 18-64,SUPPORTED LIVING,2103166428,1104183,
03.11.2020,ADULT SOCIAL CARE,CHOICE SUPPORT,734.80,LD LTS 18-64,SUPPORTED LIVING,2103166455,1104183,
03.11.2020,ADULT SOCIAL CARE,CHOICE SUPPORT,"1,543.08",LD LTS 18-64,SUPPORTED LIVING,2103166429,1104183,
03.11.2020,ADULT SOCIAL CARE,CARE O LINE,"1,805.67",LD LTS 18-64,SUPPORTED LIVING,2103166442,11241743,
03.11.2020,ADULT SOCIAL CARE,CARE O LINE,"1,842.51",LD LTS 18-64,SUPPORTED LIVING,2103166473,11241743,
03.11.2020,ADULT SOCIAL CARE,CARE O LINE,"1,849.12",LD LTS 18-64,SUPPORTED LIVING,2103166462,11241743,
03.11.2020,ADULT SOCIAL CARE,CONTACT PROFESSIONALS,465.00,LD LTS 18-64,SUPPORTED LIVING,2103166468,1000057263,
03.11.2020,ADULT SOCIAL CARE,CONTACT PROFESSIONALS,465.00,LD LTS 18-64,SUPPORTED LIVING,2103166469,1000057263,
03.11.2020,ADULT SOCIAL CARE,CONTACT PROFESSIONALS,684.00,LD LTS 18-64,SUPPORTED LIVING,2103166420,1000057263,
03.11.2020,ADULT SOCIAL CARE,CONTACT PROFESSIONALS,684.00,LD LTS 18-64,SUPPORTED LIVING,2103166423,1000057263,
03.11.2020,ADULT SOCIAL CARE,CONTACT PROFESSIONALS,912.00,LD LTS 18-64,SUPPORTED LIVING,2103166452,1000057263,
03.11.2020,ADULT SOCIAL CARE,CONTACT PROFESSIONALS,912.00,LD LTS 18-64,SUPPORTED LIVING,2103166472,1000057263,
03.11.2020,ADULT SOCIAL CARE,RESOURCES FOR AUTISM,780.00,LD LTS 18-64,SUPPORTED LIVING,2103166418,1000062540,
03.11.2020,ADULT SOCIAL CARE,OUT AND ABOUT COMMUNITY SERVICES,255.00,LD LTS 18-64,DAYCARE,2103166464,1000078603,
03.11.2020,ADULT SOCIAL CARE,OUT AND ABOUT COMMUNITY SERVICES,340.00,LD LTS 18-64,DAYCARE,2103166430,1000078603,
03.11.2020,ADULT SOCIAL CARE,OUT AND ABOUT COMMUNITY SERVICES,688.50,LD LTS 18-64,DAYCARE,2103166439,1000078603,
03.11.2020,ADULT SOCIAL CARE,CHOICE SUPPORT,440.88,LD LTS 65+,SUPPORTED LIVING,2103166451,1104183,
03.11.2020,ADULT SOCIAL CARE,PAULWAYS KENNELS,252.00,MH LTS 18-64,EXTERNAL AGENCIES AND BODIES,2103166417,1068767,
03.11.2020,ADULT SOCIAL CARE,CHOICE SUPPORT,293.92,MH LTS 65+,SUPPORTED LIVING,2103166415,1104183,
03.11.2020,ADULT SOCIAL CARE,CHOICE SUPPORT,293.92,MH LTS 65+,SUPPORTED LIVING,2103166416,1104183,
03.11.2020,ADULT SOCIAL CARE,CHOICE SUPPORT,293.92,MH LTS 65+,SUPPORTED LIVING,2103166444,1104183,
03.11.2020,ADULT SOCIAL CARE,CHOICE SUPPORT,293.92,MH LTS 65+,SUPPORTED LIVING,2103166457,1104183,
03.11.2020,ADULT SOCIAL CARE,PHOENIX HEALTHCARE & RECRUITMENT,789.22,PHY LTS 18-64,DAYCARE,2103166431,1000065636,
03.11.2020,ADULT SOCIAL CARE,ROMEDICAL LTD,360.00,SAFEGUARDING & DOLS,OTHER CONTRACTORS,5902440874,1000076318,
03.11.2020,ADULT SOCIAL CARE,CLOUDS END SERVICES LTD,400.00,SOCIAL ISOLATION,EXTERNAL AGENCIES AND BODIES,2103166449,1000079240,
03.11.2020,ASSET MANAGEMENT,BELSHAW & CURTIN SOLICITORS,"8,300.00",DISREPAIR,PAYMENTS FOR LEGAL SERVICES,2103166358,1767379,
03.11.2020,ASSET MANAGEMENT,HODGE JONES & ALLEN,"10,500.00",DISREPAIR,PAYMENTS FOR LEGAL SERVICES,2103166357,11011881,
03.11.2020,ASSET MANAGEMENT,ANTHONY GOLD SOLICITORS,"1,000.00",DISREPAIR,PAYMENTS FOR LEGAL SERVICES,2103166354,1000050198,
03.11.2020,ASSET MANAGEMENT,ANTHONY GOLD SOLICITORS,"2,000.00",DISREPAIR,PAYMENTS FOR LEGAL SERVICES,2103166355,1000050198,
03.11.2020,ASSET MANAGEMENT,SINCLAIR JOHNSTON & PARTNERS LTD,"4,189.80",DISREPAIR,PAYMENTS FOR LEGAL SERVICES,2103166362,1000052146,
03.11.2020,ASSET MANAGEMENT,ASHFORDS LLP,750.00,DISREPAIR,PAYMENTS FOR LEGAL SERVICES,2103166359,1000055865,
03.11.2020,ASSET MANAGEMENT,ASHFORDS LLP,"1,000.00",DISREPAIR,PAYMENTS FOR LEGAL SERVICES,2103166356,1000055865,
03.11.2020,ASSET MANAGEMENT,ASHFORDS LLP,"3,000.00",DISREPAIR,PAYMENTS FOR LEGAL SERVICES,2103166360,1000055865,
03.11.2020,ASSET MANAGEMENT,ASHFORDS LLP,"5,250.00",DISREPAIR,PAYMENTS FOR LEGAL SERVICES,2103166361,1000055865,
03.11.2020,ASSET MANAGEMENT,SIMON L TAYLOR LTD,700.00,DISREPAIR,PAYMENTS FOR LEGAL SERVICES,5902440024,1000056151,
03.11.2020,CENTRAL FUNCTIONS,HERITAGE SURVEYS LTD,416.00,TECHNICAL SUPPORT,PROFESSIONAL FEES,5902440713,1000080199,
03.11.2020,CENTRAL FUNCTIONS,HERITAGE SURVEYS LTD,788.00,TECHNICAL SUPPORT,PROFESSIONAL FEES,5902440887,1000080199,
03.11.2020,CHILDREN AND FAMILIES,ZENITH CARS LTD,800.00,AI TEAMS E-G & KFT,HIRED VEHICLES,5902440818,1000070570,
03.11.2020,CHILDREN AND FAMILIES,CAROL NUDDS,450.00,P & R CARE TEAM,OTHER PAYMENTS FOR CLIENTS,5902440753,1000076989,
03.11.2020,CHILDREN AND FAMILIES,THE MEDUSA PROJECT LTD,"8,192.68",SEMI-IND CARELEAVERS,EXTERNAL AGENCIES AND BODIES,2103166492,1000014392,
03.11.2020,CHILDREN AND FAMILIES,OWNLIFE LTD,"3,808.57",SEMI-IND CARELEAVERS,EXTERNAL AGENCIES AND BODIES,2103166488,1000056219,
03.11.2020,CHILDREN AND FAMILIES,OWNLIFE LTD,"4,915.70",SEMI-IND CARELEAVERS,EXTERNAL AGENCIES AND BODIES,2103166484,1000056219,
03.11.2020,CHILDREN AND FAMILIES,HARVEST CARE GROUP LTD,"2,433.81",SEMI-IND CARELEAVERS,EXTERNAL AGENCIES AND BODIES,2103166482,1000079059,
03.11.2020,CHILDREN AND FAMILIES,HARVEST CARE GROUP LTD,"2,433.81",SEMI-IND CARELEAVERS,EXTERNAL AGENCIES AND BODIES,2103166485,1000079059,
03.11.2020,CHILDREN AND FAMILIES,HARVEST CARE GROUP LTD,"3,764.02",SEMI-IND CARELEAVERS,EXTERNAL AGENCIES AND BODIES,2103166486,1000079059,
03.11.2020,CHILDREN AND FAMILIES,HARVEST CARE GROUP LTD,"4,262.50",SEMI-IND CARELEAVERS,EXTERNAL AGENCIES AND BODIES,2103166493,1000079059,
03.11.2020,CHILDREN AND FAMILIES,HARVEST CARE GROUP LTD,"4,539.02",SEMI-IND CARELEAVERS,EXTERNAL AGENCIES AND BODIES,2103166489,1000079059,
03.11.2020,CHILDREN AND FAMILIES,TRANSFORMING LIVES COMPANY LTD,"3,739.92",SEMI-IND CARELEAVERS,EXTERNAL AGENCIES AND BODIES,2103166487,1000083352,
03.11.2020,CHILDREN AND FAMILIES,BRIGHT YOUNG FUTURES LTD,"2,957.13",SEMI-IND CARELEAVERS,EXTERNAL AGENCIES AND BODIES,2103166495,1000083958,
03.11.2020,CHILDREN AND FAMILIES,BRIGHT YOUNG FUTURES LTD,"4,207.13",SEMI-IND CARELEAVERS,EXTERNAL AGENCIES AND BODIES,2103166490,1000083958,
03.11.2020,CHILDREN AND FAMILIES,ST CHRISTOPHER FELLOWSHIP,"5,757.01",SEMI-IND LAC 16-17,EXTERNAL AGENCIES AND BODIES,2103166480,1000045269,
03.11.2020,CHILDREN AND FAMILIES,OWNLIFE LTD,"3,542.87",SEMI-IND LAC 16-17,EXTERNAL AGENCIES AND BODIES,2103166475,1000056219,
03.11.2020,CHILDREN AND FAMILIES,BRIGHT YOUNG FUTURES LTD,"4,044.27",SEMI-IND LAC 16-17,EXTERNAL AGENCIES AND BODIES,2103166476,1000083958,
03.11.2020,CHILDREN AND FAMILIES,BRIGHT YOUNG FUTURES LTD,"5,040.70",SEMI-IND LAC 16-17,EXTERNAL AGENCIES AND BODIES,2103166478,1000083958,
03.11.2020,CHILDREN AND FAMILIES,TRANSITIONAL PLUS CARE CIC,"5,978.57",SEMI-IND LAC 16-17,EXTERNAL AGENCIES AND BODIES,2103166479,1000084188,
03.11.2020,CHILDREN AND FAMILIES,CHILDREN OF COLOUR,"1,328.56",STAYPUT- FOST CARERS,EXTERNAL AGENCIES AND BODIES,2103166483,1000044955,
03.11.2020,CHILDREN AND FAMILIES,CHILDREN OF COLOUR,"1,328.56",STAYPUT- FOST CARERS,EXTERNAL AGENCIES AND BODIES,2103166494,1000044955,
03.11.2020,CHILDREN AND FAMILIES,COMPASS FOSTERING LONDON LTD,"2,214.33",STAYPUT- FOST CARERS,EXTERNAL AGENCIES AND BODIES,2103166491,1000057908,
03.11.2020,CHILDREN AND FAMILIES,ZENITH CARS LTD,985.00,TEAM B,HIRED VEHICLES,5902440818,1000070570,
03.11.2020,CHILDREN AND FAMILIES,ZENITH CARS LTD,870.00,TEAM D,HIRED VEHICLES,5902440818,1000070570,
03.11.2020,CHILDREN AND FAMILIES,TRIANGLE CONSULTING,"1,485.00",TROUBLED FAM�S TEAM,EXTERNAL AGENCIES AND BODIES,5902440842,1000075667,
03.11.2020,CHILDREN AND FAMILIES,OWNLIFE LTD,"2,790.00",UASC LAC 16-17,EXTERNAL AGENCIES AND BODIES,2103166481,1000056219,
03.11.2020,CHILDREN AND FAMILIES,YOUTH INK AT THE HEART OF THE COMMUNITY,500.00,YOS MGMT & SUPPORT,EXTERNAL AGENCIES AND BODIES,5902440851,1000079226,
03.11.2020,CHILDREN AND FAMILIES,YOUTH INK AT THE HEART OF THE COMMUNITY,"2,000.00",YOS MGMT & SUPPORT,EXTERNAL AGENCIES AND BODIES,5902440848,1000079226,
03.11.2020,CHILDREN'S SERVICES,FLEET TUTORS,"2,799.00",SEN - AEP,STATEMENTED FEES,2103166382,1000044820,
03.11.2020,CHILDREN'S SERVICES,ACTIVE RECRUITMENT SEN LTD,"1,427.81",SEN - AEP,STATEMENTED FEES,2103166364,1000078380,
03.11.2020,CHILDREN'S SERVICES,LAMBETH COLLEGE,"-6,214.16",SEN - FURTHER EDUCATION,STATEMENTED FEES,2103169169,1810111,
03.11.2020,CHILDREN'S SERVICES,LAMBETH COLLEGE,"-3,107.08",SEN - FURTHER EDUCATION,STATEMENTED FEES,2103169170,1810111,
03.11.2020,CHILDREN'S SERVICES,LAMBETH COLLEGE,"1,400.93",SEN - FURTHER EDUCATION,STATEMENTED FEES,2103077463,1810111,
03.11.2020,CHILDREN'S SERVICES,LAMBETH COLLEGE,"1,400.93",SEN - FURTHER EDUCATION,STATEMENTED FEES,2103077464,1810111,
03.11.2020,CHILDREN'S SERVICES,LAMBETH COLLEGE,"3,107.08",SEN - FURTHER EDUCATION,STATEMENTED FEES,2103077462,1810111,
03.11.2020,CHILDREN'S SERVICES,LAMBETH COLLEGE,"4,159.74",SEN - FURTHER EDUCATION,STATEMENTED FEES,2103077460,1810111,
03.11.2020,CHILDREN'S SERVICES,LAMBETH COLLEGE,"5,043.83",SEN - FURTHER EDUCATION,STATEMENTED FEES,2103077465,1810111,
03.11.2020,CHILDREN'S SERVICES,LAMBETH COLLEGE,"5,043.83",SEN - FURTHER EDUCATION,STATEMENTED FEES,2103077466,1810111,
03.11.2020,CHILDREN'S SERVICES,LAMBETH COLLEGE,"6,214.16",SEN - FURTHER EDUCATION,STATEMENTED FEES,2103077461,1810111,
03.11.2020,CHILDREN'S SERVICES,LAMBETH COLLEGE,"8,319.48",SEN - FURTHER EDUCATION,STATEMENTED FEES,2103077459,1810111,
03.11.2020,CHILDREN'S SERVICES,RIVERSTON SCHOOL,"11,055.00",SEN - INDEPENDENT,STATEMENTED FEES,2103166400,11213696,
03.11.2020,CHILDREN'S SERVICES,RIVERSTON SCHOOL,"11,055.00",SEN - INDEPENDENT,STATEMENTED FEES,2103166404,11213696,
03.11.2020,CHILDREN'S SERVICES,RIVERSTON SCHOOL,"11,055.00",SEN - INDEPENDENT,STATEMENTED FEES,2103166406,11213696,
03.11.2020,CHILDREN'S SERVICES,RIVERSTON SCHOOL,"11,458.00",SEN - INDEPENDENT,STATEMENTED FEES,2103166398,11213696,
03.11.2020,CHILDREN'S SERVICES,RIVERSTON SCHOOL,"12,130.00",SEN - INDEPENDENT,STATEMENTED FEES,2103166401,11213696,
03.11.2020,CHILDREN'S SERVICES,RIVERSTON SCHOOL,"13,452.00",SEN - INDEPENDENT,STATEMENTED FEES,2103166397,11213696,
03.11.2020,CHILDREN'S SERVICES,RIVERSTON SCHOOL,"14,055.00",SEN - INDEPENDENT,STATEMENTED FEES,2103166399,11213696,
03.11.2020,CHILDREN'S SERVICES,RIVERSTON SCHOOL,"14,082.00",SEN - INDEPENDENT,STATEMENTED FEES,2103166403,11213696,
03.11.2020,CHILDREN'S SERVICES,FAIRLEY HOUSE SCHOOL,"11,200.00",SEN - INDEPENDENT,STATEMENTED FEES,2103166381,1000030807,
03.11.2020,CHILDREN'S SERVICES,EAGLE HOUSE (MITCHAM) LTD,"8,707.67",SEN - INDEPENDENT,STATEMENTED FEES,2103166372,1000071156,
03.11.2020,CHILDREN'S SERVICES,EAGLE HOUSE (MITCHAM) LTD,"8,707.67",SEN - INDEPENDENT,STATEMENTED FEES,2103166373,1000071156,
03.11.2020,CHILDREN'S SERVICES,EAGLE HOUSE (MITCHAM) LTD,"16,618.33",SEN - INDEPENDENT,STATEMENTED FEES,2103166375,1000071156,
03.11.2020,CHILDREN'S SERVICES,EAGLE HOUSE (MITCHAM) LTD,"16,618.33",SEN - INDEPENDENT,STATEMENTED FEES,2103166376,1000071156,
03.11.2020,CHILDREN'S SERVICES,EAGLE HOUSE (MITCHAM) LTD,"16,618.33",SEN - INDEPENDENT,STATEMENTED FEES,2103166377,1000071156,
03.11.2020,CHILDREN'S SERVICES,EAGLE HOUSE (MITCHAM) LTD,"19,488.33",SEN - INDEPENDENT,STATEMENTED FEES,2103166374,1000071156,
03.11.2020,CHILDREN'S SERVICES,EAGLE HOUSE SCHOOL (SUTTON),"16,835.67",SEN - INDEPENDENT,STATEMENTED FEES,2103166380,1000077944,
03.11.2020,CHILDREN'S SERVICES,EAGLE HOUSE SCHOOL (SUTTON),"17,972.67",SEN - INDEPENDENT,STATEMENTED FEES,2103166378,1000077944,
03.11.2020,CHILDREN'S SERVICES,EAGLE HOUSE SCHOOL (SUTTON),"27,825.00",SEN - INDEPENDENT,STATEMENTED FEES,2103166379,1000077944,
03.11.2020,CHILDREN'S SERVICES,EAGLE HOUSE 6TH FORM (STRAWBERRY LODGE),"16,618.33",SEN - INDEPENDENT,STATEMENTED FEES,2103166371,1000081603,
03.11.2020,CHILDREN'S SERVICES,EAGLE HOUSE 6TH FORM (STRAWBERRY LODGE),"19,443.33",SEN - INDEPENDENT,STATEMENTED FEES,2103166370,1000081603,
03.11.2020,CHILDREN'S SERVICES,PHOENIXPLACE,"4,620.00",SEN � MAINTAINED SCHOOLS,STATEMENTED FEES,2103166394,1000075565,
03.11.2020,CHILDREN'S SERVICES,PHOENIXPLACE,"4,830.00",SEN � MAINTAINED SCHOOLS,STATEMENTED FEES,2103166391,1000075565,
03.11.2020,CHILDREN'S SERVICES,PHOENIXPLACE,"5,040.00",SEN � MAINTAINED SCHOOLS,STATEMENTED FEES,2103166392,1000075565,
03.11.2020,CHILDREN'S SERVICES,PHOENIXPLACE,"5,040.00",SEN � MAINTAINED SCHOOLS,STATEMENTED FEES,2103166393,1000075565,
03.11.2020,CHILDREN'S SERVICES,PULSE HEALTHCARE LTD,308.00,SEN - OTHER,STATEMENTED FEES,2103166395,1000035063,
03.11.2020,CHILDREN'S SERVICES,PULSE HEALTHCARE LTD,"1,001.00",SEN - OTHER,STATEMENTED FEES,2103166396,1000035063,
03.11.2020,CHILDREN'S SERVICES,NEW START TRAINING LTD,"4,550.00",SEN - OTHER,STATEMENTED FEES,2103166385,1000045132,
03.11.2020,CHILDREN'S SERVICES,JOHN RUSKIN PRIMARY SCHOOL,"2,652.00",SEN - OTHER SCHOOLS,STATEMENTED FEES,2103166383,5001000040,
03.11.2020,CHILDREN'S SERVICES,BEYONDAUTISM,600.00,SEN - OTHER SPECIAL,STATEMENTED FEES,2103166366,1000080312,
03.11.2020,CHILDREN'S SERVICES,BEYONDAUTISM,"21,347.66",SEN - OTHER SPECIAL,STATEMENTED FEES,2103166369,1000080312,
03.11.2020,CHILDREN'S SERVICES,BEYONDAUTISM,"21,347.67",SEN - OTHER SPECIAL,STATEMENTED FEES,2103166367,1000080312,
03.11.2020,CHILDREN'S SERVICES,BEYONDAUTISM,"25,514.33",SEN - OTHER SPECIAL,STATEMENTED FEES,2103166368,1000080312,
03.11.2020,CHILDREN'S SERVICES,PARAYHOUSE SCHOOL,"6,216.00",SEN- NON MAINTAINED SCHOOLS,STATEMENTED FEES,2103166386,1000011369,
03.11.2020,CHILDREN'S SERVICES,PARAYHOUSE SCHOOL,"6,216.00",SEN- NON MAINTAINED SCHOOLS,STATEMENTED FEES,2103166387,1000011369,
03.11.2020,CHILDREN'S SERVICES,PARAYHOUSE SCHOOL,"6,216.00",SEN- NON MAINTAINED SCHOOLS,STATEMENTED FEES,2103166388,1000011369,
03.11.2020,CHILDREN'S SERVICES,PARAYHOUSE SCHOOL,"6,216.00",SEN- NON MAINTAINED SCHOOLS,STATEMENTED FEES,2103166389,1000011369,
03.11.2020,CHILDREN'S SERVICES,PARAYHOUSE SCHOOL,"6,216.00",SEN- NON MAINTAINED SCHOOLS,STATEMENTED FEES,2103166390,1000011369,
03.11.2020,CHILDREN'S SERVICES,BARNARDOS SERVICES LTD,"28,034.00",SEN- NON MAINTAINED SCHOOLS,STATEMENTED FEES,2103166365,1000063730,
03.11.2020,CHILDREN'S SERVICES,MORE HOUSE SCHOOL,"6,490.50",SEN- NON MAINTAINED SCHOOLS,STATEMENTED FEES,2103166384,1000076379,
03.11.2020,CLIMATE CHANGE,URBANCANDA,"2,000.00",CLIMATE CHANGE,TRAINING,5902440598,1000036367,
03.11.2020,COMMUNITIES,CHARTERED INSTITUTE OF HOUSING,700.00,TENANT MGT INITITIVES,TRAINING,5902440873,1914585,
03.11.2020,CUSTOMER EXPERIENCE,GO2 TELECOM LTD,"3,447.75",CUSTOMER SUPPORT,HARDWARE,5902440878,1000071896,
03.11.2020,CUSTOMER EXPERIENCE HGF,PROCTORS (ANERLEY) LIMITED,"2,925.00",HOMELESS PROJECTS,GRANTS,5902440740,1000085818,
03.11.2020,CUSTOMER EXPERIENCE HGF,TURUN UK LTD,499.90,LAMBETH RESPONSE,EQUIPMENT PURCHASE & REPAIR,5902440718,1000073595,
03.11.2020,CUSTOMER EXPERIENCE HGF,TLK PROPERTY & INVESTMENTS LTD,"5,343.00",NIGHTLY TA (NSC),EXTERNAL AGENCIES AND BODIES,5902440664,1000065661,
03.11.2020,CUSTOMER EXPERIENCE HGF,CITYGLEN LTD,"17,263.00",RAPID REHOUSING,EXTERNAL AGENCIES AND BODIES,5902440720,1000026239,
03.11.2020,ENVIRONMENT DIRECTORATE,AUTOMOTIVE LEASING,934.57,CAR LEASING CTRL A/C,VEHICLE LEASING CHARGES,5902440688,11014756,
03.11.2020,ENVIRONMENT DIRECTORATE,AUTOMOTIVE LEASING,979.63,CAR LEASING CTRL A/C,VEHICLE LEASING CHARGES,5902440688,11014756,
03.11.2020,ENVIRONMENT DIRECTORATE,MARSTON GROUP LTD,278.00,CAR LEASING CTRL A/C,PARKING CHARGES,5902440809,1000011313,
03.11.2020,ENVIRONMENT DIRECTORATE,ARNOLD CLARK VEHICLE MANAGEMENT,265.75,CAR LEASING CTRL A/C,VEHICLE LEASING CHARGES,5902440690,1000079116,
03.11.2020,ENVIRONMENT DIRECTORATE,ARNOLD CLARK VEHICLE MANAGEMENT,293.53,CAR LEASING CTRL A/C,VEHICLE LEASING CHARGES,5902440686,1000079116,
03.11.2020,ENVIRONMENT DIRECTORATE,ARNOLD CLARK VEHICLE MANAGEMENT,297.94,CAR LEASING CTRL A/C,VEHICLE LEASING CHARGES,5902440692,1000079116,
03.11.2020,ENVIRONMENT DIRECTORATE,ARNOLD CLARK VEHICLE MANAGEMENT,310.29,CAR LEASING CTRL A/C,VEHICLE LEASING CHARGES,5902440692,1000079116,
03.11.2020,ENVIRONMENT DIRECTORATE,ARNOLD CLARK VEHICLE MANAGEMENT,311.37,CAR LEASING CTRL A/C,VEHICLE LEASING CHARGES,5902440686,1000079116,
03.11.2020,ENVIRONMENT DIRECTORATE,ARNOLD CLARK VEHICLE MANAGEMENT,319.05,CAR LEASING CTRL A/C,VEHICLE LEASING CHARGES,5902440690,1000079116,
03.11.2020,ENVIRONMENT DIRECTORATE,ARNOLD CLARK VEHICLE MANAGEMENT,420.64,CAR LEASING CTRL A/C,VEHICLE LEASING CHARGES,5902440687,1000079116,
03.11.2020,ENVIRONMENT DIRECTORATE,ARNOLD CLARK VEHICLE MANAGEMENT,449.38,CAR LEASING CTRL A/C,VEHICLE LEASING CHARGES,5902440687,1000079116,
03.11.2020,ENVIRONMENT DIRECTORATE,ARNOLD CLARK VEHICLE MANAGEMENT,458.00,CAR LEASING CTRL A/C,VEHICLE LEASING CHARGES,5902440697,1000079116,
03.11.2020,ENVIRONMENT DIRECTORATE,ARNOLD CLARK VEHICLE MANAGEMENT,461.20,CAR LEASING CTRL A/C,VEHICLE LEASING CHARGES,5902440697,1000079116,
03.11.2020,ENVIRONMENT DIRECTORATE,ARNOLD CLARK VEHICLE MANAGEMENT,482.81,CAR LEASING CTRL A/C,VEHICLE LEASING CHARGES,5902440694,1000079116,
03.11.2020,ENVIRONMENT DIRECTORATE,ARNOLD CLARK VEHICLE MANAGEMENT,497.04,CAR LEASING CTRL A/C,VEHICLE LEASING CHARGES,5902440694,1000079116,
03.11.2020,ENVIRONMENT DIRECTORATE,ARNOLD CLARK VEHICLE MANAGEMENT,503.72,CAR LEASING CTRL A/C,VEHICLE LEASING CHARGES,5902440685,1000079116,
03.11.2020,ENVIRONMENT DIRECTORATE,ARNOLD CLARK VEHICLE MANAGEMENT,552.89,CAR LEASING CTRL A/C,VEHICLE LEASING CHARGES,5902440685,1000079116,
03.11.2020,ENVIRONMENT DIRECTORATE,ARNOLD CLARK VEHICLE MANAGEMENT,588.50,CAR LEASING CTRL A/C,VEHICLE LEASING CHARGES,5902440681,1000079116,
03.11.2020,ENVIRONMENT DIRECTORATE,ARNOLD CLARK VEHICLE MANAGEMENT,651.89,CAR LEASING CTRL A/C,VEHICLE LEASING CHARGES,5902440683,1000079116,
03.11.2020,ENVIRONMENT DIRECTORATE,ARNOLD CLARK VEHICLE MANAGEMENT,653.86,CAR LEASING CTRL A/C,VEHICLE LEASING CHARGES,5902440681,1000079116,
03.11.2020,ENVIRONMENT DIRECTORATE,ARNOLD CLARK VEHICLE MANAGEMENT,727.42,CAR LEASING CTRL A/C,VEHICLE LEASING CHARGES,5902440683,1000079116,
03.11.2020,ENVIRONMENT DIRECTORATE,ARNOLD CLARK VEHICLE MANAGEMENT,838.33,CAR LEASING CTRL A/C,VEHICLE LEASING CHARGES,5902440695,1000079116,
03.11.2020,ENVIRONMENT DIRECTORATE,ARNOLD CLARK VEHICLE MANAGEMENT,894.92,CAR LEASING CTRL A/C,VEHICLE LEASING CHARGES,5902440695,1000079116,
03.11.2020,ENVIRONMENT DIRECTORATE,ARNOLD CLARK VEHICLE MANAGEMENT,935.00,CAR LEASING CTRL A/C,VEHICLE LEASING CHARGES,5902440678,1000079116,
03.11.2020,ENVIRONMENT DIRECTORATE,ARNOLD CLARK VEHICLE MANAGEMENT,"1,000.03",CAR LEASING CTRL A/C,VEHICLE LEASING CHARGES,5902440691,1000079116,
03.11.2020,ENVIRONMENT DIRECTORATE,ARNOLD CLARK VEHICLE MANAGEMENT,"1,013.17",CAR LEASING CTRL A/C,VEHICLE LEASING CHARGES,5902440678,1000079116,
03.11.2020,ENVIRONMENT DIRECTORATE,ARNOLD CLARK VEHICLE MANAGEMENT,"1,066.45",CAR LEASING CTRL A/C,VEHICLE LEASING CHARGES,5902440691,1000079116,
03.11.2020,ENVIRONMENT DIRECTORATE,ARNOLD CLARK VEHICLE MANAGEMENT,"1,678.06",CAR LEASING CTRL A/C,VEHICLE LEASING CHARGES,5902440675,1000079116,
03.11.2020,ENVIRONMENT DIRECTORATE,ARNOLD CLARK VEHICLE MANAGEMENT,"1,707.96",CAR LEASING CTRL A/C,VEHICLE LEASING CHARGES,5902440675,1000079116,
03.11.2020,ENVIRONMENT DIRECTORATE,BRJ COMMERCIAL ACCESSORIES LTD,265.00,COMMERCIAL VEH CTRL A/C,VEHICLE REPAIRS & MAINTENANCE,5902440698,1486228,
03.11.2020,ENVIRONMENT DIRECTORATE,SCOT GROUP LIMITED,385.56,COMMERCIAL VEH CTRL A/C,HIRED VEHICLES,5902440754,1709512,
03.11.2020,ENVIRONMENT DIRECTORATE,SCOT GROUP LIMITED,385.56,COMMERCIAL VEH CTRL A/C,HIRED VEHICLES,5902440757,1709512,
03.11.2020,ENVIRONMENT DIRECTORATE,AUTOMOTIVE LEASING,"1,074.40",COMMERCIAL VEH CTRL A/C,HIRED VEHICLES,5902440704,11014756,
03.11.2020,ENVIRONMENT DIRECTORATE,AUTOMOTIVE LEASING,"2,892.37",COMMERCIAL VEH CTRL A/C,HIRED VEHICLES,5902440688,11014756,
03.11.2020,ENVIRONMENT DIRECTORATE,AUTOMOTIVE LEASING,"7,367.01",COMMERCIAL VEH CTRL A/C,HIRED VEHICLES,5902440703,11014756,
03.11.2020,ENVIRONMENT DIRECTORATE,FIVEWAYS MUNICIPAL VEHICLE HIRE LTD,"4,325.00",COMMERCIAL VEH CTRL A/C,HIRED VEHICLES,5902440738,1000023985,
03.11.2020,ENVIRONMENT DIRECTORATE,FIVEWAYS MUNICIPAL VEHICLE HIRE LTD,"5,225.00",COMMERCIAL VEH CTRL A/C,HIRED VEHICLES,5902440737,1000023985,
03.11.2020,ENVIRONMENT DIRECTORATE,NORTHGATE VEHICLE HIRE (SOUTH EAST),336.60,COMMERCIAL VEH CTRL A/C,HIRED VEHICLES,5902440794,1000044807,
03.11.2020,ENVIRONMENT DIRECTORATE,RYGOR COMMERCIALS LIMITED,"1,116.00",COMMERCIAL VEH CTRL A/C,HIRED VEHICLES,5902440763,1000063262,
03.11.2020,ENVIRONMENT DIRECTORATE,RYGOR COMMERCIALS LIMITED,"1,154.00",COMMERCIAL VEH CTRL A/C,HIRED VEHICLES,5902440762,1000063262,
03.11.2020,ENVIRONMENT DIRECTORATE,DAWSON RENTALS SWEEPERS,256.29,COMMERCIAL VEH CTRL A/C,HIRED VEHICLES,5902440796,1000068168,
03.11.2020,ENVIRONMENT DIRECTORATE,DAWSON RENTALS SWEEPERS,543.72,COMMERCIAL VEH CTRL A/C,HIRED VEHICLES,5902440795,1000068168,
03.11.2020,ENVIRONMENT DIRECTORATE,DAWSON RENTALS SWEEPERS,595.14,COMMERCIAL VEH CTRL A/C,HIRED VEHICLES,5902440793,1000068168,
03.11.2020,ENVIRONMENT DIRECTORATE,LEX AUTOLEASE,468.92,COMMERCIAL VEH CTRL A/C,HIRED VEHICLES,5902440857,1000069462,
03.11.2020,ENVIRONMENT DIRECTORATE,LEX AUTOLEASE,"1,629.95",COMMERCIAL VEH CTRL A/C,HIRED VEHICLES,5902440859,1000069462,
03.11.2020,ENVIRONMENT DIRECTORATE,PACE ACCIDENT REPAIRS CENTRE LTD,380.00,COMMERCIAL VEH CTRL A/C,HIRED VEHICLES,5902440788,1000069899,
03.11.2020,ENVIRONMENT DIRECTORATE,PACE ACCIDENT REPAIRS CENTRE LTD,380.00,COMMERCIAL VEH CTRL A/C,HIRED VEHICLES,5902440789,1000069899,
03.11.2020,ENVIRONMENT DIRECTORATE,PACE ACCIDENT REPAIRS CENTRE LTD,380.00,COMMERCIAL VEH CTRL A/C,HIRED VEHICLES,5902440791,1000069899,
03.11.2020,ENVIRONMENT DIRECTORATE,PACE ACCIDENT REPAIRS CENTRE LTD,"1,499.37",COMMERCIAL VEH CTRL A/C,HIRED VEHICLES,5902440792,1000069899,
03.11.2020,ENVIRONMENT DIRECTORATE,UNIVERSAL TYRE & AUTOCENTRES,317.24,COMMERCIAL VEH CTRL A/C,OTHER VEHICLE RUNNING COSTS,5902440799,1000072475,
03.11.2020,ENVIRONMENT DIRECTORATE,UNIVERSAL TYRE & AUTOCENTRES,435.86,COMMERCIAL VEH CTRL A/C,OTHER VEHICLE RUNNING COSTS,5902440847,1000072475,
03.11.2020,ENVIRONMENT DIRECTORATE,SHELL UK OIL PRODUCTS LTD,375.18,COMMERCIAL VEH CTRL A/C,VEHICLE FUEL,5902440669,1000081254,
03.11.2020,ENVIRONMENT DIRECTORATE,SHELL UK OIL PRODUCTS LTD,647.97,COMMERCIAL VEH CTRL A/C,VEHICLE FUEL,5902440679,1000081254,
03.11.2020,ENVIRONMENT DIRECTORATE,SHELL UK OIL PRODUCTS LTD,792.95,COMMERCIAL VEH CTRL A/C,VEHICLE FUEL,5902440693,1000081254,
03.11.2020,ENVIRONMENT DIRECTORATE,SHELL UK OIL PRODUCTS LTD,815.85,COMMERCIAL VEH CTRL A/C,VEHICLE FUEL,5902440677,1000081254,
03.11.2020,ENVIRONMENT DIRECTORATE,DAWSONGROUP VANS LTD,262.35,COMMERCIAL VEH CTRL A/C,HIRED VEHICLES,5902440778,1000082230,
03.11.2020,ENVIRONMENT DIRECTORATE,DAWSONGROUP VANS LTD,571.89,COMMERCIAL VEH CTRL A/C,HIRED VEHICLES,5902440776,1000082230,
03.11.2020,ENVIRONMENT DIRECTORATE,DAWSONGROUP VANS LTD,821.75,COMMERCIAL VEH CTRL A/C,HIRED VEHICLES,5902440774,1000082230,
03.11.2020,ENVIRONMENT DIRECTORATE,LEEDS COMMERCIAL LIMITED T/A LC VEHICLE HIRE,684.00,COMMERCIAL VEH CTRL A/C,HIRED VEHICLES,5902440730,1000082730,
03.11.2020,ENVIRONMENT DIRECTORATE,LEEDS COMMERCIAL LIMITED T/A LC VEHICLE HIRE,"1,358.63",COMMERCIAL VEH CTRL A/C,HIRED VEHICLES,5902440734,1000082730,
03.11.2020,ENVIRONMENT DIRECTORATE,LEEDS COMMERCIAL LIMITED T/A LC VEHICLE HIRE,"1,870.32",COMMERCIAL VEH CTRL A/C,HIRED VEHICLES,5902440731,1000082730,
03.11.2020,ENVIRONMENT DIRECTORATE,E. H. ROBERTS - PENET GROUP LTD,325.00,COMMERCIAL VEH CTRL A/C,HIRED VEHICLES,5902440770,1000082787,
03.11.2020,ENVIRONMENT DIRECTORATE,E. H. ROBERTS - PENET GROUP LTD,"1,544.50",COMMERCIAL VEH CTRL A/C,HIRED VEHICLES,5902440765,1000082787,
03.11.2020,ENVIRONMENT DIRECTORATE,DUNDALK MOTORS LONDON,773.16,COMMERCIAL VEH CTRL A/C,VEHICLE REPAIRS & MAINTENANCE,5902440714,1000084820,
03.11.2020,ENVIRONMENT DIRECTORATE,F H BRUNDLE,652.50,ENGINEERING CRAFTS,MATERIALS,5902440883,1082714,
03.11.2020,ENVIRONMENT DIRECTORATE,F H BRUNDLE,667.50,ENGINEERING CRAFTS,MATERIALS,5902440882,1082714,
03.11.2020,ENVIRONMENT DIRECTORATE,ANGLESEY BOLLARD LTD,575.00,ENGINEERING CRAFTS,MATERIALS,5902440784,1000068368,
03.11.2020,ENVIRONMENT DIRECTORATE,ANGLESEY BOLLARD LTD,950.00,ENGINEERING CRAFTS,MATERIALS,5902440784,1000068368,
03.11.2020,ENVIRONMENT DIRECTORATE,ANGLESEY BOLLARD LTD,"2,360.00",ENGINEERING CRAFTS,MATERIALS,5902440783,1000068368,
03.11.2020,ENVIRONMENT DIRECTORATE,LONDON HIRE LIMITED,"1,610.31",FLEET INSURANCE WORKS,TRANSPORT INSURANCE COSTS,5902440823,1383812,
03.11.2020,ENVIRONMENT DIRECTORATE,LEX AUTOLEASE,529.00,FLEET INSURANCE WORKS,TRANSPORT INSURANCE COSTS,5902440868,1000069462,
03.11.2020,ENVIRONMENT DIRECTORATE,PACE ACCIDENT REPAIRS CENTRE LTD,565.38,FLEET INSURANCE WORKS,TRANSPORT INSURANCE COSTS,5902440787,1000069899,
03.11.2020,ENVIRONMENT DIRECTORATE,PACE ACCIDENT REPAIRS CENTRE LTD,"3,991.00",FLEET INSURANCE WORKS,TRANSPORT INSURANCE COSTS,5902440785,1000069899,
03.11.2020,ENVIRONMENT DIRECTORATE,DAIMLER FLEET MANAGEMENT,601.00,FLEET INSURANCE WORKS,TRANSPORT INSURANCE COSTS,5902440699,1000079667,
03.11.2020,ENVIRONMENT DIRECTORATE,NEXUS VEHICLE MANAGEMENT LTD,"1,079.00",FLEET INSURANCE WORKS,TRANSPORT INSURANCE COSTS,5902440804,1000083420,
03.11.2020,ENVIRONMENT DIRECTORATE,ARVAL UK LTD,357.98,FLEET SERVICES MANAGEMENT,TRANSPORT INSURANCE COSTS,5902440716,1000079802,
03.11.2020,F & C S EXCLUDING CORPORATE BUDGETS,EDF ENERGY PLC,-427.96,FC&P PROCESSING,OFFICE EXPENSES,2103166347,1008746,
03.11.2020,F & C S EXCLUDING CORPORATE BUDGETS,REDACTED PERSONAL DATA,500.00,SESS,OTHER PAYMENTS FOR CLIENTS,REDACTED,REDACTED,
03.11.2020,F & C S EXCLUDING CORPORATE BUDGETS,REDACTED PERSONAL DATA,500.00,SESS,OTHER PAYMENTS FOR CLIENTS,REDACTED,REDACTED,
03.11.2020,F & C S EXCLUDING CORPORATE BUDGETS,REDACTED PERSONAL DATA,500.00,SESS,OTHER PAYMENTS FOR CLIENTS,REDACTED,REDACTED,
03.11.2020,F & C S EXCLUDING CORPORATE BUDGETS,REDACTED PERSONAL DATA,500.00,SESS,OTHER PAYMENTS FOR CLIENTS,REDACTED,REDACTED,
03.11.2020,HOUSING,GUIDELINE LIFT SERVICES LTD,"47,582.26",GUIDELINE,I-WORLD CONTRACTORS HOLDING ACCOUNT,5902440855,1000064176,
03.11.2020,HOUSING,GUIDELINE LIFT SERVICES LTD,"59,653.61",GUIDELINE,I-WORLD CONTRACTORS HOLDING ACCOUNT,5902440856,1000064176,
03.11.2020,HOUSING,OCO LIMITED,"138,474.17",PAYMENTS CONTROL ACCOUNT - OCO,I-WORLD CONTRACTORS HOLDING ACCOUNT,5902440742,1006066,
03.11.2020,HOUSING,PRB ESTATES LTD,"33,625.58",PRBE,I-WORLD CONTRACTORS HOLDING ACCOUNT,2103166497,3000001691,
03.11.2020,HOUSING,SMITH & BYFORD LTD,"113,765.58",SMITH AND BYFORD,I-WORLD CONTRACTORS HOLDING ACCOUNT,5902440743,11212119,
03.11.2020,HOUSING HRA,CALFORD SEADEN LLP,588.00,CAPITAL PS (HRA),CONSTRUCTION FEES  - EXTERNAL,5902440711,1061592,
03.11.2020,HOUSING HRA,CALFORD SEADEN LLP,882.00,CAPITAL PS (HRA),CONSTRUCTION FEES  - EXTERNAL,5902440712,1061592,
03.11.2020,HOUSING HRA,MARTIN ARNOLD LTD,900.00,CAPITAL PS (HRA),CONSTRUCTION FEES  - EXTERNAL,5902440717,1000076993,
03.11.2020,LEISURE DIRECTORATE,EDF ENERGY PLC,330.23,CEMETERIES,ELECTRICITY,5902440884,1008746,
03.11.2020,LEISURE DIRECTORATE,CLEAR SKIES SOFTWARE,"2,700.00",CEMETERIES,COMPUTER MAINTENANCE,5902440869,1000066449,
03.11.2020,LEISURE DIRECTORATE,HONOR OAK GROUP PRACTICE,"2,385.00",CREMATORIUM,PROFESSIONAL FEES,5902440790,1000047167,
03.11.2020,LEISURE DIRECTORATE,HONOR OAK GROUP PRACTICE,"2,445.00",CREMATORIUM,PROFESSIONAL FEES,5902440805,1000047167,
03.11.2020,MODERNISATION HGF,URBANCANDA,"2,000.00",ORG TRANSFORMATION,TRAINING,5902440377,1000036367,
03.11.2020,REGENERATION,GATELEY HAMER,330.00,OKR MASTER PLANNING,PROFESSIONAL FEES,5902440710,1000085267,
03.11.2020,RESIDENT SERVICES,GOVNET COMMUNICATIONS,325.00,SHELTERED CENTRAL,TRAINING,5902440670,1000050132,
03.11.2020,SOUTHWARK BUILDING SERVICES,N & C BUILDING MATERIALS,724.40,STORES/LOGISTICS,CREDITORS -GR/IR CLEARING ACCOUNT,5902440701,1005586,
04.11.2020,ADULT SOCIAL CARE,THE DRIVE CARE HOMES LTD,"14,872.87",DISABILITIES LAC,EXTERNAL AGENCIES AND BODIES,2103167145,1000003889,
04.11.2020,ADULT SOCIAL CARE,THE DRIVE CARE HOMES LTD,540.00,DISABILITIES LAC,RESIDENTIAL CARE,2103167150,1000003889,
04.11.2020,ADULT SOCIAL CARE,THE DRIVE CARE HOMES LTD,"14,126.52",DISABILITIES LAC,RESIDENTIAL CARE,2103167152,1000003889,
04.11.2020,ADULT SOCIAL CARE,KENT HOMEFINDING & FOSTERING LTD,"5,166.81",DISABILITIES LAC,EXTERNAL AGENCIES AND BODIES,2103167307,1000033978,
04.11.2020,ADULT SOCIAL CARE,FOSTERING SUPPORT GROUP LTD,"4,799.76",DISABILITIES LAC,EXTERNAL AGENCIES AND BODIES,2103167248,1000065830,
04.11.2020,ADULT SOCIAL CARE,CAMBIAN AUTISM SERVICES LTD,"11,219.40",DISABILITIES LAC,RESIDENTIAL CARE,2103167318,1000074719,
04.11.2020,ADULT SOCIAL CARE,CAMBIAN AUTISM SERVICES LTD,"30,616.68",DISABILITIES LAC,RESIDENTIAL CARE,2103167317,1000074719,
04.11.2020,ADULT SOCIAL CARE,HELP ME GROW FOSTERING SERVICES LTD,"5,757.01",DISABILITIES LAC,EXTERNAL AGENCIES AND BODIES,2103167306,1000079302,
04.11.2020,ADULT SOCIAL CARE,THE BEECHES UK LTD,"27,855.71",DISABILITIES LAC,RESIDENTIAL CARE,2103167156,1000083173,
04.11.2020,ADULT SOCIAL CARE,REDACTED PERSONAL DATA,"1,094.60",DISABILITIES LAC,PAYMENTS TO CARERS,REDACTED,REDACTED,
04.11.2020,ADULT SOCIAL CARE,REDACTED PERSONAL DATA,"1,632.00",DISABILITIES LAC,PAYMENTS TO CARERS,REDACTED,REDACTED,
04.11.2020,ADULT SOCIAL CARE,REDACTED PERSONAL DATA,756.00,DISABILITIES LAC,PAYMENTS TO CARERS,REDACTED,REDACTED,
04.11.2020,ADULT SOCIAL CARE,REDACTED PERSONAL DATA,756.00,DISABILITIES LAC,PAYMENTS TO CARERS,REDACTED,REDACTED,
04.11.2020,ADULT SOCIAL CARE,SUPREME CARE SERVICES LTD,314.10,DISCHARGE TO ACCESS,HOMECARE - C&V,2103168626,1000059416,
04.11.2020,ADULT SOCIAL CARE,SUPREME CARE SERVICES LTD,317.87,DISCHARGE TO ACCESS,HOMECARE - C&V,2103167778,1000059416,
04.11.2020,ADULT SOCIAL CARE,SUPREME CARE SERVICES LTD,334.90,DISCHARGE TO ACCESS,HOMECARE - C&V,2103158709,1000059416,
04.11.2020,ADULT SOCIAL CARE,SUPREME CARE SERVICES LTD,357.90,DISCHARGE TO ACCESS,HOMECARE - C&V,2103168150,1000059416,
04.11.2020,ADULT SOCIAL CARE,SUPREME CARE SERVICES LTD,375.17,DISCHARGE TO ACCESS,HOMECARE - C&V,2103167939,1000059416,
04.11.2020,ADULT SOCIAL CARE,SUPREME CARE SERVICES LTD,405.70,DISCHARGE TO ACCESS,HOMECARE - C&V,2103168171,1000059416,
04.11.2020,ADULT SOCIAL CARE,SUPREME CARE SERVICES LTD,453.64,DISCHARGE TO ACCESS,HOMECARE - C&V,2103168220,1000059416,
04.11.2020,ADULT SOCIAL CARE,SUPREME CARE SERVICES LTD,467.90,DISCHARGE TO ACCESS,HOMECARE - C&V,2103168790,1000059416,
04.11.2020,ADULT SOCIAL CARE,SUPREME CARE SERVICES LTD,471.15,DISCHARGE TO ACCESS,HOMECARE - C&V,2103168120,1000059416,
04.11.2020,ADULT SOCIAL CARE,SUPREME CARE SERVICES LTD,482.93,DISCHARGE TO ACCESS,HOMECARE - C&V,2103167410,1000059416,
04.11.2020,ADULT SOCIAL CARE,SUPREME CARE SERVICES LTD,497.33,DISCHARGE TO ACCESS,HOMECARE - C&V,2103167643,1000059416,
04.11.2020,ADULT SOCIAL CARE,SUPREME CARE SERVICES LTD,502.98,DISCHARGE TO ACCESS,HOMECARE - C&V,2103168199,1000059416,
04.11.2020,ADULT SOCIAL CARE,SUPREME CARE SERVICES LTD,519.14,DISCHARGE TO ACCESS,HOMECARE - C&V,2103167501,1000059416,
04.11.2020,ADULT SOCIAL CARE,SUPREME CARE SERVICES LTD,544.05,DISCHARGE TO ACCESS,HOMECARE - C&V,2103167426,1000059416,
04.11.2020,ADULT SOCIAL CARE,SUPREME CARE SERVICES LTD,562.93,DISCHARGE TO ACCESS,HOMECARE - C&V,2103167895,1000059416,
04.11.2020,ADULT SOCIAL CARE,SUPREME CARE SERVICES LTD,564.08,DISCHARGE TO ACCESS,HOMECARE - C&V,2103167392,1000059416,
04.11.2020,ADULT SOCIAL CARE,SUPREME CARE SERVICES LTD,602.15,DISCHARGE TO ACCESS,HOMECARE - C&V,2103158649,1000059416,
04.11.2020,ADULT SOCIAL CARE,SUPREME CARE SERVICES LTD,616.87,DISCHARGE TO ACCESS,HOMECARE - C&V,2103156520,1000059416,
04.11.2020,ADULT SOCIAL CARE,SUPREME CARE SERVICES LTD,667.46,DISCHARGE TO ACCESS,HOMECARE - C&V,2103167331,1000059416,
04.11.2020,ADULT SOCIAL CARE,SUPREME CARE SERVICES LTD,698.00,DISCHARGE TO ACCESS,HOMECARE - C&V,2103158644,1000059416,
04.11.2020,ADULT SOCIAL CARE,SUPREME CARE SERVICES LTD,698.00,DISCHARGE TO ACCESS,HOMECARE - C&V,2103167707,1000059416,
04.11.2020,ADULT SOCIAL CARE,SUPREME CARE SERVICES LTD,745.36,DISCHARGE TO ACCESS,HOMECARE - C&V,2103156501,1000059416,
04.11.2020,ADULT SOCIAL CARE,SUPREME CARE SERVICES LTD,826.50,DISCHARGE TO ACCESS,HOMECARE - C&V,2103167990,1000059416,
04.11.2020,ADULT SOCIAL CARE,SUPREME CARE SERVICES LTD,831.16,DISCHARGE TO ACCESS,HOMECARE - C&V,2103158409,1000059416,
04.11.2020,ADULT SOCIAL CARE,SUPREME CARE SERVICES LTD,839.86,DISCHARGE TO ACCESS,HOMECARE - C&V,2103167369,1000059416,
04.11.2020,ADULT SOCIAL CARE,SUPREME CARE SERVICES LTD,870.32,DISCHARGE TO ACCESS,HOMECARE - C&V,2103167598,1000059416,
04.11.2020,ADULT SOCIAL CARE,SUPREME CARE SERVICES LTD,924.85,DISCHARGE TO ACCESS,HOMECARE - C&V,2103167709,1000059416,
04.11.2020,ADULT SOCIAL CARE,SUPREME CARE SERVICES LTD,944.48,DISCHARGE TO ACCESS,HOMECARE - C&V,2103168043,1000059416,
04.11.2020,ADULT SOCIAL CARE,SUPREME CARE SERVICES LTD,998.85,DISCHARGE TO ACCESS,HOMECARE - C&V,2103167755,1000059416,
04.11.2020,ADULT SOCIAL CARE,SUPREME CARE SERVICES LTD,"1,523.13",DISCHARGE TO ACCESS,HOMECARE - C&V,2103158638,1000059416,
04.11.2020,ADULT SOCIAL CARE,SUPREME CARE SERVICES LTD,"1,885.09",DISCHARGE TO ACCESS,HOMECARE - C&V,2103168261,1000059416,
04.11.2020,ADULT SOCIAL CARE,SUPREME CARE SERVICES LTD,"2,142.16",DISCHARGE TO ACCESS,HOMECARE - C&V,2103167420,1000059416,
04.11.2020,ADULT SOCIAL CARE,SUPREME CARE SERVICES LTD,"2,583.22",DISCHARGE TO ACCESS,HOMECARE - C&V,2103167789,1000059416,
04.11.2020,ADULT SOCIAL CARE,SUPREME CARE SERVICES LTD,"2,757.80",DISCHARGE TO ACCESS,HOMECARE - C&V,2103167548,1000059416,
04.11.2020,ADULT SOCIAL CARE,SUPREME CARE SERVICES LTD,"2,842.20",DISCHARGE TO ACCESS,HOMECARE - C&V,2103158647,1000059416,
04.11.2020,ADULT SOCIAL CARE,SUPREME CARE SERVICES LTD,"3,184.97",DISCHARGE TO ACCESS,HOMECARE - C&V,2103168313,1000059416,
04.11.2020,ADULT SOCIAL CARE,SUPREME CARE SERVICES LTD,"3,612.24",DISCHARGE TO ACCESS,HOMECARE - C&V,2103168357,1000059416,
04.11.2020,ADULT SOCIAL CARE,SUPREME CARE SERVICES LTD,"3,664.52",DISCHARGE TO ACCESS,HOMECARE - C&V,2103156515,1000059416,
04.11.2020,ADULT SOCIAL CARE,SUPREME CARE SERVICES LTD,"3,712.61",DISCHARGE TO ACCESS,HOMECARE - C&V,2103167546,1000059416,
04.11.2020,ADULT SOCIAL CARE,SUPREME CARE SERVICES LTD,"3,882.72",DISCHARGE TO ACCESS,HOMECARE - C&V,2103158549,1000059416,
04.11.2020,ADULT SOCIAL CARE,SUPREME CARE SERVICES LTD,"3,900.12",DISCHARGE TO ACCESS,HOMECARE - C&V,2103167744,1000059416,
04.11.2020,ADULT SOCIAL CARE,BEDE CAFE PROJECT,290.00,LD LTS 18-64,DAYCARE,2103168441,1553877,
04.11.2020,ADULT SOCIAL CARE,BEDE CAFE PROJECT,344.00,LD LTS 18-64,DAYCARE,2103168445,1553877,
04.11.2020,ADULT SOCIAL CARE,BEDE CAFE PROJECT,372.00,LD LTS 18-64,DAYCARE,2103168443,1553877,
04.11.2020,ADULT SOCIAL CARE,BEDE CAFE PROJECT,400.00,LD LTS 18-64,DAYCARE,2103168444,1553877,
04.11.2020,ADULT SOCIAL CARE,MEDACS HOMECARE,"26,910.00",LD LTS 18-64,HOMECARE - C&V,2103168440,11287415,
04.11.2020,ADULT SOCIAL CARE,SURREY DOCKS FARM PROVIDENT SOCIETY,480.00,LD LTS 18-64,DAYCARE,2103168071,1000000958,
04.11.2020,ADULT SOCIAL CARE,SURREY DOCKS FARM PROVIDENT SOCIETY,487.50,LD LTS 18-64,DAYCARE,2103168073,1000000958,
04.11.2020,ADULT SOCIAL CARE,SURREY DOCKS FARM PROVIDENT SOCIETY,720.00,LD LTS 18-64,DAYCARE,2103168070,1000000958,
04.11.2020,ADULT SOCIAL CARE,SUPREME CARE SERVICES LTD,261.75,LD LTS 18-64,HOMECARE - C&V,2103167979,1000059416,
04.11.2020,ADULT SOCIAL CARE,SUPREME CARE SERVICES LTD,349.00,LD LTS 18-64,HOMECARE - C&V,2103156517,1000059416,
04.11.2020,ADULT SOCIAL CARE,SUPREME CARE SERVICES LTD,349.00,LD LTS 18-64,HOMECARE - C&V,2103165996,1000059416,
04.11.2020,ADULT SOCIAL CARE,SUPREME CARE SERVICES LTD,366.45,LD LTS 18-64,HOMECARE - C&V,2103167535,1000059416,
04.11.2020,ADULT SOCIAL CARE,SUPREME CARE SERVICES LTD,370.90,LD LTS 18-64,HOMECARE - C&V,2103167854,1000059416,
04.11.2020,ADULT SOCIAL CARE,SUPREME CARE SERVICES LTD,375.20,LD LTS 18-64,HOMECARE - C&V,2103164881,1000059416,
04.11.2020,ADULT SOCIAL CARE,SUPREME CARE SERVICES LTD,413.46,LD LTS 18-64,HOMECARE - C&V,2103164715,1000059416,
04.11.2020,ADULT SOCIAL CARE,SUPREME CARE SERVICES LTD,423.16,LD LTS 18-64,HOMECARE - C&V,2103158689,1000059416,
04.11.2020,ADULT SOCIAL CARE,SUPREME CARE SERVICES LTD,423.16,LD LTS 18-64,HOMECARE - C&V,2103168204,1000059416,
04.11.2020,ADULT SOCIAL CARE,SUPREME CARE SERVICES LTD,423.16,LD LTS 18-64,HOMECARE - C&V,2103168662,1000059416,
04.11.2020,ADULT SOCIAL CARE,SUPREME CARE SERVICES LTD,954.84,LD LTS 18-64,HOMECARE - C&V,2103164534,1000059416,
04.11.2020,ADULT SOCIAL CARE,SUPREME CARE SERVICES LTD,314.18,LD LTS 65+,HOMECARE - C&V,2103167967,1000059416,
04.11.2020,ADULT SOCIAL CARE,SUPREME CARE SERVICES LTD,628.20,LD LTS 65+,HOMECARE - C&V,2103156489,1000059416,
04.11.2020,ADULT SOCIAL CARE,SUPREME CARE SERVICES LTD,628.20,LD LTS 65+,HOMECARE - C&V,2103166016,1000059416,
04.11.2020,ADULT SOCIAL CARE,SUPREME CARE SERVICES LTD,628.20,LD LTS 65+,HOMECARE - C&V,2103168586,1000059416,
04.11.2020,ADULT SOCIAL CARE,SUPREME CARE SERVICES LTD,771.51,LD LTS 65+,HOMECARE - C&V,2103158426,1000059416,
04.11.2020,ADULT SOCIAL CARE,SUPREME CARE SERVICES LTD,914.33,LD LTS 65+,HOMECARE - C&V,2103167718,1000059416,
04.11.2020,ADULT SOCIAL CARE,SUPREME CARE SERVICES LTD,935.20,LD LTS 65+,HOMECARE - C&V,2103167339,1000059416,
04.11.2020,ADULT SOCIAL CARE,SUPREME CARE SERVICES LTD,935.20,LD LTS 65+,HOMECARE - C&V,2103168133,1000059416,
04.11.2020,ADULT SOCIAL CARE,SUPREME CARE SERVICES LTD,935.20,LD LTS 65+,HOMECARE - C&V,2103168589,1000059416,
04.11.2020,ADULT SOCIAL CARE,SUPREME CARE SERVICES LTD,954.80,LD LTS 65+,HOMECARE - C&V,2103164784,1000059416,
04.11.2020,ADULT SOCIAL CARE,SUPREME CARE SERVICES LTD,980.64,LD LTS 65+,HOMECARE - C&V,2103158627,1000059416,
04.11.2020,ADULT SOCIAL CARE,SUPREME CARE SERVICES LTD,427.70,MEM LTS 18-64,HOMECARE - C&V,2103167537,1000059416,
04.11.2020,ADULT SOCIAL CARE,SUPREME CARE SERVICES LTD,437.07,MEM LTS 18-64,HOMECARE - C&V,2103158592,1000059416,
04.11.2020,ADULT SOCIAL CARE,SUPREME CARE SERVICES LTD,451.68,MEM LTS 18-64,HOMECARE - C&V,2103168115,1000059416,
04.11.2020,ADULT SOCIAL CARE,SUPREME CARE SERVICES LTD,453.86,MEM LTS 18-64,HOMECARE - C&V,2103168799,1000059416,
04.11.2020,ADULT SOCIAL CARE,SUPREME CARE SERVICES LTD,460.40,MEM LTS 18-64,HOMECARE - C&V,2103167829,1000059416,
04.11.2020,ADULT SOCIAL CARE,SUPREME CARE SERVICES LTD,784.30,MEM LTS 18-64,HOMECARE - C&V,2103164659,1000059416,
04.11.2020,ADULT SOCIAL CARE,SUPREME CARE SERVICES LTD,274.89,MEM LTS 65+,HOMECARE - C&V,2103168049,1000059416,
04.11.2020,ADULT SOCIAL CARE,SUPREME CARE SERVICES LTD,296.64,MEM LTS 65+,HOMECARE - C&V,2103156532,1000059416,
04.11.2020,ADULT SOCIAL CARE,SUPREME CARE SERVICES LTD,296.64,MEM LTS 65+,HOMECARE - C&V,2103166007,1000059416,
04.11.2020,ADULT SOCIAL CARE,SUPREME CARE SERVICES LTD,340.42,MEM LTS 65+,HOMECARE - C&V,2103168461,1000059416,
04.11.2020,ADULT SOCIAL CARE,SUPREME CARE SERVICES LTD,345.42,MEM LTS 65+,HOMECARE - C&V,2103158364,1000059416,
04.11.2020,ADULT SOCIAL CARE,SUPREME CARE SERVICES LTD,349.15,MEM LTS 65+,HOMECARE - C&V,2103167714,1000059416,
04.11.2020,ADULT SOCIAL CARE,SUPREME CARE SERVICES LTD,349.16,MEM LTS 65+,HOMECARE - C&V,2103168270,1000059416,
04.11.2020,ADULT SOCIAL CARE,SUPREME CARE SERVICES LTD,358.20,MEM LTS 65+,HOMECARE - C&V,2103164734,1000059416,
04.11.2020,ADULT SOCIAL CARE,SUPREME CARE SERVICES LTD,362.24,MEM LTS 65+,HOMECARE - C&V,2103167504,1000059416,
04.11.2020,ADULT SOCIAL CARE,SUPREME CARE SERVICES LTD,366.45,MEM LTS 65+,HOMECARE - C&V,2103167847,1000059416,
04.11.2020,ADULT SOCIAL CARE,SUPREME CARE SERVICES LTD,423.16,MEM LTS 65+,HOMECARE - C&V,2103168561,1000059416,
04.11.2020,ADULT SOCIAL CARE,SUPREME CARE SERVICES LTD,427.70,MEM LTS 65+,HOMECARE - C&V,2103167538,1000059416,
04.11.2020,ADULT SOCIAL CARE,SUPREME CARE SERVICES LTD,437.07,MEM LTS 65+,HOMECARE - C&V,2103158593,1000059416,
04.11.2020,ADULT SOCIAL CARE,SUPREME CARE SERVICES LTD,440.83,MEM LTS 65+,HOMECARE - C&V,2103158552,1000059416,
04.11.2020,ADULT SOCIAL CARE,SUPREME CARE SERVICES LTD,440.90,MEM LTS 65+,HOMECARE - C&V,2103158643,1000059416,
04.11.2020,ADULT SOCIAL CARE,SUPREME CARE SERVICES LTD,451.68,MEM LTS 65+,HOMECARE - C&V,2103168116,1000059416,
04.11.2020,ADULT SOCIAL CARE,SUPREME CARE SERVICES LTD,453.86,MEM LTS 65+,HOMECARE - C&V,2103168800,1000059416,
04.11.2020,ADULT SOCIAL CARE,SUPREME CARE SERVICES LTD,460.40,MEM LTS 65+,HOMECARE - C&V,2103167830,1000059416,
04.11.2020,ADULT SOCIAL CARE,SUPREME CARE SERVICES LTD,505.27,MEM LTS 65+,HOMECARE - C&V,2103164932,1000059416,
04.11.2020,ADULT SOCIAL CARE,SUPREME CARE SERVICES LTD,523.76,MEM LTS 65+,HOMECARE - C&V,2103168573,1000059416,
04.11.2020,ADULT SOCIAL CARE,SUPREME CARE SERVICES LTD,541.61,MEM LTS 65+,HOMECARE - C&V,2103164569,1000059416,
04.11.2020,ADULT SOCIAL CARE,SUPREME CARE SERVICES LTD,554.40,MEM LTS 65+,HOMECARE - C&V,2103164866,1000059416,
04.11.2020,ADULT SOCIAL CARE,SUPREME CARE SERVICES LTD,558.50,MEM LTS 65+,HOMECARE - C&V,2103168238,1000059416,
04.11.2020,ADULT SOCIAL CARE,SUPREME CARE SERVICES LTD,558.68,MEM LTS 65+,HOMECARE - C&V,2103167457,1000059416,
04.11.2020,ADULT SOCIAL CARE,SUPREME CARE SERVICES LTD,558.68,MEM LTS 65+,HOMECARE - C&V,2103167982,1000059416,
04.11.2020,ADULT SOCIAL CARE,SUPREME CARE SERVICES LTD,558.68,MEM LTS 65+,HOMECARE - C&V,2103168164,1000059416,
04.11.2020,ADULT SOCIAL CARE,SUPREME CARE SERVICES LTD,571.62,MEM LTS 65+,HOMECARE - C&V,2103158733,1000059416,
04.11.2020,ADULT SOCIAL CARE,SUPREME CARE SERVICES LTD,584.68,MEM LTS 65+,HOMECARE - C&V,2103167838,1000059416,
04.11.2020,ADULT SOCIAL CARE,SUPREME CARE SERVICES LTD,586.92,MEM LTS 65+,HOMECARE - C&V,2103168260,1000059416,
04.11.2020,ADULT SOCIAL CARE,SUPREME CARE SERVICES LTD,590.39,MEM LTS 65+,HOMECARE - C&V,2103167545,1000059416,
04.11.2020,ADULT SOCIAL CARE,SUPREME CARE SERVICES LTD,610.96,MEM LTS 65+,HOMECARE - C&V,2103158573,1000059416,
04.11.2020,ADULT SOCIAL CARE,SUPREME CARE SERVICES LTD,615.38,MEM LTS 65+,HOMECARE - C&V,2103168190,1000059416,
04.11.2020,ADULT SOCIAL CARE,SUPREME CARE SERVICES LTD,628.20,MEM LTS 65+,HOMECARE - C&V,2103156533,1000059416,
04.11.2020,ADULT SOCIAL CARE,SUPREME CARE SERVICES LTD,628.20,MEM LTS 65+,HOMECARE - C&V,2103158600,1000059416,
04.11.2020,ADULT SOCIAL CARE,SUPREME CARE SERVICES LTD,637.20,MEM LTS 65+,HOMECARE - C&V,2103168562,1000059416,
04.11.2020,ADULT SOCIAL CARE,SUPREME CARE SERVICES LTD,641.56,MEM LTS 65+,HOMECARE - C&V,2103158351,1000059416,
04.11.2020,ADULT SOCIAL CARE,SUPREME CARE SERVICES LTD,648.20,MEM LTS 65+,HOMECARE - C&V,2103164844,1000059416,
04.11.2020,ADULT SOCIAL CARE,SUPREME CARE SERVICES LTD,673.61,MEM LTS 65+,HOMECARE - C&V,2103164888,1000059416,
04.11.2020,ADULT SOCIAL CARE,SUPREME CARE SERVICES LTD,702.70,MEM LTS 65+,HOMECARE - C&V,2103167644,1000059416,
04.11.2020,ADULT SOCIAL CARE,SUPREME CARE SERVICES LTD,733.23,MEM LTS 65+,HOMECARE - C&V,2103167839,1000059416,
04.11.2020,ADULT SOCIAL CARE,SUPREME CARE SERVICES LTD,754.99,MEM LTS 65+,HOMECARE - C&V,2103168774,1000059416,
04.11.2020,ADULT SOCIAL CARE,SUPREME CARE SERVICES LTD,772.46,MEM LTS 65+,HOMECARE - C&V,2103164568,1000059416,
04.11.2020,ADULT SOCIAL CARE,SUPREME CARE SERVICES LTD,798.72,MEM LTS 65+,HOMECARE - C&V,2103168003,1000059416,
04.11.2020,ADULT SOCIAL CARE,SUPREME CARE SERVICES LTD,807.44,MEM LTS 65+,HOMECARE - C&V,2103167342,1000059416,
04.11.2020,ADULT SOCIAL CARE,SUPREME CARE SERVICES LTD,811.77,MEM LTS 65+,HOMECARE - C&V,2103158430,1000059416,
04.11.2020,ADULT SOCIAL CARE,SUPREME CARE SERVICES LTD,819.27,MEM LTS 65+,HOMECARE - C&V,2103168509,1000059416,
04.11.2020,ADULT SOCIAL CARE,SUPREME CARE SERVICES LTD,859.75,MEM LTS 65+,HOMECARE - C&V,2103168397,1000059416,
04.11.2020,ADULT SOCIAL CARE,SUPREME CARE SERVICES LTD,864.05,MEM LTS 65+,HOMECARE - C&V,2103167345,1000059416,
04.11.2020,ADULT SOCIAL CARE,SUPREME CARE SERVICES LTD,881.35,MEM LTS 65+,HOMECARE - C&V,2103168751,1000059416,
04.11.2020,ADULT SOCIAL CARE,SUPREME CARE SERVICES LTD,890.01,MEM LTS 65+,HOMECARE - C&V,2103167888,1000059416,
04.11.2020,ADULT SOCIAL CARE,SUPREME CARE SERVICES LTD,981.80,MEM LTS 65+,HOMECARE - C&V,2103167726,1000059416,
04.11.2020,ADULT SOCIAL CARE,SUPREME CARE SERVICES LTD,993.26,MEM LTS 65+,HOMECARE - C&V,2103164545,1000059416,
04.11.2020,ADULT SOCIAL CARE,SUPREME CARE SERVICES LTD,999.37,MEM LTS 65+,HOMECARE - C&V,2103168139,1000059416,
04.11.2020,ADULT SOCIAL CARE,SUPREME CARE SERVICES LTD,999.38,MEM LTS 65+,HOMECARE - C&V,2103167513,1000059416,
04.11.2020,ADULT SOCIAL CARE,SUPREME CARE SERVICES LTD,"1,117.15",MEM LTS 65+,HOMECARE - C&V,2103158379,1000059416,
04.11.2020,ADULT SOCIAL CARE,SUPREME CARE SERVICES LTD,"1,121.23",MEM LTS 65+,HOMECARE - C&V,2103168421,1000059416,
04.11.2020,ADULT SOCIAL CARE,SUPREME CARE SERVICES LTD,"1,129.94",MEM LTS 65+,HOMECARE - C&V,2103164682,1000059416,
04.11.2020,ADULT SOCIAL CARE,SUPREME CARE SERVICES LTD,"1,134.64",MEM LTS 65+,HOMECARE - C&V,2103168404,1000059416,
04.11.2020,ADULT SOCIAL CARE,SUPREME CARE SERVICES LTD,"1,139.00",MEM LTS 65+,HOMECARE - C&V,2103167563,1000059416,
04.11.2020,ADULT SOCIAL CARE,SUPREME CARE SERVICES LTD,"1,139.00",MEM LTS 65+,HOMECARE - C&V,2103167865,1000059416,
04.11.2020,ADULT SOCIAL CARE,SUPREME CARE SERVICES LTD,"1,147.72",MEM LTS 65+,HOMECARE - C&V,2103168598,1000059416,
04.11.2020,ADULT SOCIAL CARE,SUPREME CARE SERVICES LTD,"1,186.68",MEM LTS 65+,HOMECARE - C&V,2103158735,1000059416,
04.11.2020,ADULT SOCIAL CARE,SUPREME CARE SERVICES LTD,"1,186.68",MEM LTS 65+,HOMECARE - C&V,2103167492,1000059416,
04.11.2020,ADULT SOCIAL CARE,SUPREME CARE SERVICES LTD,"2,685.92",MEM LTS 65+,HOMECARE - C&V,2103164520,1000059416,
04.11.2020,ADULT SOCIAL CARE,SUPREME CARE SERVICES LTD,"2,696.67",MEM LTS 65+,HOMECARE - C&V,2103168517,1000059416,
04.11.2020,ADULT SOCIAL CARE,SUPREME CARE SERVICES LTD,"2,766.41",MEM LTS 65+,HOMECARE - C&V,2103168279,1000059416,
04.11.2020,ADULT SOCIAL CARE,SUPREME CARE SERVICES LTD,"2,945.26",MEM LTS 65+,HOMECARE - C&V,2103167400,1000059416,
04.11.2020,ADULT SOCIAL CARE,SUPREME CARE SERVICES LTD,"2,975.97",MEM LTS 65+,HOMECARE - C&V,2103167866,1000059416,
04.11.2020,ADULT SOCIAL CARE,SUPREME CARE SERVICES LTD,"3,001.40",MEM LTS 65+,HOMECARE - C&V,2103156541,1000059416,
04.11.2020,ADULT SOCIAL CARE,SUPREME CARE SERVICES LTD,"3,197.60",MEM LTS 65+,HOMECARE - C&V,2103158714,1000059416,
04.11.2020,ADULT SOCIAL CARE,SUPREME CARE SERVICES LTD,571.62,MEM STS 65+,HOMECARE - IC,2103158732,1000059416,
04.11.2020,ADULT SOCIAL CARE,SUPREME CARE SERVICES LTD,258.86,MH LTS 18-64,HOMECARE - C&V,2103158596,1000059416,
04.11.2020,ADULT SOCIAL CARE,SUPREME CARE SERVICES LTD,261.75,MH LTS 18-64,HOMECARE - C&V,2103167445,1000059416,
04.11.2020,ADULT SOCIAL CARE,SUPREME CARE SERVICES LTD,272.80,MH LTS 18-64,HOMECARE - C&V,2103164865,1000059416,
04.11.2020,ADULT SOCIAL CARE,SUPREME CARE SERVICES LTD,274.86,MH LTS 18-64,HOMECARE - C&V,2103167584,1000059416,
04.11.2020,ADULT SOCIAL CARE,SUPREME CARE SERVICES LTD,279.20,MH LTS 18-64,HOMECARE - C&V,2103168706,1000059416,
04.11.2020,ADULT SOCIAL CARE,SUPREME CARE SERVICES LTD,287.93,MH LTS 18-64,HOMECARE - C&V,2103168163,1000059416,
04.11.2020,ADULT SOCIAL CARE,SUPREME CARE SERVICES LTD,289.88,MH LTS 18-64,HOMECARE - C&V,2103164801,1000059416,
04.11.2020,ADULT SOCIAL CARE,SUPREME CARE SERVICES LTD,296.70,MH LTS 18-64,HOMECARE - C&V,2103167490,1000059416,
04.11.2020,ADULT SOCIAL CARE,SUPREME CARE SERVICES LTD,296.78,MH LTS 18-64,HOMECARE - C&V,2103167600,1000059416,
04.11.2020,ADULT SOCIAL CARE,SUPREME CARE SERVICES LTD,301.02,MH LTS 18-64,HOMECARE - C&V,2103158636,1000059416,
04.11.2020,ADULT SOCIAL CARE,SUPREME CARE SERVICES LTD,311.61,MH LTS 18-64,HOMECARE - C&V,2103156516,1000059416,
04.11.2020,ADULT SOCIAL CARE,SUPREME CARE SERVICES LTD,363.23,MH LTS 18-64,HOMECARE - C&V,2103164740,1000059416,
04.11.2020,ADULT SOCIAL CARE,SUPREME CARE SERVICES LTD,375.76,MH LTS 18-64,HOMECARE - C&V,2103168510,1000059416,
04.11.2020,ADULT SOCIAL CARE,SUPREME CARE SERVICES LTD,388.27,MH LTS 18-64,HOMECARE - C&V,2103168516,1000059416,
04.11.2020,ADULT SOCIAL CARE,SUPREME CARE SERVICES LTD,405.70,MH LTS 18-64,HOMECARE - C&V,2103167679,1000059416,
04.11.2020,ADULT SOCIAL CARE,SUPREME CARE SERVICES LTD,405.77,MH LTS 18-64,HOMECARE - C&V,2103168111,1000059416,
04.11.2020,ADULT SOCIAL CARE,SUPREME CARE SERVICES LTD,417.72,MH LTS 18-64,HOMECARE - C&V,2103164719,1000059416,
04.11.2020,ADULT SOCIAL CARE,SUPREME CARE SERVICES LTD,418.57,MH LTS 18-64,HOMECARE - C&V,2103158635,1000059416,
04.11.2020,ADULT SOCIAL CARE,SUPREME CARE SERVICES LTD,418.80,MH LTS 18-64,HOMECARE - C&V,2103168666,1000059416,
04.11.2020,ADULT SOCIAL CARE,SUPREME CARE SERVICES LTD,431.88,MH LTS 18-64,HOMECARE - C&V,2103168165,1000059416,
04.11.2020,ADULT SOCIAL CARE,SUPREME CARE SERVICES LTD,434.78,MH LTS 18-64,HOMECARE - C&V,2103158637,1000059416,
04.11.2020,ADULT SOCIAL CARE,SUPREME CARE SERVICES LTD,436.24,MH LTS 18-64,HOMECARE - C&V,2103167984,1000059416,
04.11.2020,ADULT SOCIAL CARE,SUPREME CARE SERVICES LTD,484.32,MH LTS 18-64,HOMECARE - C&V,2103168661,1000059416,
04.11.2020,ADULT SOCIAL CARE,SUPREME CARE SERVICES LTD,485.94,MH LTS 18-64,HOMECARE - C&V,2103164894,1000059416,
04.11.2020,ADULT SOCIAL CARE,SUPREME CARE SERVICES LTD,488.60,MH LTS 18-64,HOMECARE - C&V,2103156537,1000059416,
04.11.2020,ADULT SOCIAL CARE,SUPREME CARE SERVICES LTD,488.60,MH LTS 18-64,HOMECARE - C&V,2103165967,1000059416,
04.11.2020,ADULT SOCIAL CARE,SUPREME CARE SERVICES LTD,524.37,MH LTS 18-64,HOMECARE - C&V,2103164712,1000059416,
04.11.2020,ADULT SOCIAL CARE,SUPREME CARE SERVICES LTD,541.04,MH LTS 18-64,HOMECARE - C&V,2103167977,1000059416,
04.11.2020,ADULT SOCIAL CARE,SUPREME CARE SERVICES LTD,601.02,MH LTS 18-64,HOMECARE - C&V,2103158626,1000059416,
04.11.2020,ADULT SOCIAL CARE,SUPREME CARE SERVICES LTD,641.30,MH LTS 18-64,HOMECARE - C&V,2103168010,1000059416,
04.11.2020,ADULT SOCIAL CARE,SUPREME CARE SERVICES LTD,680.56,MH LTS 18-64,HOMECARE - C&V,2103168327,1000059416,
04.11.2020,ADULT SOCIAL CARE,SUPREME CARE SERVICES LTD,698.00,MH LTS 18-64,HOMECARE - C&V,2103156590,1000059416,
04.11.2020,ADULT SOCIAL CARE,SUPREME CARE SERVICES LTD,698.00,MH LTS 18-64,HOMECARE - C&V,2103165978,1000059416,
04.11.2020,ADULT SOCIAL CARE,SUPREME CARE SERVICES LTD,703.30,MH LTS 18-64,HOMECARE - C&V,2103164684,1000059416,
04.11.2020,ADULT SOCIAL CARE,SUPREME CARE SERVICES LTD,750.34,MH LTS 18-64,HOMECARE - C&V,2103168328,1000059416,
04.11.2020,ADULT SOCIAL CARE,SUPREME CARE SERVICES LTD,767.76,MH LTS 18-64,HOMECARE - C&V,2103167730,1000059416,
04.11.2020,ADULT SOCIAL CARE,SUPREME CARE SERVICES LTD,767.79,MH LTS 18-64,HOMECARE - C&V,2103167618,1000059416,
04.11.2020,ADULT SOCIAL CARE,SUPREME CARE SERVICES LTD,767.79,MH LTS 18-64,HOMECARE - C&V,2103168776,1000059416,
04.11.2020,ADULT SOCIAL CARE,SUPREME CARE SERVICES LTD,855.12,MH LTS 18-64,HOMECARE - C&V,2103158433,1000059416,
04.11.2020,ADULT SOCIAL CARE,SUPREME CARE SERVICES LTD,855.12,MH LTS 18-64,HOMECARE - C&V,2103167519,1000059416,
04.11.2020,ADULT SOCIAL CARE,SUPREME CARE SERVICES LTD,855.12,MH LTS 18-64,HOMECARE - C&V,2103168015,1000059416,
04.11.2020,ADULT SOCIAL CARE,SUPREME CARE SERVICES LTD,885.65,MH LTS 18-64,HOMECARE - C&V,2103168331,1000059416,
04.11.2020,ADULT SOCIAL CARE,SUPREME CARE SERVICES LTD,886.63,MH LTS 18-64,HOMECARE - C&V,2103164895,1000059416,
04.11.2020,ADULT SOCIAL CARE,SUPREME CARE SERVICES LTD,972.85,MH LTS 18-64,HOMECARE - C&V,2103168778,1000059416,
04.11.2020,ADULT SOCIAL CARE,SUPREME CARE SERVICES LTD,253.03,MH LTS 65+,HOMECARE - C&V,2103168394,1000059416,
04.11.2020,ADULT SOCIAL CARE,SUPREME CARE SERVICES LTD,253.16,MH LTS 65+,HOMECARE - C&V,2103168011,1000059416,
04.11.2020,ADULT SOCIAL CARE,SUPREME CARE SERVICES LTD,267.20,MH LTS 65+,HOMECARE - C&V,2103158571,1000059416,
04.11.2020,ADULT SOCIAL CARE,SUPREME CARE SERVICES LTD,267.21,MH LTS 65+,HOMECARE - C&V,2103164927,1000059416,
04.11.2020,ADULT SOCIAL CARE,SUPREME CARE SERVICES LTD,272.80,MH LTS 65+,HOMECARE - C&V,2103164833,1000059416,
04.11.2020,ADULT SOCIAL CARE,SUPREME CARE SERVICES LTD,277.06,MH LTS 65+,HOMECARE - C&V,2103158522,1000059416,
04.11.2020,ADULT SOCIAL CARE,SUPREME CARE SERVICES LTD,279.20,MH LTS 65+,HOMECARE - C&V,2103156599,1000059416,
04.11.2020,ADULT SOCIAL CARE,SUPREME CARE SERVICES LTD,283.56,MH LTS 65+,HOMECARE - C&V,2103167382,1000059416,
04.11.2020,ADULT SOCIAL CARE,SUPREME CARE SERVICES LTD,287.93,MH LTS 65+,HOMECARE - C&V,2103167903,1000059416,
04.11.2020,ADULT SOCIAL CARE,SUPREME CARE SERVICES LTD,287.93,MH LTS 65+,HOMECARE - C&V,2103168552,1000059416,
04.11.2020,ADULT SOCIAL CARE,SUPREME CARE SERVICES LTD,367.40,MH LTS 65+,HOMECARE - C&V,2103167350,1000059416,
04.11.2020,ADULT SOCIAL CARE,SUPREME CARE SERVICES LTD,375.84,MH LTS 65+,HOMECARE - C&V,2103168439,1000059416,
04.11.2020,ADULT SOCIAL CARE,SUPREME CARE SERVICES LTD,375.85,MH LTS 65+,HOMECARE - C&V,2103167607,1000059416,
04.11.2020,ADULT SOCIAL CARE,SUPREME CARE SERVICES LTD,384.21,MH LTS 65+,HOMECARE - C&V,2103167802,1000059416,
04.11.2020,ADULT SOCIAL CARE,SUPREME CARE SERVICES LTD,392.53,MH LTS 65+,HOMECARE - C&V,2103158611,1000059416,
04.11.2020,ADULT SOCIAL CARE,SUPREME CARE SERVICES LTD,400.80,MH LTS 65+,HOMECARE - C&V,2103168069,1000059416,
04.11.2020,ADULT SOCIAL CARE,SUPREME CARE SERVICES LTD,421.73,MH LTS 65+,HOMECARE - C&V,2103168324,1000059416,
04.11.2020,ADULT SOCIAL CARE,SUPREME CARE SERVICES LTD,436.24,MH LTS 65+,HOMECARE - C&V,2103156535,1000059416,
04.11.2020,ADULT SOCIAL CARE,SUPREME CARE SERVICES LTD,436.24,MH LTS 65+,HOMECARE - C&V,2103165957,1000059416,
04.11.2020,ADULT SOCIAL CARE,SUPREME CARE SERVICES LTD,442.56,MH LTS 65+,HOMECARE - C&V,2103167516,1000059416,
04.11.2020,ADULT SOCIAL CARE,SUPREME CARE SERVICES LTD,443.32,MH LTS 65+,HOMECARE - C&V,2103164891,1000059416,
04.11.2020,ADULT SOCIAL CARE,SUPREME CARE SERVICES LTD,450.91,MH LTS 65+,HOMECARE - C&V,2103168596,1000059416,
04.11.2020,ADULT SOCIAL CARE,SUPREME CARE SERVICES LTD,458.07,MH LTS 65+,HOMECARE - C&V,2103167429,1000059416,
04.11.2020,ADULT SOCIAL CARE,SUPREME CARE SERVICES LTD,458.25,MH LTS 65+,HOMECARE - C&V,2103168320,1000059416,
04.11.2020,ADULT SOCIAL CARE,SUPREME CARE SERVICES LTD,463.43,MH LTS 65+,HOMECARE - C&V,2103167809,1000059416,
04.11.2020,ADULT SOCIAL CARE,SUPREME CARE SERVICES LTD,468.87,MH LTS 65+,HOMECARE - C&V,2103158713,1000059416,
04.11.2020,ADULT SOCIAL CARE,SUPREME CARE SERVICES LTD,485.92,MH LTS 65+,HOMECARE - C&V,2103164724,1000059416,
04.11.2020,ADULT SOCIAL CARE,SUPREME CARE SERVICES LTD,488.60,MH LTS 65+,HOMECARE - C&V,2103156474,1000059416,
04.11.2020,ADULT SOCIAL CARE,SUPREME CARE SERVICES LTD,488.60,MH LTS 65+,HOMECARE - C&V,2103167950,1000059416,
04.11.2020,ADULT SOCIAL CARE,SUPREME CARE SERVICES LTD,488.60,MH LTS 65+,HOMECARE - C&V,2103168124,1000059416,
04.11.2020,ADULT SOCIAL CARE,SUPREME CARE SERVICES LTD,492.96,MH LTS 65+,HOMECARE - C&V,2103168631,1000059416,
04.11.2020,ADULT SOCIAL CARE,SUPREME CARE SERVICES LTD,524.28,MH LTS 65+,HOMECARE - C&V,2103164610,1000059416,
04.11.2020,ADULT SOCIAL CARE,SUPREME CARE SERVICES LTD,527.86,MH LTS 65+,HOMECARE - C&V,2103158362,1000059416,
04.11.2020,ADULT SOCIAL CARE,SUPREME CARE SERVICES LTD,615.12,MH LTS 65+,HOMECARE - C&V,2103167579,1000059416,
04.11.2020,ADULT SOCIAL CARE,SUPREME CARE SERVICES LTD,626.58,MH LTS 65+,HOMECARE - C&V,2103158443,1000059416,
04.11.2020,ADULT SOCIAL CARE,SUPREME CARE SERVICES LTD,632.56,MH LTS 65+,HOMECARE - C&V,2103167931,1000059416,
04.11.2020,ADULT SOCIAL CARE,SUPREME CARE SERVICES LTD,689.27,MH LTS 65+,HOMECARE - C&V,2103168377,1000059416,
04.11.2020,ADULT SOCIAL CARE,SUPREME CARE SERVICES LTD,712.02,MH LTS 65+,HOMECARE - C&V,2103158625,1000059416,
04.11.2020,ADULT SOCIAL CARE,SUPREME CARE SERVICES LTD,733.07,MH LTS 65+,HOMECARE - C&V,2103168009,1000059416,
04.11.2020,ADULT SOCIAL CARE,SUPREME CARE SERVICES LTD,754.91,MH LTS 65+,HOMECARE - C&V,2103158553,1000059416,
04.11.2020,ADULT SOCIAL CARE,SUPREME CARE SERVICES LTD,806.48,MH LTS 65+,HOMECARE - C&V,2103164760,1000059416,
04.11.2020,ADULT SOCIAL CARE,SUPREME CARE SERVICES LTD,897.77,MH LTS 65+,HOMECARE - C&V,2103164572,1000059416,
04.11.2020,ADULT SOCIAL CARE,SUPREME CARE SERVICES LTD,901.93,MH LTS 65+,HOMECARE - C&V,2103168697,1000059416,
04.11.2020,ADULT SOCIAL CARE,SUPREME CARE SERVICES LTD,922.83,MH LTS 65+,HOMECARE - C&V,2103158380,1000059416,
04.11.2020,ADULT SOCIAL CARE,SUPREME CARE SERVICES LTD,922.85,MH LTS 65+,HOMECARE - C&V,2103167351,1000059416,
04.11.2020,ADULT SOCIAL CARE,SUPREME CARE SERVICES LTD,939.53,MH LTS 65+,HOMECARE - C&V,2103167685,1000059416,
04.11.2020,ADULT SOCIAL CARE,SUPREME CARE SERVICES LTD,939.54,MH LTS 65+,HOMECARE - C&V,2103168278,1000059416,
04.11.2020,ADULT SOCIAL CARE,SUPREME CARE SERVICES LTD,994.64,MH LTS 65+,HOMECARE - C&V,2103156477,1000059416,
04.11.2020,ADULT SOCIAL CARE,SUPREME CARE SERVICES LTD,994.64,MH LTS 65+,HOMECARE - C&V,2103165956,1000059416,
04.11.2020,ADULT SOCIAL CARE,SUPREME CARE SERVICES LTD,"1,025.25",MH LTS 65+,HOMECARE - C&V,2103167612,1000059416,
04.11.2020,ADULT SOCIAL CARE,SUPREME CARE SERVICES LTD,"1,047.04",MH LTS 65+,HOMECARE - C&V,2103168062,1000059416,
04.11.2020,ADULT SOCIAL CARE,SUPREME CARE SERVICES LTD,"1,090.67",MH LTS 65+,HOMECARE - C&V,2103168771,1000059416,
04.11.2020,ADULT SOCIAL CARE,SUPREME CARE SERVICES LTD,250.51,PHY LTS 18-64,HOMECARE - C&V,2103167963,1000059416,
04.11.2020,ADULT SOCIAL CARE,SUPREME CARE SERVICES LTD,260.01,PHY LTS 18-64,HOMECARE - C&V,2103158425,1000059416,
04.11.2020,ADULT SOCIAL CARE,SUPREME CARE SERVICES LTD,261.80,PHY LTS 18-64,HOMECARE - C&V,2103167997,1000059416,
04.11.2020,ADULT SOCIAL CARE,SUPREME CARE SERVICES LTD,279.17,PHY LTS 18-64,HOMECARE - C&V,2103164562,1000059416,
04.11.2020,ADULT SOCIAL CARE,SUPREME CARE SERVICES LTD,279.20,PHY LTS 18-64,HOMECARE - C&V,2103156549,1000059416,
04.11.2020,ADULT SOCIAL CARE,SUPREME CARE SERVICES LTD,281.32,PHY LTS 18-64,HOMECARE - C&V,2103164834,1000059416,
04.11.2020,ADULT SOCIAL CARE,SUPREME CARE SERVICES LTD,283.56,PHY LTS 18-64,HOMECARE - C&V,2103167606,1000059416,
04.11.2020,ADULT SOCIAL CARE,SUPREME CARE SERVICES LTD,283.56,PHY LTS 18-64,HOMECARE - C&V,2103167715,1000059416,
04.11.2020,ADULT SOCIAL CARE,SUPREME CARE SERVICES LTD,283.56,PHY LTS 18-64,HOMECARE - C&V,2103168395,1000059416,
04.11.2020,ADULT SOCIAL CARE,SUPREME CARE SERVICES LTD,283.56,PHY LTS 18-64,HOMECARE - C&V,2103168683,1000059416,
04.11.2020,ADULT SOCIAL CARE,SUPREME CARE SERVICES LTD,289.92,PHY LTS 18-64,HOMECARE - C&V,2103164622,1000059416,
04.11.2020,ADULT SOCIAL CARE,SUPREME CARE SERVICES LTD,289.92,PHY LTS 18-64,HOMECARE - C&V,2103164904,1000059416,
04.11.2020,ADULT SOCIAL CARE,SUPREME CARE SERVICES LTD,293.85,PHY LTS 18-64,HOMECARE - C&V,2103164601,1000059416,
04.11.2020,ADULT SOCIAL CARE,SUPREME CARE SERVICES LTD,294.15,PHY LTS 18-64,HOMECARE - C&V,2103164781,1000059416,
04.11.2020,ADULT SOCIAL CARE,SUPREME CARE SERVICES LTD,296.69,PHY LTS 18-64,HOMECARE - C&V,2103168014,1000059416,
04.11.2020,ADULT SOCIAL CARE,SUPREME CARE SERVICES LTD,296.78,PHY LTS 18-64,HOMECARE - C&V,2103168212,1000059416,
04.11.2020,ADULT SOCIAL CARE,SUPREME CARE SERVICES LTD,302.70,PHY LTS 18-64,HOMECARE - C&V,2103158387,1000059416,
04.11.2020,ADULT SOCIAL CARE,SUPREME CARE SERVICES LTD,305.37,PHY LTS 18-64,HOMECARE - C&V,2103168032,1000059416,
04.11.2020,ADULT SOCIAL CARE,SUPREME CARE SERVICES LTD,305.44,PHY LTS 18-64,HOMECARE - C&V,2103168411,1000059416,
04.11.2020,ADULT SOCIAL CARE,SUPREME CARE SERVICES LTD,305.44,PHY LTS 18-64,HOMECARE - C&V,2103168610,1000059416,
04.11.2020,ADULT SOCIAL CARE,SUPREME CARE SERVICES LTD,314.24,PHY LTS 18-64,HOMECARE - C&V,2103167462,1000059416,
04.11.2020,ADULT SOCIAL CARE,SUPREME CARE SERVICES LTD,314.24,PHY LTS 18-64,HOMECARE - C&V,2103167787,1000059416,
04.11.2020,ADULT SOCIAL CARE,SUPREME CARE SERVICES LTD,318.52,PHY LTS 18-64,HOMECARE - C&V,2103167670,1000059416,
04.11.2020,ADULT SOCIAL CARE,SUPREME CARE SERVICES LTD,319.15,PHY LTS 18-64,HOMECARE - C&V,2103168524,1000059416,
04.11.2020,ADULT SOCIAL CARE,SUPREME CARE SERVICES LTD,321.80,PHY LTS 18-64,HOMECARE - C&V,2103164525,1000059416,
04.11.2020,ADULT SOCIAL CARE,SUPREME CARE SERVICES LTD,322.88,PHY LTS 18-64,HOMECARE - C&V,2103168024,1000059416,
04.11.2020,ADULT SOCIAL CARE,SUPREME CARE SERVICES LTD,329.94,PHY LTS 18-64,HOMECARE - C&V,2103168185,1000059416,
04.11.2020,ADULT SOCIAL CARE,SUPREME CARE SERVICES LTD,334.88,PHY LTS 18-64,HOMECARE - C&V,2103158633,1000059416,
04.11.2020,ADULT SOCIAL CARE,SUPREME CARE SERVICES LTD,338.31,PHY LTS 18-64,HOMECARE - C&V,2103168590,1000059416,
04.11.2020,ADULT SOCIAL CARE,SUPREME CARE SERVICES LTD,342.45,PHY LTS 18-64,HOMECARE - C&V,2103167557,1000059416,
04.11.2020,ADULT SOCIAL CARE,SUPREME CARE SERVICES LTD,344.75,PHY LTS 18-64,HOMECARE - C&V,2103168281,1000059416,
04.11.2020,ADULT SOCIAL CARE,SUPREME CARE SERVICES LTD,345.26,PHY LTS 18-64,HOMECARE - C&V,2103158609,1000059416,
04.11.2020,ADULT SOCIAL CARE,SUPREME CARE SERVICES LTD,349.52,PHY LTS 18-64,HOMECARE - C&V,2103164618,1000059416,
04.11.2020,ADULT SOCIAL CARE,SUPREME CARE SERVICES LTD,350.83,PHY LTS 18-64,HOMECARE - C&V,2103158475,1000059416,
04.11.2020,ADULT SOCIAL CARE,SUPREME CARE SERVICES LTD,350.84,PHY LTS 18-64,HOMECARE - C&V,2103167857,1000059416,
04.11.2020,ADULT SOCIAL CARE,SUPREME CARE SERVICES LTD,353.48,PHY LTS 18-64,HOMECARE - C&V,2103168380,1000059416,
04.11.2020,ADULT SOCIAL CARE,SUPREME CARE SERVICES LTD,355.00,PHY LTS 18-64,HOMECARE - C&V,2103167558,1000059416,
04.11.2020,ADULT SOCIAL CARE,SUPREME CARE SERVICES LTD,357.79,PHY LTS 18-64,HOMECARE - C&V,2103168348,1000059416,
04.11.2020,ADULT SOCIAL CARE,SUPREME CARE SERVICES LTD,357.92,PHY LTS 18-64,HOMECARE - C&V,2103168169,1000059416,
04.11.2020,ADULT SOCIAL CARE,SUPREME CARE SERVICES LTD,358.14,PHY LTS 18-64,HOMECARE - C&V,2103164652,1000059416,
04.11.2020,ADULT SOCIAL CARE,SUPREME CARE SERVICES LTD,362.08,PHY LTS 18-64,HOMECARE - C&V,2103168059,1000059416,
04.11.2020,ADULT SOCIAL CARE,SUPREME CARE SERVICES LTD,362.38,PHY LTS 18-64,HOMECARE - C&V,2103164749,1000059416,
04.11.2020,ADULT SOCIAL CARE,SUPREME CARE SERVICES LTD,366.44,PHY LTS 18-64,HOMECARE - C&V,2103156524,1000059416,
04.11.2020,ADULT SOCIAL CARE,SUPREME CARE SERVICES LTD,366.44,PHY LTS 18-64,HOMECARE - C&V,2103156563,1000059416,
04.11.2020,ADULT SOCIAL CARE,SUPREME CARE SERVICES LTD,366.44,PHY LTS 18-64,HOMECARE - C&V,2103156576,1000059416,
04.11.2020,ADULT SOCIAL CARE,SUPREME CARE SERVICES LTD,366.44,PHY LTS 18-64,HOMECARE - C&V,2103165983,1000059416,
04.11.2020,ADULT SOCIAL CARE,SUPREME CARE SERVICES LTD,366.45,PHY LTS 18-64,HOMECARE - C&V,2103168587,1000059416,
04.11.2020,ADULT SOCIAL CARE,SUPREME CARE SERVICES LTD,366.52,PHY LTS 18-64,HOMECARE - C&V,2103158458,1000059416,
04.11.2020,ADULT SOCIAL CARE,SUPREME CARE SERVICES LTD,366.52,PHY LTS 18-64,HOMECARE - C&V,2103158687,1000059416,
04.11.2020,ADULT SOCIAL CARE,SUPREME CARE SERVICES LTD,366.52,PHY LTS 18-64,HOMECARE - C&V,2103167358,1000059416,
04.11.2020,ADULT SOCIAL CARE,SUPREME CARE SERVICES LTD,366.52,PHY LTS 18-64,HOMECARE - C&V,2103167593,1000059416,
04.11.2020,ADULT SOCIAL CARE,SUPREME CARE SERVICES LTD,366.52,PHY LTS 18-64,HOMECARE - C&V,2103168197,1000059416,
04.11.2020,ADULT SOCIAL CARE,SUPREME CARE SERVICES LTD,366.52,PHY LTS 18-64,HOMECARE - C&V,2103168608,1000059416,
04.11.2020,ADULT SOCIAL CARE,SUPREME CARE SERVICES LTD,366.62,PHY LTS 18-64,HOMECARE - C&V,2103164721,1000059416,
04.11.2020,ADULT SOCIAL CARE,SUPREME CARE SERVICES LTD,366.64,PHY LTS 18-64,HOMECARE - C&V,2103164918,1000059416,
04.11.2020,ADULT SOCIAL CARE,SUPREME CARE SERVICES LTD,370.81,PHY LTS 18-64,HOMECARE - C&V,2103168392,1000059416,
04.11.2020,ADULT SOCIAL CARE,SUPREME CARE SERVICES LTD,370.87,PHY LTS 18-64,HOMECARE - C&V,2103167831,1000059416,
04.11.2020,ADULT SOCIAL CARE,SUPREME CARE SERVICES LTD,370.88,PHY LTS 18-64,HOMECARE - C&V,2103168483,1000059416,
04.11.2020,ADULT SOCIAL CARE,SUPREME CARE SERVICES LTD,370.90,PHY LTS 18-64,HOMECARE - C&V,2103164585,1000059416,
04.11.2020,ADULT SOCIAL CARE,SUPREME CARE SERVICES LTD,374.88,PHY LTS 18-64,HOMECARE - C&V,2103167514,1000059416,
04.11.2020,ADULT SOCIAL CARE,SUPREME CARE SERVICES LTD,375.17,PHY LTS 18-64,HOMECARE - C&V,2103167651,1000059416,
04.11.2020,ADULT SOCIAL CARE,SUPREME CARE SERVICES LTD,375.17,PHY LTS 18-64,HOMECARE - C&V,2103167856,1000059416,
04.11.2020,ADULT SOCIAL CARE,SUPREME CARE SERVICES LTD,375.23,PHY LTS 18-64,HOMECARE - C&V,2103168330,1000059416,
04.11.2020,ADULT SOCIAL CARE,SUPREME CARE SERVICES LTD,375.24,PHY LTS 18-64,HOMECARE - C&V,2103158449,1000059416,
04.11.2020,ADULT SOCIAL CARE,SUPREME CARE SERVICES LTD,379.60,PHY LTS 18-64,HOMECARE - C&V,2103167774,1000059416,
04.11.2020,ADULT SOCIAL CARE,SUPREME CARE SERVICES LTD,383.95,PHY LTS 18-64,HOMECARE - C&V,2103168303,1000059416,
04.11.2020,ADULT SOCIAL CARE,SUPREME CARE SERVICES LTD,383.96,PHY LTS 18-64,HOMECARE - C&V,2103158382,1000059416,
04.11.2020,ADULT SOCIAL CARE,SUPREME CARE SERVICES LTD,383.96,PHY LTS 18-64,HOMECARE - C&V,2103167620,1000059416,
04.11.2020,ADULT SOCIAL CARE,SUPREME CARE SERVICES LTD,383.97,PHY LTS 18-64,HOMECARE - C&V,2103168435,1000059416,
04.11.2020,ADULT SOCIAL CARE,SUPREME CARE SERVICES LTD,388.30,PHY LTS 18-64,HOMECARE - C&V,2103167986,1000059416,
04.11.2020,ADULT SOCIAL CARE,SUPREME CARE SERVICES LTD,388.36,PHY LTS 18-64,HOMECARE - C&V,2103168735,1000059416,
04.11.2020,ADULT SOCIAL CARE,SUPREME CARE SERVICES LTD,397.03,PHY LTS 18-64,HOMECARE - C&V,2103168311,1000059416,
04.11.2020,ADULT SOCIAL CARE,SUPREME CARE SERVICES LTD,397.04,PHY LTS 18-64,HOMECARE - C&V,2103168667,1000059416,
04.11.2020,ADULT SOCIAL CARE,SUPREME CARE SERVICES LTD,401.40,PHY LTS 18-64,HOMECARE - C&V,2103167540,1000059416,
04.11.2020,ADULT SOCIAL CARE,SUPREME CARE SERVICES LTD,410.14,PHY LTS 18-64,HOMECARE - C&V,2103158715,1000059416,
04.11.2020,ADULT SOCIAL CARE,SUPREME CARE SERVICES LTD,413.53,PHY LTS 18-64,HOMECARE - C&V,2103164852,1000059416,
04.11.2020,ADULT SOCIAL CARE,SUPREME CARE SERVICES LTD,413.64,PHY LTS 18-64,HOMECARE - C&V,2103164824,1000059416,
04.11.2020,ADULT SOCIAL CARE,SUPREME CARE SERVICES LTD,414.49,PHY LTS 18-64,HOMECARE - C&V,2103168431,1000059416,
04.11.2020,ADULT SOCIAL CARE,SUPREME CARE SERVICES LTD,423.23,PHY LTS 18-64,HOMECARE - C&V,2103167736,1000059416,
04.11.2020,ADULT SOCIAL CARE,SUPREME CARE SERVICES LTD,427.57,PHY LTS 18-64,HOMECARE - C&V,2103167550,1000059416,
04.11.2020,ADULT SOCIAL CARE,SUPREME CARE SERVICES LTD,430.58,PHY LTS 18-64,HOMECARE - C&V,2103164686,1000059416,
04.11.2020,ADULT SOCIAL CARE,SUPREME CARE SERVICES LTD,436.24,PHY LTS 18-64,HOMECARE - C&V,2103156494,1000059416,
04.11.2020,ADULT SOCIAL CARE,SUPREME CARE SERVICES LTD,436.24,PHY LTS 18-64,HOMECARE - C&V,2103156504,1000059416,
04.11.2020,ADULT SOCIAL CARE,SUPREME CARE SERVICES LTD,436.24,PHY LTS 18-64,HOMECARE - C&V,2103166000,1000059416,
04.11.2020,ADULT SOCIAL CARE,SUPREME CARE SERVICES LTD,436.32,PHY LTS 18-64,HOMECARE - C&V,2103168606,1000059416,
04.11.2020,ADULT SOCIAL CARE,SUPREME CARE SERVICES LTD,438.10,PHY LTS 18-64,HOMECARE - C&V,2103168546,1000059416,
04.11.2020,ADULT SOCIAL CARE,SUPREME CARE SERVICES LTD,439.10,PHY LTS 18-64,HOMECARE - C&V,2103158722,1000059416,
04.11.2020,ADULT SOCIAL CARE,SUPREME CARE SERVICES LTD,440.69,PHY LTS 18-64,HOMECARE - C&V,2103168333,1000059416,
04.11.2020,ADULT SOCIAL CARE,SUPREME CARE SERVICES LTD,442.65,PHY LTS 18-64,HOMECARE - C&V,2103164928,1000059416,
04.11.2020,ADULT SOCIAL CARE,SUPREME CARE SERVICES LTD,449.38,PHY LTS 18-64,HOMECARE - C&V,2103167712,1000059416,
04.11.2020,ADULT SOCIAL CARE,SUPREME CARE SERVICES LTD,449.40,PHY LTS 18-64,HOMECARE - C&V,2103167524,1000059416,
04.11.2020,ADULT SOCIAL CARE,SUPREME CARE SERVICES LTD,449.40,PHY LTS 18-64,HOMECARE - C&V,2103168154,1000059416,
04.11.2020,ADULT SOCIAL CARE,SUPREME CARE SERVICES LTD,450.92,PHY LTS 18-64,HOMECARE - C&V,2103167956,1000059416,
04.11.2020,ADULT SOCIAL CARE,SUPREME CARE SERVICES LTD,455.17,PHY LTS 18-64,HOMECARE - C&V,2103168131,1000059416,
04.11.2020,ADULT SOCIAL CARE,SUPREME CARE SERVICES LTD,463.55,PHY LTS 18-64,HOMECARE - C&V,2103168556,1000059416,
04.11.2020,ADULT SOCIAL CARE,SUPREME CARE SERVICES LTD,466.94,PHY LTS 18-64,HOMECARE - C&V,2103168091,1000059416,
04.11.2020,ADULT SOCIAL CARE,SUPREME CARE SERVICES LTD,469.03,PHY LTS 18-64,HOMECARE - C&V,2103158734,1000059416,
04.11.2020,ADULT SOCIAL CARE,SUPREME CARE SERVICES LTD,475.58,PHY LTS 18-64,HOMECARE - C&V,2103167813,1000059416,
04.11.2020,ADULT SOCIAL CARE,SUPREME CARE SERVICES LTD,477.68,PHY LTS 18-64,HOMECARE - C&V,2103158615,1000059416,
04.11.2020,ADULT SOCIAL CARE,SUPREME CARE SERVICES LTD,481.71,PHY LTS 18-64,HOMECARE - C&V,2103164908,1000059416,
04.11.2020,ADULT SOCIAL CARE,SUPREME CARE SERVICES LTD,484.28,PHY LTS 18-64,HOMECARE - C&V,2103158516,1000059416,
04.11.2020,ADULT SOCIAL CARE,SUPREME CARE SERVICES LTD,484.32,PHY LTS 18-64,HOMECARE - C&V,2103164552,1000059416,
04.11.2020,ADULT SOCIAL CARE,SUPREME CARE SERVICES LTD,488.60,PHY LTS 18-64,HOMECARE - C&V,2103165994,1000059416,
04.11.2020,ADULT SOCIAL CARE,SUPREME CARE SERVICES LTD,488.86,PHY LTS 18-64,HOMECARE - C&V,2103167908,1000059416,
04.11.2020,ADULT SOCIAL CARE,SUPREME CARE SERVICES LTD,497.33,PHY LTS 18-64,HOMECARE - C&V,2103167768,1000059416,
04.11.2020,ADULT SOCIAL CARE,SUPREME CARE SERVICES LTD,502.52,PHY LTS 18-64,HOMECARE - C&V,2103168583,1000059416,
04.11.2020,ADULT SOCIAL CARE,SUPREME CARE SERVICES LTD,506.32,PHY LTS 18-64,HOMECARE - C&V,2103167436,1000059416,
04.11.2020,ADULT SOCIAL CARE,SUPREME CARE SERVICES LTD,507.50,PHY LTS 18-64,HOMECARE - C&V,2103164626,1000059416,
04.11.2020,ADULT SOCIAL CARE,SUPREME CARE SERVICES LTD,510.57,PHY LTS 18-64,HOMECARE - C&V,2103158513,1000059416,
04.11.2020,ADULT SOCIAL CARE,SUPREME CARE SERVICES LTD,515.03,PHY LTS 18-64,HOMECARE - C&V,2103168364,1000059416,
04.11.2020,ADULT SOCIAL CARE,SUPREME CARE SERVICES LTD,519.40,PHY LTS 18-64,HOMECARE - C&V,2103167999,1000059416,
04.11.2020,ADULT SOCIAL CARE,SUPREME CARE SERVICES LTD,519.40,PHY LTS 18-64,HOMECARE - C&V,2103168638,1000059416,
04.11.2020,ADULT SOCIAL CARE,SUPREME CARE SERVICES LTD,520.17,PHY LTS 18-64,HOMECARE - C&V,2103164563,1000059416,
04.11.2020,ADULT SOCIAL CARE,SUPREME CARE SERVICES LTD,520.31,PHY LTS 18-64,HOMECARE - C&V,2103158369,1000059416,
04.11.2020,ADULT SOCIAL CARE,SUPREME CARE SERVICES LTD,523.76,PHY LTS 18-64,HOMECARE - C&V,2103167472,1000059416,
04.11.2020,ADULT SOCIAL CARE,SUPREME CARE SERVICES LTD,541.12,PHY LTS 18-64,HOMECARE - C&V,2103168345,1000059416,
04.11.2020,ADULT SOCIAL CARE,SUPREME CARE SERVICES LTD,545.44,PHY LTS 18-64,HOMECARE - C&V,2103167587,1000059416,
04.11.2020,ADULT SOCIAL CARE,SUPREME CARE SERVICES LTD,554.33,PHY LTS 18-64,HOMECARE - C&V,2103164846,1000059416,
04.11.2020,ADULT SOCIAL CARE,SUPREME CARE SERVICES LTD,558.59,PHY LTS 18-64,HOMECARE - C&V,2103168707,1000059416,
04.11.2020,ADULT SOCIAL CARE,SUPREME CARE SERVICES LTD,567.32,PHY LTS 18-64,HOMECARE - C&V,2103168779,1000059416,
04.11.2020,ADULT SOCIAL CARE,SUPREME CARE SERVICES LTD,567.85,PHY LTS 18-64,HOMECARE - C&V,2103167695,1000059416,
04.11.2020,ADULT SOCIAL CARE,SUPREME CARE SERVICES LTD,571.33,PHY LTS 18-64,HOMECARE - C&V,2103164738,1000059416,
04.11.2020,ADULT SOCIAL CARE,SUPREME CARE SERVICES LTD,575.84,PHY LTS 18-64,HOMECARE - C&V,2103158708,1000059416,
04.11.2020,ADULT SOCIAL CARE,SUPREME CARE SERVICES LTD,580.22,PHY LTS 18-64,HOMECARE - C&V,2103167569,1000059416,
04.11.2020,ADULT SOCIAL CARE,SUPREME CARE SERVICES LTD,580.34,PHY LTS 18-64,HOMECARE - C&V,2103167362,1000059416,
04.11.2020,ADULT SOCIAL CARE,SUPREME CARE SERVICES LTD,583.33,PHY LTS 18-64,HOMECARE - C&V,2103156491,1000059416,
04.11.2020,ADULT SOCIAL CARE,SUPREME CARE SERVICES LTD,584.77,PHY LTS 18-64,HOMECARE - C&V,2103167892,1000059416,
04.11.2020,ADULT SOCIAL CARE,SUPREME CARE SERVICES LTD,587.52,PHY LTS 18-64,HOMECARE - C&V,2103167332,1000059416,
04.11.2020,ADULT SOCIAL CARE,SUPREME CARE SERVICES LTD,587.53,PHY LTS 18-64,HOMECARE - C&V,2103164703,1000059416,
04.11.2020,ADULT SOCIAL CARE,SUPREME CARE SERVICES LTD,588.95,PHY LTS 18-64,HOMECARE - C&V,2103156573,1000059416,
04.11.2020,ADULT SOCIAL CARE,SUPREME CARE SERVICES LTD,589.07,PHY LTS 18-64,HOMECARE - C&V,2103168487,1000059416,
04.11.2020,ADULT SOCIAL CARE,SUPREME CARE SERVICES LTD,589.94,PHY LTS 18-64,HOMECARE - C&V,2103164849,1000059416,
04.11.2020,ADULT SOCIAL CARE,SUPREME CARE SERVICES LTD,593.46,PHY LTS 18-64,HOMECARE - C&V,2103168746,1000059416,
04.11.2020,ADULT SOCIAL CARE,SUPREME CARE SERVICES LTD,593.49,PHY LTS 18-64,HOMECARE - C&V,2103158408,1000059416,
04.11.2020,ADULT SOCIAL CARE,SUPREME CARE SERVICES LTD,593.51,PHY LTS 18-64,HOMECARE - C&V,2103167353,1000059416,
04.11.2020,ADULT SOCIAL CARE,SUPREME CARE SERVICES LTD,601.76,PHY LTS 18-64,HOMECARE - C&V,2103156560,1000059416,
04.11.2020,ADULT SOCIAL CARE,SUPREME CARE SERVICES LTD,602.24,PHY LTS 18-64,HOMECARE - C&V,2103167731,1000059416,
04.11.2020,ADULT SOCIAL CARE,SUPREME CARE SERVICES LTD,602.57,PHY LTS 18-64,HOMECARE - C&V,2103164812,1000059416,
04.11.2020,ADULT SOCIAL CARE,SUPREME CARE SERVICES LTD,609.31,PHY LTS 18-64,HOMECARE - C&V,2103168508,1000059416,
04.11.2020,ADULT SOCIAL CARE,SUPREME CARE SERVICES LTD,609.67,PHY LTS 18-64,HOMECARE - C&V,2103167684,1000059416,
04.11.2020,ADULT SOCIAL CARE,SUPREME CARE SERVICES LTD,610.76,PHY LTS 18-64,HOMECARE - C&V,2103156558,1000059416,
04.11.2020,ADULT SOCIAL CARE,SUPREME CARE SERVICES LTD,610.76,PHY LTS 18-64,HOMECARE - C&V,2103156574,1000059416,
04.11.2020,ADULT SOCIAL CARE,SUPREME CARE SERVICES LTD,610.76,PHY LTS 18-64,HOMECARE - C&V,2103156597,1000059416,
04.11.2020,ADULT SOCIAL CARE,SUPREME CARE SERVICES LTD,610.76,PHY LTS 18-64,HOMECARE - C&V,2103165968,1000059416,
04.11.2020,ADULT SOCIAL CARE,SUPREME CARE SERVICES LTD,610.76,PHY LTS 18-64,HOMECARE - C&V,2103165997,1000059416,
04.11.2020,ADULT SOCIAL CARE,SUPREME CARE SERVICES LTD,610.76,PHY LTS 18-64,HOMECARE - C&V,2103166026,1000059416,
04.11.2020,ADULT SOCIAL CARE,SUPREME CARE SERVICES LTD,610.76,PHY LTS 18-64,HOMECARE - C&V,2103168477,1000059416,
04.11.2020,ADULT SOCIAL CARE,SUPREME CARE SERVICES LTD,610.82,PHY LTS 18-64,HOMECARE - C&V,2103164810,1000059416,
04.11.2020,ADULT SOCIAL CARE,SUPREME CARE SERVICES LTD,610.88,PHY LTS 18-64,HOMECARE - C&V,2103167825,1000059416,
04.11.2020,ADULT SOCIAL CARE,SUPREME CARE SERVICES LTD,610.96,PHY LTS 18-64,HOMECARE - C&V,2103167465,1000059416,
04.11.2020,ADULT SOCIAL CARE,SUPREME CARE SERVICES LTD,615.27,PHY LTS 18-64,HOMECARE - C&V,2103168343,1000059416,
04.11.2020,ADULT SOCIAL CARE,SUPREME CARE SERVICES LTD,615.32,PHY LTS 18-64,HOMECARE - C&V,2103168387,1000059416,
04.11.2020,ADULT SOCIAL CARE,SUPREME CARE SERVICES LTD,615.32,PHY LTS 18-64,HOMECARE - C&V,2103168699,1000059416,
04.11.2020,ADULT SOCIAL CARE,SUPREME CARE SERVICES LTD,617.92,PHY LTS 18-64,HOMECARE - C&V,2103168594,1000059416,
04.11.2020,ADULT SOCIAL CARE,SUPREME CARE SERVICES LTD,619.47,PHY LTS 18-64,HOMECARE - C&V,2103168407,1000059416,
04.11.2020,ADULT SOCIAL CARE,SUPREME CARE SERVICES LTD,628.43,PHY LTS 18-64,HOMECARE - C&V,2103168203,1000059416,
04.11.2020,ADULT SOCIAL CARE,SUPREME CARE SERVICES LTD,630.55,PHY LTS 18-64,HOMECARE - C&V,2103164935,1000059416,
04.11.2020,ADULT SOCIAL CARE,SUPREME CARE SERVICES LTD,630.85,PHY LTS 18-64,HOMECARE - C&V,2103164593,1000059416,
04.11.2020,ADULT SOCIAL CARE,SUPREME CARE SERVICES LTD,632.75,PHY LTS 18-64,HOMECARE - C&V,2103168614,1000059416,
04.11.2020,ADULT SOCIAL CARE,SUPREME CARE SERVICES LTD,634.73,PHY LTS 18-64,HOMECARE - C&V,2103167397,1000059416,
04.11.2020,ADULT SOCIAL CARE,SUPREME CARE SERVICES LTD,634.82,PHY LTS 18-64,HOMECARE - C&V,2103168370,1000059416,
04.11.2020,ADULT SOCIAL CARE,SUPREME CARE SERVICES LTD,637.09,PHY LTS 18-64,HOMECARE - C&V,2103168438,1000059416,
04.11.2020,ADULT SOCIAL CARE,SUPREME CARE SERVICES LTD,643.01,PHY LTS 18-64,HOMECARE - C&V,2103164778,1000059416,
04.11.2020,ADULT SOCIAL CARE,SUPREME CARE SERVICES LTD,644.87,PHY LTS 18-64,HOMECARE - C&V,2103167716,1000059416,
04.11.2020,ADULT SOCIAL CARE,SUPREME CARE SERVICES LTD,645.34,PHY LTS 18-64,HOMECARE - C&V,2103167783,1000059416,
04.11.2020,ADULT SOCIAL CARE,SUPREME CARE SERVICES LTD,645.84,PHY LTS 18-64,HOMECARE - C&V,2103168232,1000059416,
04.11.2020,ADULT SOCIAL CARE,SUPREME CARE SERVICES LTD,650.00,PHY LTS 18-64,HOMECARE - C&V,2103167582,1000059416,
04.11.2020,ADULT SOCIAL CARE,SUPREME CARE SERVICES LTD,651.46,PHY LTS 18-64,HOMECARE - C&V,2103168087,1000059416,
04.11.2020,ADULT SOCIAL CARE,SUPREME CARE SERVICES LTD,654.47,PHY LTS 18-64,HOMECARE - C&V,2103158512,1000059416,
04.11.2020,ADULT SOCIAL CARE,SUPREME CARE SERVICES LTD,658.91,PHY LTS 18-64,HOMECARE - C&V,2103168413,1000059416,
04.11.2020,ADULT SOCIAL CARE,SUPREME CARE SERVICES LTD,658.93,PHY LTS 18-64,HOMECARE - C&V,2103158435,1000059416,
04.11.2020,ADULT SOCIAL CARE,SUPREME CARE SERVICES LTD,658.95,PHY LTS 18-64,HOMECARE - C&V,2103167585,1000059416,
04.11.2020,ADULT SOCIAL CARE,SUPREME CARE SERVICES LTD,659.79,PHY LTS 18-64,HOMECARE - C&V,2103168696,1000059416,
04.11.2020,ADULT SOCIAL CARE,SUPREME CARE SERVICES LTD,663.30,PHY LTS 18-64,HOMECARE - C&V,2103167933,1000059416,
04.11.2020,ADULT SOCIAL CARE,SUPREME CARE SERVICES LTD,665.08,PHY LTS 18-64,HOMECARE - C&V,2103158446,1000059416,
04.11.2020,ADULT SOCIAL CARE,SUPREME CARE SERVICES LTD,665.16,PHY LTS 18-64,HOMECARE - C&V,2103164765,1000059416,
04.11.2020,ADULT SOCIAL CARE,SUPREME CARE SERVICES LTD,667.46,PHY LTS 18-64,HOMECARE - C&V,2103158383,1000059416,
04.11.2020,ADULT SOCIAL CARE,SUPREME CARE SERVICES LTD,667.63,PHY LTS 18-64,HOMECARE - C&V,2103167528,1000059416,
04.11.2020,ADULT SOCIAL CARE,SUPREME CARE SERVICES LTD,667.69,PHY LTS 18-64,HOMECARE - C&V,2103158486,1000059416,
04.11.2020,ADULT SOCIAL CARE,SUPREME CARE SERVICES LTD,671.82,PHY LTS 18-64,HOMECARE - C&V,2103168537,1000059416,
04.11.2020,ADULT SOCIAL CARE,SUPREME CARE SERVICES LTD,671.99,PHY LTS 18-64,HOMECARE - C&V,2103167489,1000059416,
04.11.2020,ADULT SOCIAL CARE,SUPREME CARE SERVICES LTD,673.63,PHY LTS 18-64,HOMECARE - C&V,2103158488,1000059416,
04.11.2020,ADULT SOCIAL CARE,SUPREME CARE SERVICES LTD,673.74,PHY LTS 18-64,HOMECARE - C&V,2103158658,1000059416,
04.11.2020,ADULT SOCIAL CARE,SUPREME CARE SERVICES LTD,676.34,PHY LTS 18-64,HOMECARE - C&V,2103167525,1000059416,
04.11.2020,ADULT SOCIAL CARE,SUPREME CARE SERVICES LTD,676.40,PHY LTS 18-64,HOMECARE - C&V,2103158545,1000059416,
04.11.2020,ADULT SOCIAL CARE,SUPREME CARE SERVICES LTD,680.55,PHY LTS 18-64,HOMECARE - C&V,2103168112,1000059416,
04.11.2020,ADULT SOCIAL CARE,SUPREME CARE SERVICES LTD,680.56,PHY LTS 18-64,HOMECARE - C&V,2103156594,1000059416,
04.11.2020,ADULT SOCIAL CARE,SUPREME CARE SERVICES LTD,680.56,PHY LTS 18-64,HOMECARE - C&V,2103165963,1000059416,
04.11.2020,ADULT SOCIAL CARE,SUPREME CARE SERVICES LTD,680.76,PHY LTS 18-64,HOMECARE - C&V,2103168701,1000059416,
04.11.2020,ADULT SOCIAL CARE,SUPREME CARE SERVICES LTD,681.54,PHY LTS 18-64,HOMECARE - C&V,2103164768,1000059416,
04.11.2020,ADULT SOCIAL CARE,SUPREME CARE SERVICES LTD,686.34,PHY LTS 18-64,HOMECARE - C&V,2103164916,1000059416,
04.11.2020,ADULT SOCIAL CARE,SUPREME CARE SERVICES LTD,686.46,PHY LTS 18-64,HOMECARE - C&V,2103164759,1000059416,
04.11.2020,ADULT SOCIAL CARE,SUPREME CARE SERVICES LTD,686.47,PHY LTS 18-64,HOMECARE - C&V,2103164751,1000059416,
04.11.2020,ADULT SOCIAL CARE,SUPREME CARE SERVICES LTD,686.47,PHY LTS 18-64,HOMECARE - C&V,2103164811,1000059416,
04.11.2020,ADULT SOCIAL CARE,SUPREME CARE SERVICES LTD,687.70,PHY LTS 18-64,HOMECARE - C&V,2103158465,1000059416,
04.11.2020,ADULT SOCIAL CARE,SUPREME CARE SERVICES LTD,698.20,PHY LTS 18-64,HOMECARE - C&V,2103168566,1000059416,
04.11.2020,ADULT SOCIAL CARE,SUPREME CARE SERVICES LTD,698.20,PHY LTS 18-64,HOMECARE - C&V,2103168744,1000059416,
04.11.2020,ADULT SOCIAL CARE,SUPREME CARE SERVICES LTD,702.56,PHY LTS 18-64,HOMECARE - C&V,2103168485,1000059416,
04.11.2020,ADULT SOCIAL CARE,SUPREME CARE SERVICES LTD,702.57,PHY LTS 18-64,HOMECARE - C&V,2103167980,1000059416,
04.11.2020,ADULT SOCIAL CARE,SUPREME CARE SERVICES LTD,706.77,PHY LTS 18-64,HOMECARE - C&V,2103158540,1000059416,
04.11.2020,ADULT SOCIAL CARE,SUPREME CARE SERVICES LTD,706.91,PHY LTS 18-64,HOMECARE - C&V,2103168720,1000059416,
04.11.2020,ADULT SOCIAL CARE,SUPREME CARE SERVICES LTD,711.28,PHY LTS 18-64,HOMECARE - C&V,2103168297,1000059416,
04.11.2020,ADULT SOCIAL CARE,SUPREME CARE SERVICES LTD,715.65,PHY LTS 18-64,HOMECARE - C&V,2103168749,1000059416,
04.11.2020,ADULT SOCIAL CARE,SUPREME CARE SERVICES LTD,720.00,PHY LTS 18-64,HOMECARE - C&V,2103168337,1000059416,
04.11.2020,ADULT SOCIAL CARE,SUPREME CARE SERVICES LTD,720.03,PHY LTS 18-64,HOMECARE - C&V,2103167677,1000059416,
04.11.2020,ADULT SOCIAL CARE,SUPREME CARE SERVICES LTD,722.35,PHY LTS 18-64,HOMECARE - C&V,2103167573,1000059416,
04.11.2020,ADULT SOCIAL CARE,SUPREME CARE SERVICES LTD,722.41,PHY LTS 18-64,HOMECARE - C&V,2103167333,1000059416,
04.11.2020,ADULT SOCIAL CARE,SUPREME CARE SERVICES LTD,724.34,PHY LTS 18-64,HOMECARE - C&V,2103167694,1000059416,
04.11.2020,ADULT SOCIAL CARE,SUPREME CARE SERVICES LTD,724.36,PHY LTS 18-64,HOMECARE - C&V,2103167930,1000059416,
04.11.2020,ADULT SOCIAL CARE,SUPREME CARE SERVICES LTD,724.36,PHY LTS 18-64,HOMECARE - C&V,2103168161,1000059416,
04.11.2020,ADULT SOCIAL CARE,SUPREME CARE SERVICES LTD,724.38,PHY LTS 18-64,HOMECARE - C&V,2103167541,1000059416,
04.11.2020,ADULT SOCIAL CARE,SUPREME CARE SERVICES LTD,728.94,PHY LTS 18-64,HOMECARE - C&V,2103164757,1000059416,
04.11.2020,ADULT SOCIAL CARE,SUPREME CARE SERVICES LTD,737.43,PHY LTS 18-64,HOMECARE - C&V,2103167363,1000059416,
04.11.2020,ADULT SOCIAL CARE,SUPREME CARE SERVICES LTD,737.62,PHY LTS 18-64,HOMECARE - C&V,2103164900,1000059416,
04.11.2020,ADULT SOCIAL CARE,SUPREME CARE SERVICES LTD,741.79,PHY LTS 18-64,HOMECARE - C&V,2103167522,1000059416,
04.11.2020,ADULT SOCIAL CARE,SUPREME CARE SERVICES LTD,743.28,PHY LTS 18-64,HOMECARE - C&V,2103168315,1000059416,
04.11.2020,ADULT SOCIAL CARE,SUPREME CARE SERVICES LTD,746.20,PHY LTS 18-64,HOMECARE - C&V,2103167938,1000059416,
04.11.2020,ADULT SOCIAL CARE,SUPREME CARE SERVICES LTD,746.20,PHY LTS 18-64,HOMECARE - C&V,2103168379,1000059416,
04.11.2020,ADULT SOCIAL CARE,SUPREME CARE SERVICES LTD,750.54,PHY LTS 18-64,HOMECARE - C&V,2103167870,1000059416,
04.11.2020,ADULT SOCIAL CARE,SUPREME CARE SERVICES LTD,750.56,PHY LTS 18-64,HOMECARE - C&V,2103168352,1000059416,
04.11.2020,ADULT SOCIAL CARE,SUPREME CARE SERVICES LTD,753.85,PHY LTS 18-64,HOMECARE - C&V,2103168789,1000059416,
04.11.2020,ADULT SOCIAL CARE,SUPREME CARE SERVICES LTD,754.92,PHY LTS 18-64,HOMECARE - C&V,2103158454,1000059416,
04.11.2020,ADULT SOCIAL CARE,SUPREME CARE SERVICES LTD,763.63,PHY LTS 18-64,HOMECARE - C&V,2103168555,1000059416,
04.11.2020,ADULT SOCIAL CARE,SUPREME CARE SERVICES LTD,767.40,PHY LTS 18-64,HOMECARE - C&V,2103158484,1000059416,
04.11.2020,ADULT SOCIAL CARE,SUPREME CARE SERVICES LTD,767.46,PHY LTS 18-64,HOMECARE - C&V,2103164882,1000059416,
04.11.2020,ADULT SOCIAL CARE,SUPREME CARE SERVICES LTD,768.01,PHY LTS 18-64,HOMECARE - C&V,2103168498,1000059416,
04.11.2020,ADULT SOCIAL CARE,SUPREME CARE SERVICES LTD,778.08,PHY LTS 18-64,HOMECARE - C&V,2103167409,1000059416,
04.11.2020,ADULT SOCIAL CARE,SUPREME CARE SERVICES LTD,785.40,PHY LTS 18-64,HOMECARE - C&V,2103167440,1000059416,
04.11.2020,ADULT SOCIAL CARE,SUPREME CARE SERVICES LTD,785.40,PHY LTS 18-64,HOMECARE - C&V,2103168064,1000059416,
04.11.2020,ADULT SOCIAL CARE,SUPREME CARE SERVICES LTD,785.44,PHY LTS 18-64,HOMECARE - C&V,2103167652,1000059416,
04.11.2020,ADULT SOCIAL CARE,SUPREME CARE SERVICES LTD,788.70,PHY LTS 18-64,HOMECARE - C&V,2103164689,1000059416,
04.11.2020,ADULT SOCIAL CARE,SUPREME CARE SERVICES LTD,789.81,PHY LTS 18-64,HOMECARE - C&V,2103168149,1000059416,
04.11.2020,ADULT SOCIAL CARE,SUPREME CARE SERVICES LTD,802.70,PHY LTS 18-64,HOMECARE - C&V,2103166022,1000059416,
04.11.2020,ADULT SOCIAL CARE,SUPREME CARE SERVICES LTD,803.50,PHY LTS 18-64,HOMECARE - C&V,2103167777,1000059416,
04.11.2020,ADULT SOCIAL CARE,SUPREME CARE SERVICES LTD,805.61,PHY LTS 18-64,HOMECARE - C&V,2103164806,1000059416,
04.11.2020,ADULT SOCIAL CARE,SUPREME CARE SERVICES LTD,810.36,PHY LTS 18-64,HOMECARE - C&V,2103168198,1000059416,
04.11.2020,ADULT SOCIAL CARE,SUPREME CARE SERVICES LTD,811.56,PHY LTS 18-64,HOMECARE - C&V,2103168284,1000059416,
04.11.2020,ADULT SOCIAL CARE,SUPREME CARE SERVICES LTD,811.56,PHY LTS 18-64,HOMECARE - C&V,2103168605,1000059416,
04.11.2020,ADULT SOCIAL CARE,SUPREME CARE SERVICES LTD,818.43,PHY LTS 18-64,HOMECARE - C&V,2103168053,1000059416,
04.11.2020,ADULT SOCIAL CARE,SUPREME CARE SERVICES LTD,818.52,PHY LTS 18-64,HOMECARE - C&V,2103158535,1000059416,
04.11.2020,ADULT SOCIAL CARE,SUPREME CARE SERVICES LTD,824.64,PHY LTS 18-64,HOMECARE - C&V,2103167521,1000059416,
04.11.2020,ADULT SOCIAL CARE,SUPREME CARE SERVICES LTD,824.64,PHY LTS 18-64,HOMECARE - C&V,2103167816,1000059416,
04.11.2020,ADULT SOCIAL CARE,SUPREME CARE SERVICES LTD,835.10,PHY LTS 18-64,HOMECARE - C&V,2103168763,1000059416,
04.11.2020,ADULT SOCIAL CARE,SUPREME CARE SERVICES LTD,855.06,PHY LTS 18-64,HOMECARE - C&V,2103160823,1000059416,
04.11.2020,ADULT SOCIAL CARE,SUPREME CARE SERVICES LTD,856.25,PHY LTS 18-64,HOMECARE - C&V,2103158436,1000059416,
04.11.2020,ADULT SOCIAL CARE,SUPREME CARE SERVICES LTD,864.10,PHY LTS 18-64,HOMECARE - C&V,2103158691,1000059416,
04.11.2020,ADULT SOCIAL CARE,SUPREME CARE SERVICES LTD,878.34,PHY LTS 18-64,HOMECARE - C&V,2103164713,1000059416,
04.11.2020,ADULT SOCIAL CARE,SUPREME CARE SERVICES LTD,881.02,PHY LTS 18-64,HOMECARE - C&V,2103158517,1000059416,
04.11.2020,ADULT SOCIAL CARE,SUPREME CARE SERVICES LTD,889.96,PHY LTS 18-64,HOMECARE - C&V,2103156511,1000059416,
04.11.2020,ADULT SOCIAL CARE,SUPREME CARE SERVICES LTD,889.96,PHY LTS 18-64,HOMECARE - C&V,2103166004,1000059416,
04.11.2020,ADULT SOCIAL CARE,SUPREME CARE SERVICES LTD,897.75,PHY LTS 18-64,HOMECARE - C&V,2103168128,1000059416,
04.11.2020,ADULT SOCIAL CARE,SUPREME CARE SERVICES LTD,898.04,PHY LTS 18-64,HOMECARE - C&V,2103164898,1000059416,
04.11.2020,ADULT SOCIAL CARE,SUPREME CARE SERVICES LTD,899.00,PHY LTS 18-64,HOMECARE - C&V,2103167326,1000059416,
04.11.2020,ADULT SOCIAL CARE,SUPREME CARE SERVICES LTD,906.09,PHY LTS 18-64,HOMECARE - C&V,2103168636,1000059416,
04.11.2020,ADULT SOCIAL CARE,SUPREME CARE SERVICES LTD,907.47,PHY LTS 18-64,HOMECARE - C&V,2103168107,1000059416,
04.11.2020,ADULT SOCIAL CARE,SUPREME CARE SERVICES LTD,907.72,PHY LTS 18-64,HOMECARE - C&V,2103168496,1000059416,
04.11.2020,ADULT SOCIAL CARE,SUPREME CARE SERVICES LTD,907.97,PHY LTS 18-64,HOMECARE - C&V,2103158665,1000059416,
04.11.2020,ADULT SOCIAL CARE,SUPREME CARE SERVICES LTD,914.45,PHY LTS 18-64,HOMECARE - C&V,2103167431,1000059416,
04.11.2020,ADULT SOCIAL CARE,SUPREME CARE SERVICES LTD,914.45,PHY LTS 18-64,HOMECARE - C&V,2103167797,1000059416,
04.11.2020,ADULT SOCIAL CARE,SUPREME CARE SERVICES LTD,920.82,PHY LTS 18-64,HOMECARE - C&V,2103167534,1000059416,
04.11.2020,ADULT SOCIAL CARE,SUPREME CARE SERVICES LTD,920.97,PHY LTS 18-64,HOMECARE - C&V,2103158472,1000059416,
04.11.2020,ADULT SOCIAL CARE,SUPREME CARE SERVICES LTD,921.90,PHY LTS 18-64,HOMECARE - C&V,2103164650,1000059416,
04.11.2020,ADULT SOCIAL CARE,SUPREME CARE SERVICES LTD,925.16,PHY LTS 18-64,HOMECARE - C&V,2103167705,1000059416,
04.11.2020,ADULT SOCIAL CARE,SUPREME CARE SERVICES LTD,929.28,PHY LTS 18-64,HOMECARE - C&V,2103168616,1000059416,
04.11.2020,ADULT SOCIAL CARE,SUPREME CARE SERVICES LTD,929.56,PHY LTS 18-64,HOMECARE - C&V,2103167782,1000059416,
04.11.2020,ADULT SOCIAL CARE,SUPREME CARE SERVICES LTD,933.64,PHY LTS 18-64,HOMECARE - C&V,2103167488,1000059416,
04.11.2020,ADULT SOCIAL CARE,SUPREME CARE SERVICES LTD,933.92,PHY LTS 18-64,HOMECARE - C&V,2103168535,1000059416,
04.11.2020,ADULT SOCIAL CARE,SUPREME CARE SERVICES LTD,937.55,PHY LTS 18-64,HOMECARE - C&V,2103167708,1000059416,
04.11.2020,ADULT SOCIAL CARE,SUPREME CARE SERVICES LTD,938.28,PHY LTS 18-64,HOMECARE - C&V,2103158543,1000059416,
04.11.2020,ADULT SOCIAL CARE,SUPREME CARE SERVICES LTD,951.17,PHY LTS 18-64,HOMECARE - C&V,2103168490,1000059416,
04.11.2020,ADULT SOCIAL CARE,SUPREME CARE SERVICES LTD,955.40,PHY LTS 18-64,HOMECARE - C&V,2103167398,1000059416,
04.11.2020,ADULT SOCIAL CARE,SUPREME CARE SERVICES LTD,955.45,PHY LTS 18-64,HOMECARE - C&V,2103168027,1000059416,
04.11.2020,ADULT SOCIAL CARE,SUPREME CARE SERVICES LTD,958.95,PHY LTS 18-64,HOMECARE - C&V,2103158550,1000059416,
04.11.2020,ADULT SOCIAL CARE,SUPREME CARE SERVICES LTD,959.76,PHY LTS 18-64,HOMECARE - C&V,2103156531,1000059416,
04.11.2020,ADULT SOCIAL CARE,SUPREME CARE SERVICES LTD,967.63,PHY LTS 18-64,HOMECARE - C&V,2103164933,1000059416,
04.11.2020,ADULT SOCIAL CARE,SUPREME CARE SERVICES LTD,977.20,PHY LTS 18-64,HOMECARE - C&V,2103156539,1000059416,
04.11.2020,ADULT SOCIAL CARE,SUPREME CARE SERVICES LTD,977.20,PHY LTS 18-64,HOMECARE - C&V,2103156557,1000059416,
04.11.2020,ADULT SOCIAL CARE,SUPREME CARE SERVICES LTD,977.20,PHY LTS 18-64,HOMECARE - C&V,2103156584,1000059416,
04.11.2020,ADULT SOCIAL CARE,SUPREME CARE SERVICES LTD,977.20,PHY LTS 18-64,HOMECARE - C&V,2103167812,1000059416,
04.11.2020,ADULT SOCIAL CARE,SUPREME CARE SERVICES LTD,977.44,PHY LTS 18-64,HOMECARE - C&V,2103167621,1000059416,
04.11.2020,ADULT SOCIAL CARE,SUPREME CARE SERVICES LTD,985.36,PHY LTS 18-64,HOMECARE - C&V,2103164926,1000059416,
04.11.2020,ADULT SOCIAL CARE,SUPREME CARE SERVICES LTD,990.56,PHY LTS 18-64,HOMECARE - C&V,2103158718,1000059416,
04.11.2020,ADULT SOCIAL CARE,SUPREME CARE SERVICES LTD,994.64,PHY LTS 18-64,HOMECARE - C&V,2103156480,1000059416,
04.11.2020,ADULT SOCIAL CARE,SUPREME CARE SERVICES LTD,994.64,PHY LTS 18-64,HOMECARE - C&V,2103165970,1000059416,
04.11.2020,ADULT SOCIAL CARE,SUPREME CARE SERVICES LTD,997.95,PHY LTS 18-64,HOMECARE - C&V,2103164519,1000059416,
04.11.2020,ADULT SOCIAL CARE,SUPREME CARE SERVICES LTD,"1,002.00",PHY LTS 18-64,HOMECARE - C&V,2103158565,1000059416,
04.11.2020,ADULT SOCIAL CARE,SUPREME CARE SERVICES LTD,"1,002.00",PHY LTS 18-64,HOMECARE - C&V,2103167955,1000059416,
04.11.2020,ADULT SOCIAL CARE,SUPREME CARE SERVICES LTD,"1,006.20",PHY LTS 18-64,HOMECARE - C&V,2103167384,1000059416,
04.11.2020,ADULT SOCIAL CARE,SUPREME CARE SERVICES LTD,"1,008.00",PHY LTS 18-64,HOMECARE - C&V,2103168283,1000059416,
04.11.2020,ADULT SOCIAL CARE,SUPREME CARE SERVICES LTD,"1,016.71",PHY LTS 18-64,HOMECARE - C&V,2103168282,1000059416,
04.11.2020,ADULT SOCIAL CARE,SUPREME CARE SERVICES LTD,"1,018.81",PHY LTS 18-64,HOMECARE - C&V,2103168231,1000059416,
04.11.2020,ADULT SOCIAL CARE,SUPREME CARE SERVICES LTD,"1,023.36",PHY LTS 18-64,HOMECARE - C&V,2103158524,1000059416,
04.11.2020,ADULT SOCIAL CARE,SUPREME CARE SERVICES LTD,"1,025.44",PHY LTS 18-64,HOMECARE - C&V,2103158559,1000059416,
04.11.2020,ADULT SOCIAL CARE,SUPREME CARE SERVICES LTD,"1,042.88",PHY LTS 18-64,HOMECARE - C&V,2103168604,1000059416,
04.11.2020,ADULT SOCIAL CARE,SUPREME CARE SERVICES LTD,"1,047.23",PHY LTS 18-64,HOMECARE - C&V,2103167686,1000059416,
04.11.2020,ADULT SOCIAL CARE,SUPREME CARE SERVICES LTD,"1,048.01",PHY LTS 18-64,HOMECARE - C&V,2103168082,1000059416,
04.11.2020,ADULT SOCIAL CARE,SUPREME CARE SERVICES LTD,"1,055.08",PHY LTS 18-64,HOMECARE - C&V,2103168759,1000059416,
04.11.2020,ADULT SOCIAL CARE,SUPREME CARE SERVICES LTD,"1,068.89",PHY LTS 18-64,HOMECARE - C&V,2103168465,1000059416,
04.11.2020,ADULT SOCIAL CARE,SUPREME CARE SERVICES LTD,"1,073.46",PHY LTS 18-64,HOMECARE - C&V,2103168029,1000059416,
04.11.2020,ADULT SOCIAL CARE,SUPREME CARE SERVICES LTD,"1,090.80",PHY LTS 18-64,HOMECARE - C&V,2103167740,1000059416,
04.11.2020,ADULT SOCIAL CARE,SUPREME CARE SERVICES LTD,"1,115.24",PHY LTS 18-64,HOMECARE - C&V,2103167725,1000059416,
04.11.2020,ADULT SOCIAL CARE,SUPREME CARE SERVICES LTD,"1,119.04",PHY LTS 18-64,HOMECARE - C&V,2103164617,1000059416,
04.11.2020,ADULT SOCIAL CARE,SUPREME CARE SERVICES LTD,"1,127.38",PHY LTS 18-64,HOMECARE - C&V,2103167862,1000059416,
04.11.2020,ADULT SOCIAL CARE,SUPREME CARE SERVICES LTD,"1,146.23",PHY LTS 18-64,HOMECARE - C&V,2103168681,1000059416,
04.11.2020,ADULT SOCIAL CARE,SUPREME CARE SERVICES LTD,"1,190.68",PHY LTS 18-64,HOMECARE - C&V,2103164643,1000059416,
04.11.2020,ADULT SOCIAL CARE,SUPREME CARE SERVICES LTD,"1,202.53",PHY LTS 18-64,HOMECARE - C&V,2103168363,1000059416,
04.11.2020,ADULT SOCIAL CARE,SUPREME CARE SERVICES LTD,"1,204.22",PHY LTS 18-64,HOMECARE - C&V,2103167590,1000059416,
04.11.2020,ADULT SOCIAL CARE,SUPREME CARE SERVICES LTD,"1,221.52",PHY LTS 18-64,HOMECARE - C&V,2103156542,1000059416,
04.11.2020,ADULT SOCIAL CARE,SUPREME CARE SERVICES LTD,"1,221.52",PHY LTS 18-64,HOMECARE - C&V,2103165991,1000059416,
04.11.2020,ADULT SOCIAL CARE,SUPREME CARE SERVICES LTD,"1,221.52",PHY LTS 18-64,HOMECARE - C&V,2103166027,1000059416,
04.11.2020,ADULT SOCIAL CARE,SUPREME CARE SERVICES LTD,"1,226.02",PHY LTS 18-64,HOMECARE - C&V,2103168205,1000059416,
04.11.2020,ADULT SOCIAL CARE,SUPREME CARE SERVICES LTD,"1,230.63",PHY LTS 18-64,HOMECARE - C&V,2103167840,1000059416,
04.11.2020,ADULT SOCIAL CARE,SUPREME CARE SERVICES LTD,"1,245.90",PHY LTS 18-64,HOMECARE - C&V,2103158412,1000059416,
04.11.2020,ADULT SOCIAL CARE,SUPREME CARE SERVICES LTD,"1,248.49",PHY LTS 18-64,HOMECARE - C&V,2103158668,1000059416,
04.11.2020,ADULT SOCIAL CARE,SUPREME CARE SERVICES LTD,"1,256.81",PHY LTS 18-64,HOMECARE - C&V,2103167721,1000059416,
04.11.2020,ADULT SOCIAL CARE,SUPREME CARE SERVICES LTD,"1,269.90",PHY LTS 18-64,HOMECARE - C&V,2103168802,1000059416,
04.11.2020,ADULT SOCIAL CARE,SUPREME CARE SERVICES LTD,"1,273.52",PHY LTS 18-64,HOMECARE - C&V,2103168466,1000059416,
04.11.2020,ADULT SOCIAL CARE,SUPREME CARE SERVICES LTD,"1,290.22",PHY LTS 18-64,HOMECARE - C&V,2103164625,1000059416,
04.11.2020,ADULT SOCIAL CARE,SUPREME CARE SERVICES LTD,"1,291.32",PHY LTS 18-64,HOMECARE - C&V,2103156536,1000059416,
04.11.2020,ADULT SOCIAL CARE,SUPREME CARE SERVICES LTD,"1,306.91",PHY LTS 18-64,HOMECARE - C&V,2103167511,1000059416,
04.11.2020,ADULT SOCIAL CARE,SUPREME CARE SERVICES LTD,"1,313.52",PHY LTS 18-64,HOMECARE - C&V,2103168119,1000059416,
04.11.2020,ADULT SOCIAL CARE,SUPREME CARE SERVICES LTD,"1,317.86",PHY LTS 18-64,HOMECARE - C&V,2103168067,1000059416,
04.11.2020,ADULT SOCIAL CARE,SUPREME CARE SERVICES LTD,"1,322.24",PHY LTS 18-64,HOMECARE - C&V,2103167542,1000059416,
04.11.2020,ADULT SOCIAL CARE,SUPREME CARE SERVICES LTD,"1,326.20",PHY LTS 18-64,HOMECARE - C&V,2103156602,1000059416,
04.11.2020,ADULT SOCIAL CARE,SUPREME CARE SERVICES LTD,"1,326.60",PHY LTS 18-64,HOMECARE - C&V,2103167891,1000059416,
04.11.2020,ADULT SOCIAL CARE,SUPREME CARE SERVICES LTD,"1,330.24",PHY LTS 18-64,HOMECARE - C&V,2103164687,1000059416,
04.11.2020,ADULT SOCIAL CARE,SUPREME CARE SERVICES LTD,"1,339.68",PHY LTS 18-64,HOMECARE - C&V,2103158594,1000059416,
04.11.2020,ADULT SOCIAL CARE,SUPREME CARE SERVICES LTD,"1,343.64",PHY LTS 18-64,HOMECARE - C&V,2103156585,1000059416,
04.11.2020,ADULT SOCIAL CARE,SUPREME CARE SERVICES LTD,"1,343.99",PHY LTS 18-64,HOMECARE - C&V,2103168643,1000059416,
04.11.2020,ADULT SOCIAL CARE,SUPREME CARE SERVICES LTD,"1,352.75",PHY LTS 18-64,HOMECARE - C&V,2103158373,1000059416,
04.11.2020,ADULT SOCIAL CARE,SUPREME CARE SERVICES LTD,"1,365.88",PHY LTS 18-64,HOMECARE - C&V,2103167799,1000059416,
04.11.2020,ADULT SOCIAL CARE,SUPREME CARE SERVICES LTD,"1,383.29",PHY LTS 18-64,HOMECARE - C&V,2103158671,1000059416,
04.11.2020,ADULT SOCIAL CARE,SUPREME CARE SERVICES LTD,"1,400.76",PHY LTS 18-64,HOMECARE - C&V,2103158523,1000059416,
04.11.2020,ADULT SOCIAL CARE,SUPREME CARE SERVICES LTD,"1,422.55",PHY LTS 18-64,HOMECARE - C&V,2103167475,1000059416,
04.11.2020,ADULT SOCIAL CARE,SUPREME CARE SERVICES LTD,"1,426.49",PHY LTS 18-64,HOMECARE - C&V,2103168634,1000059416,
04.11.2020,ADULT SOCIAL CARE,SUPREME CARE SERVICES LTD,"1,448.81",PHY LTS 18-64,HOMECARE - C&V,2103164736,1000059416,
04.11.2020,ADULT SOCIAL CARE,SUPREME CARE SERVICES LTD,"1,487.99",PHY LTS 18-64,HOMECARE - C&V,2103168436,1000059416,
04.11.2020,ADULT SOCIAL CARE,SUPREME CARE SERVICES LTD,"1,551.76",PHY LTS 18-64,HOMECARE - C&V,2103164836,1000059416,
04.11.2020,ADULT SOCIAL CARE,SUPREME CARE SERVICES LTD,"1,627.42",PHY LTS 18-64,HOMECARE - C&V,2103168685,1000059416,
04.11.2020,ADULT SOCIAL CARE,SUPREME CARE SERVICES LTD,"1,649.21",PHY LTS 18-64,HOMECARE - C&V,2103158613,1000059416,
04.11.2020,ADULT SOCIAL CARE,SUPREME CARE SERVICES LTD,"1,722.26",PHY LTS 18-64,HOMECARE - C&V,2103158427,1000059416,
04.11.2020,ADULT SOCIAL CARE,SUPREME CARE SERVICES LTD,"1,786.14",PHY LTS 18-64,HOMECARE - C&V,2103164566,1000059416,
04.11.2020,ADULT SOCIAL CARE,SUPREME CARE SERVICES LTD,"1,832.40",PHY LTS 18-64,HOMECARE - C&V,2103168186,1000059416,
04.11.2020,ADULT SOCIAL CARE,SUPREME CARE SERVICES LTD,"1,858.68",PHY LTS 18-64,HOMECARE - C&V,2103167884,1000059416,
04.11.2020,ADULT SOCIAL CARE,SUPREME CARE SERVICES LTD,"1,884.72",PHY LTS 18-64,HOMECARE - C&V,2103168002,1000059416,
04.11.2020,ADULT SOCIAL CARE,SUPREME CARE SERVICES LTD,"1,925.12",PHY LTS 18-64,HOMECARE - C&V,2103164711,1000059416,
04.11.2020,ADULT SOCIAL CARE,SUPREME CARE SERVICES LTD,"1,937.06",PHY LTS 18-64,HOMECARE - C&V,2103168591,1000059416,
04.11.2020,ADULT SOCIAL CARE,SUPREME CARE SERVICES LTD,"1,945.82",PHY LTS 18-64,HOMECARE - C&V,2103167512,1000059416,
04.11.2020,ADULT SOCIAL CARE,SUPREME CARE SERVICES LTD,"1,959.03",PHY LTS 18-64,HOMECARE - C&V,2103167532,1000059416,
04.11.2020,ADULT SOCIAL CARE,SUPREME CARE SERVICES LTD,"1,967.75",PHY LTS 18-64,HOMECARE - C&V,2103168201,1000059416,
04.11.2020,ADULT SOCIAL CARE,SUPREME CARE SERVICES LTD,"1,972.12",PHY LTS 18-64,HOMECARE - C&V,2103168747,1000059416,
04.11.2020,ADULT SOCIAL CARE,SUPREME CARE SERVICES LTD,"2,020.72",PHY LTS 18-64,HOMECARE - C&V,2103158481,1000059416,
04.11.2020,ADULT SOCIAL CARE,SUPREME CARE SERVICES LTD,"2,020.72",PHY LTS 18-64,HOMECARE - C&V,2103164887,1000059416,
04.11.2020,ADULT SOCIAL CARE,SUPREME CARE SERVICES LTD,"2,020.72",PHY LTS 18-64,HOMECARE - C&V,2103167391,1000059416,
04.11.2020,ADULT SOCIAL CARE,SUPREME CARE SERVICES LTD,"2,020.72",PHY LTS 18-64,HOMECARE - C&V,2103167861,1000059416,
04.11.2020,ADULT SOCIAL CARE,SUPREME CARE SERVICES LTD,"2,020.72",PHY LTS 18-64,HOMECARE - C&V,2103168189,1000059416,
04.11.2020,ADULT SOCIAL CARE,SUPREME CARE SERVICES LTD,"2,020.72",PHY LTS 18-64,HOMECARE - C&V,2103168469,1000059416,
04.11.2020,ADULT SOCIAL CARE,SUPREME CARE SERVICES LTD,"2,041.92",PHY LTS 18-64,HOMECARE - C&V,2103158398,1000059416,
04.11.2020,ADULT SOCIAL CARE,SUPREME CARE SERVICES LTD,"3,197.27",PHY LTS 18-64,HOMECARE - C&V,2103164709,1000059416,
04.11.2020,ADULT SOCIAL CARE,SUPREME CARE SERVICES LTD,"3,267.92",PHY LTS 18-64,HOMECARE - C&V,2103168703,1000059416,
04.11.2020,ADULT SOCIAL CARE,SUPREME CARE SERVICES LTD,"3,272.28",PHY LTS 18-64,HOMECARE - C&V,2103168252,1000059416,
04.11.2020,ADULT SOCIAL CARE,SUPREME CARE SERVICES LTD,"3,315.52",PHY LTS 18-64,HOMECARE - C&V,2103156475,1000059416,
04.11.2020,ADULT SOCIAL CARE,SUPREME CARE SERVICES LTD,"3,315.52",PHY LTS 18-64,HOMECARE - C&V,2103166001,1000059416,
04.11.2020,ADULT SOCIAL CARE,SUPREME CARE SERVICES LTD,"3,437.94",PHY LTS 18-64,HOMECARE - C&V,2103167634,1000059416,
04.11.2020,ADULT SOCIAL CARE,SUPREME CARE SERVICES LTD,"3,528.57",PHY LTS 18-64,HOMECARE - C&V,2103168325,1000059416,
04.11.2020,ADULT SOCIAL CARE,SUPREME CARE SERVICES LTD,"3,532.83",PHY LTS 18-64,HOMECARE - C&V,2103168693,1000059416,
04.11.2020,ADULT SOCIAL CARE,SUPREME CARE SERVICES LTD,"3,545.28",PHY LTS 18-64,HOMECARE - C&V,2103167617,1000059416,
04.11.2020,ADULT SOCIAL CARE,SUPREME CARE SERVICES LTD,"3,550.88",PHY LTS 18-64,HOMECARE - C&V,2103158586,1000059416,
04.11.2020,ADULT SOCIAL CARE,SUPREME CARE SERVICES LTD,"3,560.01",PHY LTS 18-64,HOMECARE - C&V,2103167973,1000059416,
04.11.2020,ADULT SOCIAL CARE,SUPREME CARE SERVICES LTD,"3,742.73",PHY LTS 18-64,HOMECARE - C&V,2103164820,1000059416,
04.11.2020,ADULT SOCIAL CARE,SUPREME CARE SERVICES LTD,"4,189.98",PHY LTS 18-64,HOMECARE - C&V,2103158502,1000059416,
04.11.2020,ADULT SOCIAL CARE,SUPREME CARE SERVICES LTD,"4,205.39",PHY LTS 18-64,HOMECARE - C&V,2103167366,1000059416,
04.11.2020,ADULT SOCIAL CARE,MEDACS HOMECARE,"65,265.46",PHY LTS 65+,HOMECARE - C&V,2103168074,11287415,
04.11.2020,ADULT SOCIAL CARE,SUPREME CARE SERVICES LTD,"-326,437.94",PHY LTS 65+,HOMECARE - C&V,5902437117,1000059416,
04.11.2020,ADULT SOCIAL CARE,SUPREME CARE SERVICES LTD,"-326,437.94",PHY LTS 65+,HOMECARE - C&V,5902437118,1000059416,
04.11.2020,ADULT SOCIAL CARE,SUPREME CARE SERVICES LTD,"-326,437.94",PHY LTS 65+,HOMECARE - C&V,5902437120,1000059416,
04.11.2020,ADULT SOCIAL CARE,SUPREME CARE SERVICES LTD,"-326,437.94",PHY LTS 65+,HOMECARE - C&V,5902437121,1000059416,
04.11.2020,ADULT SOCIAL CARE,SUPREME CARE SERVICES LTD,"-326,437.94",PHY LTS 65+,HOMECARE - C&V,5902437124,1000059416,
04.11.2020,ADULT SOCIAL CARE,SUPREME CARE SERVICES LTD,250.52,PHY LTS 65+,HOMECARE - C&V,2103164558,1000059416,
04.11.2020,ADULT SOCIAL CARE,SUPREME CARE SERVICES LTD,251.62,PHY LTS 65+,HOMECARE - C&V,2103164661,1000059416,
04.11.2020,ADULT SOCIAL CARE,SUPREME CARE SERVICES LTD,253.07,PHY LTS 65+,HOMECARE - C&V,2103167874,1000059416,
04.11.2020,ADULT SOCIAL CARE,SUPREME CARE SERVICES LTD,253.13,PHY LTS 65+,HOMECARE - C&V,2103167372,1000059416,
04.11.2020,ADULT SOCIAL CARE,SUPREME CARE SERVICES LTD,253.13,PHY LTS 65+,HOMECARE - C&V,2103167411,1000059416,
04.11.2020,ADULT SOCIAL CARE,SUPREME CARE SERVICES LTD,253.15,PHY LTS 65+,HOMECARE - C&V,2103168719,1000059416,
04.11.2020,ADULT SOCIAL CARE,SUPREME CARE SERVICES LTD,253.16,PHY LTS 65+,HOMECARE - C&V,2103168529,1000059416,
04.11.2020,ADULT SOCIAL CARE,SUPREME CARE SERVICES LTD,254.70,PHY LTS 65+,HOMECARE - C&V,2103168177,1000059416,
04.11.2020,ADULT SOCIAL CARE,SUPREME CARE SERVICES LTD,255.80,PHY LTS 65+,HOMECARE - C&V,2103158424,1000059416,
04.11.2020,ADULT SOCIAL CARE,SUPREME CARE SERVICES LTD,255.80,PHY LTS 65+,HOMECARE - C&V,2103164674,1000059416,
04.11.2020,ADULT SOCIAL CARE,SUPREME CARE SERVICES LTD,255.88,PHY LTS 65+,HOMECARE - C&V,2103158690,1000059416,
04.11.2020,ADULT SOCIAL CARE,SUPREME CARE SERVICES LTD,257.47,PHY LTS 65+,HOMECARE - C&V,2103168793,1000059416,
04.11.2020,ADULT SOCIAL CARE,SUPREME CARE SERVICES LTD,258.44,PHY LTS 65+,HOMECARE - C&V,2103168760,1000059416,
04.11.2020,ADULT SOCIAL CARE,SUPREME CARE SERVICES LTD,258.88,PHY LTS 65+,HOMECARE - C&V,2103168632,1000059416,
04.11.2020,ADULT SOCIAL CARE,SUPREME CARE SERVICES LTD,258.89,PHY LTS 65+,HOMECARE - C&V,2103158669,1000059416,
04.11.2020,ADULT SOCIAL CARE,SUPREME CARE SERVICES LTD,260.06,PHY LTS 65+,HOMECARE - C&V,2103164633,1000059416,
04.11.2020,ADULT SOCIAL CARE,SUPREME CARE SERVICES LTD,260.38,PHY LTS 65+,HOMECARE - C&V,2103164818,1000059416,
04.11.2020,ADULT SOCIAL CARE,SUPREME CARE SERVICES LTD,261.75,PHY LTS 65+,HOMECARE - C&V,2103156578,1000059416,
04.11.2020,ADULT SOCIAL CARE,SUPREME CARE SERVICES LTD,261.76,PHY LTS 65+,HOMECARE - C&V,2103156522,1000059416,
04.11.2020,ADULT SOCIAL CARE,SUPREME CARE SERVICES LTD,261.76,PHY LTS 65+,HOMECARE - C&V,2103165969,1000059416,
04.11.2020,ADULT SOCIAL CARE,SUPREME CARE SERVICES LTD,261.80,PHY LTS 65+,HOMECARE - C&V,2103167352,1000059416,
04.11.2020,ADULT SOCIAL CARE,SUPREME CARE SERVICES LTD,261.80,PHY LTS 65+,HOMECARE - C&V,2103167508,1000059416,
04.11.2020,ADULT SOCIAL CARE,SUPREME CARE SERVICES LTD,261.80,PHY LTS 65+,HOMECARE - C&V,2103167800,1000059416,
04.11.2020,ADULT SOCIAL CARE,SUPREME CARE SERVICES LTD,261.80,PHY LTS 65+,HOMECARE - C&V,2103168012,1000059416,
04.11.2020,ADULT SOCIAL CARE,SUPREME CARE SERVICES LTD,261.80,PHY LTS 65+,HOMECARE - C&V,2103168265,1000059416,
04.11.2020,ADULT SOCIAL CARE,SUPREME CARE SERVICES LTD,261.80,PHY LTS 65+,HOMECARE - C&V,2103168463,1000059416,
04.11.2020,ADULT SOCIAL CARE,SUPREME CARE SERVICES LTD,261.82,PHY LTS 65+,HOMECARE - C&V,2103168162,1000059416,
04.11.2020,ADULT SOCIAL CARE,SUPREME CARE SERVICES LTD,261.88,PHY LTS 65+,HOMECARE - C&V,2103167552,1000059416,
04.11.2020,ADULT SOCIAL CARE,SUPREME CARE SERVICES LTD,261.88,PHY LTS 65+,HOMECARE - C&V,2103168482,1000059416,
04.11.2020,ADULT SOCIAL CARE,SUPREME CARE SERVICES LTD,266.16,PHY LTS 65+,HOMECARE - C&V,2103168146,1000059416,
04.11.2020,ADULT SOCIAL CARE,SUPREME CARE SERVICES LTD,266.17,PHY LTS 65+,HOMECARE - C&V,2103167452,1000059416,
04.11.2020,ADULT SOCIAL CARE,SUPREME CARE SERVICES LTD,266.24,PHY LTS 65+,HOMECARE - C&V,2103168017,1000059416,
04.11.2020,ADULT SOCIAL CARE,SUPREME CARE SERVICES LTD,266.24,PHY LTS 65+,HOMECARE - C&V,2103168040,1000059416,
04.11.2020,ADULT SOCIAL CARE,SUPREME CARE SERVICES LTD,270.60,PHY LTS 65+,HOMECARE - C&V,2103168176,1000059416,
04.11.2020,ADULT SOCIAL CARE,SUPREME CARE SERVICES LTD,270.61,PHY LTS 65+,HOMECARE - C&V,2103168499,1000059416,
04.11.2020,ADULT SOCIAL CARE,SUPREME CARE SERVICES LTD,270.63,PHY LTS 65+,HOMECARE - C&V,2103168672,1000059416,
04.11.2020,ADULT SOCIAL CARE,SUPREME CARE SERVICES LTD,271.34,PHY LTS 65+,HOMECARE - C&V,2103168173,1000059416,
04.11.2020,ADULT SOCIAL CARE,SUPREME CARE SERVICES LTD,271.99,PHY LTS 65+,HOMECARE - C&V,2103158639,1000059416,
04.11.2020,ADULT SOCIAL CARE,SUPREME CARE SERVICES LTD,272.92,PHY LTS 65+,HOMECARE - C&V,2103164929,1000059416,
04.11.2020,ADULT SOCIAL CARE,SUPREME CARE SERVICES LTD,274.84,PHY LTS 65+,HOMECARE - C&V,2103156583,1000059416,
04.11.2020,ADULT SOCIAL CARE,SUPREME CARE SERVICES LTD,274.98,PHY LTS 65+,HOMECARE - C&V,2103168628,1000059416,
04.11.2020,ADULT SOCIAL CARE,SUPREME CARE SERVICES LTD,277.17,PHY LTS 65+,HOMECARE - C&V,2103164923,1000059416,
04.11.2020,ADULT SOCIAL CARE,SUPREME CARE SERVICES LTD,281.38,PHY LTS 65+,HOMECARE - C&V,2103158575,1000059416,
04.11.2020,ADULT SOCIAL CARE,SUPREME CARE SERVICES LTD,285.64,PHY LTS 65+,HOMECARE - C&V,2103164583,1000059416,
04.11.2020,ADULT SOCIAL CARE,SUPREME CARE SERVICES LTD,288.05,PHY LTS 65+,HOMECARE - C&V,2103168355,1000059416,
04.11.2020,ADULT SOCIAL CARE,SUPREME CARE SERVICES LTD,288.09,PHY LTS 65+,HOMECARE - C&V,2103158700,1000059416,
04.11.2020,ADULT SOCIAL CARE,SUPREME CARE SERVICES LTD,288.09,PHY LTS 65+,HOMECARE - C&V,2103164742,1000059416,
04.11.2020,ADULT SOCIAL CARE,SUPREME CARE SERVICES LTD,291.28,PHY LTS 65+,HOMECARE - C&V,2103168689,1000059416,
04.11.2020,ADULT SOCIAL CARE,SUPREME CARE SERVICES LTD,292.31,PHY LTS 65+,HOMECARE - C&V,2103158462,1000059416,
04.11.2020,ADULT SOCIAL CARE,SUPREME CARE SERVICES LTD,294.16,PHY LTS 65+,HOMECARE - C&V,2103164538,1000059416,
04.11.2020,ADULT SOCIAL CARE,SUPREME CARE SERVICES LTD,296.64,PHY LTS 65+,HOMECARE - C&V,2103156571,1000059416,
04.11.2020,ADULT SOCIAL CARE,SUPREME CARE SERVICES LTD,296.71,PHY LTS 65+,HOMECARE - C&V,2103158489,1000059416,
04.11.2020,ADULT SOCIAL CARE,SUPREME CARE SERVICES LTD,296.72,PHY LTS 65+,HOMECARE - C&V,2103168021,1000059416,
04.11.2020,ADULT SOCIAL CARE,SUPREME CARE SERVICES LTD,296.79,PHY LTS 65+,HOMECARE - C&V,2103167330,1000059416,
04.11.2020,ADULT SOCIAL CARE,SUPREME CARE SERVICES LTD,297.85,PHY LTS 65+,HOMECARE - C&V,2103164914,1000059416,
04.11.2020,ADULT SOCIAL CARE,SUPREME CARE SERVICES LTD,298.44,PHY LTS 65+,HOMECARE - C&V,2103167413,1000059416,
04.11.2020,ADULT SOCIAL CARE,SUPREME CARE SERVICES LTD,300.18,PHY LTS 65+,HOMECARE - C&V,2103158731,1000059416,
04.11.2020,ADULT SOCIAL CARE,SUPREME CARE SERVICES LTD,302.74,PHY LTS 65+,HOMECARE - C&V,2103164729,1000059416,
04.11.2020,ADULT SOCIAL CARE,SUPREME CARE SERVICES LTD,305.42,PHY LTS 65+,HOMECARE - C&V,2103168100,1000059416,
04.11.2020,ADULT SOCIAL CARE,SUPREME CARE SERVICES LTD,305.44,PHY LTS 65+,HOMECARE - C&V,2103167405,1000059416,
04.11.2020,ADULT SOCIAL CARE,SUPREME CARE SERVICES LTD,305.48,PHY LTS 65+,HOMECARE - C&V,2103167439,1000059416,
04.11.2020,ADULT SOCIAL CARE,SUPREME CARE SERVICES LTD,305.49,PHY LTS 65+,HOMECARE - C&V,2103168402,1000059416,
04.11.2020,ADULT SOCIAL CARE,SUPREME CARE SERVICES LTD,307.00,PHY LTS 65+,HOMECARE - C&V,2103164605,1000059416,
04.11.2020,ADULT SOCIAL CARE,SUPREME CARE SERVICES LTD,307.04,PHY LTS 65+,HOMECARE - C&V,2103158440,1000059416,
04.11.2020,ADULT SOCIAL CARE,SUPREME CARE SERVICES LTD,307.04,PHY LTS 65+,HOMECARE - C&V,2103164696,1000059416,
04.11.2020,ADULT SOCIAL CARE,SUPREME CARE SERVICES LTD,310.65,PHY LTS 65+,HOMECARE - C&V,2103168533,1000059416,
04.11.2020,ADULT SOCIAL CARE,SUPREME CARE SERVICES LTD,311.18,PHY LTS 65+,HOMECARE - C&V,2103164565,1000059416,
04.11.2020,ADULT SOCIAL CARE,SUPREME CARE SERVICES LTD,311.20,PHY LTS 65+,HOMECARE - C&V,2103164855,1000059416,
04.11.2020,ADULT SOCIAL CARE,SUPREME CARE SERVICES LTD,311.25,PHY LTS 65+,HOMECARE - C&V,2103164878,1000059416,
04.11.2020,ADULT SOCIAL CARE,SUPREME CARE SERVICES LTD,311.30,PHY LTS 65+,HOMECARE - C&V,2103158631,1000059416,
04.11.2020,ADULT SOCIAL CARE,SUPREME CARE SERVICES LTD,312.39,PHY LTS 65+,HOMECARE - C&V,2103167972,1000059416,
04.11.2020,ADULT SOCIAL CARE,SUPREME CARE SERVICES LTD,312.39,PHY LTS 65+,HOMECARE - C&V,2103168415,1000059416,
04.11.2020,ADULT SOCIAL CARE,SUPREME CARE SERVICES LTD,312.93,PHY LTS 65+,HOMECARE - C&V,2103167674,1000059416,
04.11.2020,ADULT SOCIAL CARE,SUPREME CARE SERVICES LTD,314.10,PHY LTS 65+,HOMECARE - C&V,2103156514,1000059416,
04.11.2020,ADULT SOCIAL CARE,SUPREME CARE SERVICES LTD,314.12,PHY LTS 65+,HOMECARE - C&V,2103156507,1000059416,
04.11.2020,ADULT SOCIAL CARE,SUPREME CARE SERVICES LTD,314.12,PHY LTS 65+,HOMECARE - C&V,2103156569,1000059416,
04.11.2020,ADULT SOCIAL CARE,SUPREME CARE SERVICES LTD,314.12,PHY LTS 65+,HOMECARE - C&V,2103165999,1000059416,
04.11.2020,ADULT SOCIAL CARE,SUPREME CARE SERVICES LTD,314.12,PHY LTS 65+,HOMECARE - C&V,2103166018,1000059416,
04.11.2020,ADULT SOCIAL CARE,SUPREME CARE SERVICES LTD,314.23,PHY LTS 65+,HOMECARE - C&V,2103168512,1000059416,
04.11.2020,ADULT SOCIAL CARE,SUPREME CARE SERVICES LTD,314.24,PHY LTS 65+,HOMECARE - C&V,2103167486,1000059416,
04.11.2020,ADULT SOCIAL CARE,SUPREME CARE SERVICES LTD,314.24,PHY LTS 65+,HOMECARE - C&V,2103167927,1000059416,
04.11.2020,ADULT SOCIAL CARE,SUPREME CARE SERVICES LTD,314.24,PHY LTS 65+,HOMECARE - C&V,2103168102,1000059416,
04.11.2020,ADULT SOCIAL CARE,SUPREME CARE SERVICES LTD,315.61,PHY LTS 65+,HOMECARE - C&V,2103164550,1000059416,
04.11.2020,ADULT SOCIAL CARE,SUPREME CARE SERVICES LTD,317.32,PHY LTS 65+,HOMECARE - C&V,2103164930,1000059416,
04.11.2020,ADULT SOCIAL CARE,SUPREME CARE SERVICES LTD,317.68,PHY LTS 65+,HOMECARE - C&V,2103164892,1000059416,
04.11.2020,ADULT SOCIAL CARE,SUPREME CARE SERVICES LTD,317.89,PHY LTS 65+,HOMECARE - C&V,2103164548,1000059416,
04.11.2020,ADULT SOCIAL CARE,SUPREME CARE SERVICES LTD,318.54,PHY LTS 65+,HOMECARE - C&V,2103158485,1000059416,
04.11.2020,ADULT SOCIAL CARE,SUPREME CARE SERVICES LTD,318.56,PHY LTS 65+,HOMECARE - C&V,2103158417,1000059416,
04.11.2020,ADULT SOCIAL CARE,SUPREME CARE SERVICES LTD,318.58,PHY LTS 65+,HOMECARE - C&V,2103167346,1000059416,
04.11.2020,ADULT SOCIAL CARE,SUPREME CARE SERVICES LTD,318.58,PHY LTS 65+,HOMECARE - C&V,2103167962,1000059416,
04.11.2020,ADULT SOCIAL CARE,SUPREME CARE SERVICES LTD,318.88,PHY LTS 65+,HOMECARE - C&V,2103164658,1000059416,
04.11.2020,ADULT SOCIAL CARE,SUPREME CARE SERVICES LTD,319.77,PHY LTS 65+,HOMECARE - C&V,2103164596,1000059416,
04.11.2020,ADULT SOCIAL CARE,SUPREME CARE SERVICES LTD,322.96,PHY LTS 65+,HOMECARE - C&V,2103167928,1000059416,
04.11.2020,ADULT SOCIAL CARE,SUPREME CARE SERVICES LTD,322.96,PHY LTS 65+,HOMECARE - C&V,2103168083,1000059416,
04.11.2020,ADULT SOCIAL CARE,SUPREME CARE SERVICES LTD,324.00,PHY LTS 65+,HOMECARE - C&V,2103164823,1000059416,
04.11.2020,ADULT SOCIAL CARE,SUPREME CARE SERVICES LTD,327.25,PHY LTS 65+,HOMECARE - C&V,2103167449,1000059416,
04.11.2020,ADULT SOCIAL CARE,SUPREME CARE SERVICES LTD,327.25,PHY LTS 65+,HOMECARE - C&V,2103168495,1000059416,
04.11.2020,ADULT SOCIAL CARE,SUPREME CARE SERVICES LTD,329.13,PHY LTS 65+,HOMECARE - C&V,2103164544,1000059416,
04.11.2020,ADULT SOCIAL CARE,SUPREME CARE SERVICES LTD,331.60,PHY LTS 65+,HOMECARE - C&V,2103167539,1000059416,
04.11.2020,ADULT SOCIAL CARE,SUPREME CARE SERVICES LTD,331.60,PHY LTS 65+,HOMECARE - C&V,2103168651,1000059416,
04.11.2020,ADULT SOCIAL CARE,SUPREME CARE SERVICES LTD,331.66,PHY LTS 65+,HOMECARE - C&V,2103168602,1000059416,
04.11.2020,ADULT SOCIAL CARE,SUPREME CARE SERVICES LTD,336.08,PHY LTS 65+,HOMECARE - C&V,2103167461,1000059416,
04.11.2020,ADULT SOCIAL CARE,SUPREME CARE SERVICES LTD,336.79,PHY LTS 65+,HOMECARE - C&V,2103164527,1000059416,
04.11.2020,ADULT SOCIAL CARE,SUPREME CARE SERVICES LTD,344.69,PHY LTS 65+,HOMECARE - C&V,2103167578,1000059416,
04.11.2020,ADULT SOCIAL CARE,SUPREME CARE SERVICES LTD,349.03,PHY LTS 65+,HOMECARE - C&V,2103168222,1000059416,
04.11.2020,ADULT SOCIAL CARE,SUPREME CARE SERVICES LTD,349.68,PHY LTS 65+,HOMECARE - C&V,2103164790,1000059416,
04.11.2020,ADULT SOCIAL CARE,SUPREME CARE SERVICES LTD,350.70,PHY LTS 65+,HOMECARE - C&V,2103167560,1000059416,
04.11.2020,ADULT SOCIAL CARE,SUPREME CARE SERVICES LTD,350.70,PHY LTS 65+,HOMECARE - C&V,2103168684,1000059416,
04.11.2020,ADULT SOCIAL CARE,SUPREME CARE SERVICES LTD,350.84,PHY LTS 65+,HOMECARE - C&V,2103164615,1000059416,
04.11.2020,ADULT SOCIAL CARE,SUPREME CARE SERVICES LTD,353.37,PHY LTS 65+,HOMECARE - C&V,2103156565,1000059416,
04.11.2020,ADULT SOCIAL CARE,SUPREME CARE SERVICES LTD,353.44,PHY LTS 65+,HOMECARE - C&V,2103167819,1000059416,
04.11.2020,ADULT SOCIAL CARE,SUPREME CARE SERVICES LTD,353.52,PHY LTS 65+,HOMECARE - C&V,2103167444,1000059416,
04.11.2020,ADULT SOCIAL CARE,SUPREME CARE SERVICES LTD,353.52,PHY LTS 65+,HOMECARE - C&V,2103168599,1000059416,
04.11.2020,ADULT SOCIAL CARE,SUPREME CARE SERVICES LTD,353.94,PHY LTS 65+,HOMECARE - C&V,2103168312,1000059416,
04.11.2020,ADULT SOCIAL CARE,SUPREME CARE SERVICES LTD,354.98,PHY LTS 65+,HOMECARE - C&V,2103167795,1000059416,
04.11.2020,ADULT SOCIAL CARE,SUPREME CARE SERVICES LTD,355.01,PHY LTS 65+,HOMECARE - C&V,2103158422,1000059416,
04.11.2020,ADULT SOCIAL CARE,SUPREME CARE SERVICES LTD,355.22,PHY LTS 65+,HOMECARE - C&V,2103164653,1000059416,
04.11.2020,ADULT SOCIAL CARE,SUPREME CARE SERVICES LTD,357.84,PHY LTS 65+,HOMECARE - C&V,2103167970,1000059416,
04.11.2020,ADULT SOCIAL CARE,SUPREME CARE SERVICES LTD,357.87,PHY LTS 65+,HOMECARE - C&V,2103168008,1000059416,
04.11.2020,ADULT SOCIAL CARE,SUPREME CARE SERVICES LTD,357.88,PHY LTS 65+,HOMECARE - C&V,2103168405,1000059416,
04.11.2020,ADULT SOCIAL CARE,SUPREME CARE SERVICES LTD,357.93,PHY LTS 65+,HOMECARE - C&V,2103168258,1000059416,
04.11.2020,ADULT SOCIAL CARE,SUPREME CARE SERVICES LTD,358.12,PHY LTS 65+,HOMECARE - C&V,2103164607,1000059416,
04.11.2020,ADULT SOCIAL CARE,SUPREME CARE SERVICES LTD,358.12,PHY LTS 65+,HOMECARE - C&V,2103164807,1000059416,
04.11.2020,ADULT SOCIAL CARE,SUPREME CARE SERVICES LTD,361.80,PHY LTS 65+,HOMECARE - C&V,2103168224,1000059416,
04.11.2020,ADULT SOCIAL CARE,SUPREME CARE SERVICES LTD,362.03,PHY LTS 65+,HOMECARE - C&V,2103164821,1000059416,
04.11.2020,ADULT SOCIAL CARE,SUPREME CARE SERVICES LTD,362.09,PHY LTS 65+,HOMECARE - C&V,2103158603,1000059416,
04.11.2020,ADULT SOCIAL CARE,SUPREME CARE SERVICES LTD,362.12,PHY LTS 65+,HOMECARE - C&V,2103168028,1000059416,
04.11.2020,ADULT SOCIAL CARE,SUPREME CARE SERVICES LTD,362.15,PHY LTS 65+,HOMECARE - C&V,2103158473,1000059416,
04.11.2020,ADULT SOCIAL CARE,SUPREME CARE SERVICES LTD,362.16,PHY LTS 65+,HOMECARE - C&V,2103158539,1000059416,
04.11.2020,ADULT SOCIAL CARE,SUPREME CARE SERVICES LTD,362.22,PHY LTS 65+,HOMECARE - C&V,2103167964,1000059416,
04.11.2020,ADULT SOCIAL CARE,SUPREME CARE SERVICES LTD,362.27,PHY LTS 65+,HOMECARE - C&V,2103168344,1000059416,
04.11.2020,ADULT SOCIAL CARE,SUPREME CARE SERVICES LTD,362.33,PHY LTS 65+,HOMECARE - C&V,2103164859,1000059416,
04.11.2020,ADULT SOCIAL CARE,SUPREME CARE SERVICES LTD,362.38,PHY LTS 65+,HOMECARE - C&V,2103164909,1000059416,
04.11.2020,ADULT SOCIAL CARE,SUPREME CARE SERVICES LTD,363.54,PHY LTS 65+,HOMECARE - C&V,2103167948,1000059416,
04.11.2020,ADULT SOCIAL CARE,SUPREME CARE SERVICES LTD,364.07,PHY LTS 65+,HOMECARE - C&V,2103164825,1000059416,
04.11.2020,ADULT SOCIAL CARE,SUPREME CARE SERVICES LTD,365.26,PHY LTS 65+,HOMECARE - C&V,2103164725,1000059416,
04.11.2020,ADULT SOCIAL CARE,SUPREME CARE SERVICES LTD,366.44,PHY LTS 65+,HOMECARE - C&V,2103156488,1000059416,
04.11.2020,ADULT SOCIAL CARE,SUPREME CARE SERVICES LTD,366.44,PHY LTS 65+,HOMECARE - C&V,2103166009,1000059416,
04.11.2020,ADULT SOCIAL CARE,SUPREME CARE SERVICES LTD,366.48,PHY LTS 65+,HOMECARE - C&V,2103167844,1000059416,
04.11.2020,ADULT SOCIAL CARE,SUPREME CARE SERVICES LTD,366.52,PHY LTS 65+,HOMECARE - C&V,2103158684,1000059416,
04.11.2020,ADULT SOCIAL CARE,SUPREME CARE SERVICES LTD,366.52,PHY LTS 65+,HOMECARE - C&V,2103167341,1000059416,
04.11.2020,ADULT SOCIAL CARE,SUPREME CARE SERVICES LTD,366.52,PHY LTS 65+,HOMECARE - C&V,2103167547,1000059416,
04.11.2020,ADULT SOCIAL CARE,SUPREME CARE SERVICES LTD,366.52,PHY LTS 65+,HOMECARE - C&V,2103167759,1000059416,
04.11.2020,ADULT SOCIAL CARE,SUPREME CARE SERVICES LTD,366.52,PHY LTS 65+,HOMECARE - C&V,2103167907,1000059416,
04.11.2020,ADULT SOCIAL CARE,SUPREME CARE SERVICES LTD,366.52,PHY LTS 65+,HOMECARE - C&V,2103168045,1000059416,
04.11.2020,ADULT SOCIAL CARE,SUPREME CARE SERVICES LTD,366.52,PHY LTS 65+,HOMECARE - C&V,2103168122,1000059416,
04.11.2020,ADULT SOCIAL CARE,SUPREME CARE SERVICES LTD,366.52,PHY LTS 65+,HOMECARE - C&V,2103168396,1000059416,
04.11.2020,ADULT SOCIAL CARE,SUPREME CARE SERVICES LTD,366.52,PHY LTS 65+,HOMECARE - C&V,2103168504,1000059416,
04.11.2020,ADULT SOCIAL CARE,SUPREME CARE SERVICES LTD,366.52,PHY LTS 65+,HOMECARE - C&V,2103168615,1000059416,
04.11.2020,ADULT SOCIAL CARE,SUPREME CARE SERVICES LTD,366.52,PHY LTS 65+,HOMECARE - C&V,2103168639,1000059416,
04.11.2020,ADULT SOCIAL CARE,SUPREME CARE SERVICES LTD,366.52,PHY LTS 65+,HOMECARE - C&V,2103168758,1000059416,
04.11.2020,ADULT SOCIAL CARE,SUPREME CARE SERVICES LTD,366.52,PHY LTS 65+,HOMECARE - C&V,2103168798,1000059416,
04.11.2020,ADULT SOCIAL CARE,SUPREME CARE SERVICES LTD,367.40,PHY LTS 65+,HOMECARE - C&V,2103158525,1000059416,
04.11.2020,ADULT SOCIAL CARE,SUPREME CARE SERVICES LTD,367.40,PHY LTS 65+,HOMECARE - C&V,2103167757,1000059416,
04.11.2020,ADULT SOCIAL CARE,SUPREME CARE SERVICES LTD,367.40,PHY LTS 65+,HOMECARE - C&V,2103168134,1000059416,
04.11.2020,ADULT SOCIAL CARE,SUPREME CARE SERVICES LTD,367.51,PHY LTS 65+,HOMECARE - C&V,2103164555,1000059416,
04.11.2020,ADULT SOCIAL CARE,SUPREME CARE SERVICES LTD,367.52,PHY LTS 65+,HOMECARE - C&V,2103167505,1000059416,
04.11.2020,ADULT SOCIAL CARE,SUPREME CARE SERVICES LTD,368.96,PHY LTS 65+,HOMECARE - C&V,2103156503,1000059416,
04.11.2020,ADULT SOCIAL CARE,SUPREME CARE SERVICES LTD,369.44,PHY LTS 65+,HOMECARE - C&V,2103167625,1000059416,
04.11.2020,ADULT SOCIAL CARE,SUPREME CARE SERVICES LTD,370.87,PHY LTS 65+,HOMECARE - C&V,2103158584,1000059416,
04.11.2020,ADULT SOCIAL CARE,SUPREME CARE SERVICES LTD,370.88,PHY LTS 65+,HOMECARE - C&V,2103168291,1000059416,
04.11.2020,ADULT SOCIAL CARE,SUPREME CARE SERVICES LTD,370.88,PHY LTS 65+,HOMECARE - C&V,2103168577,1000059416,
04.11.2020,ADULT SOCIAL CARE,SUPREME CARE SERVICES LTD,370.90,PHY LTS 65+,HOMECARE - C&V,2103164532,1000059416,
04.11.2020,ADULT SOCIAL CARE,SUPREME CARE SERVICES LTD,371.58,PHY LTS 65+,HOMECARE - C&V,2103168560,1000059416,
04.11.2020,ADULT SOCIAL CARE,SUPREME CARE SERVICES LTD,375.24,PHY LTS 65+,HOMECARE - C&V,2103158711,1000059416,
04.11.2020,ADULT SOCIAL CARE,SUPREME CARE SERVICES LTD,375.24,PHY LTS 65+,HOMECARE - C&V,2103167610,1000059416,
04.11.2020,ADULT SOCIAL CARE,SUPREME CARE SERVICES LTD,375.24,PHY LTS 65+,HOMECARE - C&V,2103168038,1000059416,
04.11.2020,ADULT SOCIAL CARE,SUPREME CARE SERVICES LTD,375.25,PHY LTS 65+,HOMECARE - C&V,2103158534,1000059416,
04.11.2020,ADULT SOCIAL CARE,SUPREME CARE SERVICES LTD,375.77,PHY LTS 65+,HOMECARE - C&V,2103164567,1000059416,
04.11.2020,ADULT SOCIAL CARE,SUPREME CARE SERVICES LTD,379.42,PHY LTS 65+,HOMECARE - C&V,2103164546,1000059416,
04.11.2020,ADULT SOCIAL CARE,SUPREME CARE SERVICES LTD,379.42,PHY LTS 65+,HOMECARE - C&V,2103164919,1000059416,
04.11.2020,ADULT SOCIAL CARE,SUPREME CARE SERVICES LTD,379.44,PHY LTS 65+,HOMECARE - C&V,2103164540,1000059416,
04.11.2020,ADULT SOCIAL CARE,SUPREME CARE SERVICES LTD,379.51,PHY LTS 65+,HOMECARE - C&V,2103158393,1000059416,
04.11.2020,ADULT SOCIAL CARE,SUPREME CARE SERVICES LTD,379.60,PHY LTS 65+,HOMECARE - C&V,2103167775,1000059416,
04.11.2020,ADULT SOCIAL CARE,SUPREME CARE SERVICES LTD,379.60,PHY LTS 65+,HOMECARE - C&V,2103168412,1000059416,
04.11.2020,ADULT SOCIAL CARE,SUPREME CARE SERVICES LTD,380.03,PHY LTS 65+,HOMECARE - C&V,2103168390,1000059416,
04.11.2020,ADULT SOCIAL CARE,SUPREME CARE SERVICES LTD,383.48,PHY LTS 65+,HOMECARE - C&V,2103167919,1000059416,
04.11.2020,ADULT SOCIAL CARE,SUPREME CARE SERVICES LTD,383.76,PHY LTS 65+,HOMECARE - C&V,2103164539,1000059416,
04.11.2020,ADULT SOCIAL CARE,SUPREME CARE SERVICES LTD,383.92,PHY LTS 65+,HOMECARE - C&V,2103156586,1000059416,
04.11.2020,ADULT SOCIAL CARE,SUPREME CARE SERVICES LTD,383.92,PHY LTS 65+,HOMECARE - C&V,2103165982,1000059416,
04.11.2020,ADULT SOCIAL CARE,SUPREME CARE SERVICES LTD,383.96,PHY LTS 65+,HOMECARE - C&V,2103158459,1000059416,
04.11.2020,ADULT SOCIAL CARE,SUPREME CARE SERVICES LTD,383.96,PHY LTS 65+,HOMECARE - C&V,2103158509,1000059416,
04.11.2020,ADULT SOCIAL CARE,SUPREME CARE SERVICES LTD,384.04,PHY LTS 65+,HOMECARE - C&V,2103167887,1000059416,
04.11.2020,ADULT SOCIAL CARE,SUPREME CARE SERVICES LTD,384.05,PHY LTS 65+,HOMECARE - C&V,2103168783,1000059416,
04.11.2020,ADULT SOCIAL CARE,SUPREME CARE SERVICES LTD,384.12,PHY LTS 65+,HOMECARE - C&V,2103158407,1000059416,
04.11.2020,ADULT SOCIAL CARE,SUPREME CARE SERVICES LTD,384.12,PHY LTS 65+,HOMECARE - C&V,2103168308,1000059416,
04.11.2020,ADULT SOCIAL CARE,SUPREME CARE SERVICES LTD,385.12,PHY LTS 65+,HOMECARE - C&V,2103158634,1000059416,
04.11.2020,ADULT SOCIAL CARE,SUPREME CARE SERVICES LTD,388.30,PHY LTS 65+,HOMECARE - C&V,2103168048,1000059416,
04.11.2020,ADULT SOCIAL CARE,SUPREME CARE SERVICES LTD,388.31,PHY LTS 65+,HOMECARE - C&V,2103167360,1000059416,
04.11.2020,ADULT SOCIAL CARE,SUPREME CARE SERVICES LTD,388.32,PHY LTS 65+,HOMECARE - C&V,2103158590,1000059416,
04.11.2020,ADULT SOCIAL CARE,SUPREME CARE SERVICES LTD,388.37,PHY LTS 65+,HOMECARE - C&V,2103168677,1000059416,
04.11.2020,ADULT SOCIAL CARE,SUPREME CARE SERVICES LTD,388.48,PHY LTS 65+,HOMECARE - C&V,2103167642,1000059416,
04.11.2020,ADULT SOCIAL CARE,SUPREME CARE SERVICES LTD,392.68,PHY LTS 65+,HOMECARE - C&V,2103158646,1000059416,
04.11.2020,ADULT SOCIAL CARE,SUPREME CARE SERVICES LTD,392.80,PHY LTS 65+,HOMECARE - C&V,2103158557,1000059416,
04.11.2020,ADULT SOCIAL CARE,SUPREME CARE SERVICES LTD,395.20,PHY LTS 65+,HOMECARE - C&V,2103168243,1000059416,
04.11.2020,ADULT SOCIAL CARE,SUPREME CARE SERVICES LTD,397.04,PHY LTS 65+,HOMECARE - C&V,2103168484,1000059416,
04.11.2020,ADULT SOCIAL CARE,SUPREME CARE SERVICES LTD,397.10,PHY LTS 65+,HOMECARE - C&V,2103158572,1000059416,
04.11.2020,ADULT SOCIAL CARE,SUPREME CARE SERVICES LTD,401.35,PHY LTS 65+,HOMECARE - C&V,2103168756,1000059416,
04.11.2020,ADULT SOCIAL CARE,SUPREME CARE SERVICES LTD,401.40,PHY LTS 65+,HOMECARE - C&V,2103167671,1000059416,
04.11.2020,ADULT SOCIAL CARE,SUPREME CARE SERVICES LTD,401.40,PHY LTS 65+,HOMECARE - C&V,2103168101,1000059416,
04.11.2020,ADULT SOCIAL CARE,SUPREME CARE SERVICES LTD,401.40,PHY LTS 65+,HOMECARE - C&V,2103168211,1000059416,
04.11.2020,ADULT SOCIAL CARE,SUPREME CARE SERVICES LTD,401.40,PHY LTS 65+,HOMECARE - C&V,2103168375,1000059416,
04.11.2020,ADULT SOCIAL CARE,SUPREME CARE SERVICES LTD,401.56,PHY LTS 65+,HOMECARE - C&V,2103167989,1000059416,
04.11.2020,ADULT SOCIAL CARE,SUPREME CARE SERVICES LTD,405.05,PHY LTS 65+,HOMECARE - C&V,2103158567,1000059416,
04.11.2020,ADULT SOCIAL CARE,SUPREME CARE SERVICES LTD,407.23,PHY LTS 65+,HOMECARE - C&V,2103167422,1000059416,
04.11.2020,ADULT SOCIAL CARE,SUPREME CARE SERVICES LTD,408.05,PHY LTS 65+,HOMECARE - C&V,2103167599,1000059416,
04.11.2020,ADULT SOCIAL CARE,SUPREME CARE SERVICES LTD,409.29,PHY LTS 65+,HOMECARE - C&V,2103164675,1000059416,
04.11.2020,ADULT SOCIAL CARE,SUPREME CARE SERVICES LTD,409.29,PHY LTS 65+,HOMECARE - C&V,2103168722,1000059416,
04.11.2020,ADULT SOCIAL CARE,SUPREME CARE SERVICES LTD,410.21,PHY LTS 65+,HOMECARE - C&V,2103158358,1000059416,
04.11.2020,ADULT SOCIAL CARE,SUPREME CARE SERVICES LTD,414.66,PHY LTS 65+,HOMECARE - C&V,2103168542,1000059416,
04.11.2020,ADULT SOCIAL CARE,SUPREME CARE SERVICES LTD,416.47,PHY LTS 65+,HOMECARE - C&V,2103158547,1000059416,
04.11.2020,ADULT SOCIAL CARE,SUPREME CARE SERVICES LTD,420.57,PHY LTS 65+,HOMECARE - C&V,2103164798,1000059416,
04.11.2020,ADULT SOCIAL CARE,SUPREME CARE SERVICES LTD,427.58,PHY LTS 65+,HOMECARE - C&V,2103168206,1000059416,
04.11.2020,ADULT SOCIAL CARE,SUPREME CARE SERVICES LTD,427.65,PHY LTS 65+,HOMECARE - C&V,2103158677,1000059416,
04.11.2020,ADULT SOCIAL CARE,SUPREME CARE SERVICES LTD,430.72,PHY LTS 65+,HOMECARE - C&V,2103164910,1000059416,
04.11.2020,ADULT SOCIAL CARE,SUPREME CARE SERVICES LTD,432.83,PHY LTS 65+,HOMECARE - C&V,2103164869,1000059416,
04.11.2020,ADULT SOCIAL CARE,SUPREME CARE SERVICES LTD,433.75,PHY LTS 65+,HOMECARE - C&V,2103156534,1000059416,
04.11.2020,ADULT SOCIAL CARE,SUPREME CARE SERVICES LTD,434.86,PHY LTS 65+,HOMECARE - C&V,2103164657,1000059416,
04.11.2020,ADULT SOCIAL CARE,SUPREME CARE SERVICES LTD,436.08,PHY LTS 65+,HOMECARE - C&V,2103168086,1000059416,
04.11.2020,ADULT SOCIAL CARE,SUPREME CARE SERVICES LTD,436.32,PHY LTS 65+,HOMECARE - C&V,2103158447,1000059416,
04.11.2020,ADULT SOCIAL CARE,SUPREME CARE SERVICES LTD,436.36,PHY LTS 65+,HOMECARE - C&V,2103158703,1000059416,
04.11.2020,ADULT SOCIAL CARE,SUPREME CARE SERVICES LTD,436.36,PHY LTS 65+,HOMECARE - C&V,2103167378,1000059416,
04.11.2020,ADULT SOCIAL CARE,SUPREME CARE SERVICES LTD,436.36,PHY LTS 65+,HOMECARE - C&V,2103168267,1000059416,
04.11.2020,ADULT SOCIAL CARE,SUPREME CARE SERVICES LTD,436.37,PHY LTS 65+,HOMECARE - C&V,2103168630,1000059416,
04.11.2020,ADULT SOCIAL CARE,SUPREME CARE SERVICES LTD,436.41,PHY LTS 65+,HOMECARE - C&V,2103168612,1000059416,
04.11.2020,ADULT SOCIAL CARE,SUPREME CARE SERVICES LTD,438.12,PHY LTS 65+,HOMECARE - C&V,2103166029,1000059416,
04.11.2020,ADULT SOCIAL CARE,SUPREME CARE SERVICES LTD,439.16,PHY LTS 65+,HOMECARE - C&V,2103158642,1000059416,
04.11.2020,ADULT SOCIAL CARE,SUPREME CARE SERVICES LTD,439.90,PHY LTS 65+,HOMECARE - C&V,2103167806,1000059416,
04.11.2020,ADULT SOCIAL CARE,SUPREME CARE SERVICES LTD,440.72,PHY LTS 65+,HOMECARE - C&V,2103167949,1000059416,
04.11.2020,ADULT SOCIAL CARE,SUPREME CARE SERVICES LTD,443.31,PHY LTS 65+,HOMECARE - C&V,2103164599,1000059416,
04.11.2020,ADULT SOCIAL CARE,SUPREME CARE SERVICES LTD,444.20,PHY LTS 65+,HOMECARE - C&V,2103164792,1000059416,
04.11.2020,ADULT SOCIAL CARE,SUPREME CARE SERVICES LTD,445.04,PHY LTS 65+,HOMECARE - C&V,2103167459,1000059416,
04.11.2020,ADULT SOCIAL CARE,SUPREME CARE SERVICES LTD,445.21,PHY LTS 65+,HOMECARE - C&V,2103167929,1000059416,
04.11.2020,ADULT SOCIAL CARE,SUPREME CARE SERVICES LTD,448.57,PHY LTS 65+,HOMECARE - C&V,2103158645,1000059416,
04.11.2020,ADULT SOCIAL CARE,SUPREME CARE SERVICES LTD,449.51,PHY LTS 65+,HOMECARE - C&V,2103167395,1000059416,
04.11.2020,ADULT SOCIAL CARE,SUPREME CARE SERVICES LTD,453.90,PHY LTS 65+,HOMECARE - C&V,2103167647,1000059416,
04.11.2020,ADULT SOCIAL CARE,SUPREME CARE SERVICES LTD,453.92,PHY LTS 65+,HOMECARE - C&V,2103168427,1000059416,
04.11.2020,ADULT SOCIAL CARE,SUPREME CARE SERVICES LTD,453.96,PHY LTS 65+,HOMECARE - C&V,2103168664,1000059416,
04.11.2020,ADULT SOCIAL CARE,SUPREME CARE SERVICES LTD,457.04,PHY LTS 65+,HOMECARE - C&V,2103164631,1000059416,
04.11.2020,ADULT SOCIAL CARE,SUPREME CARE SERVICES LTD,458.29,PHY LTS 65+,HOMECARE - C&V,2103168047,1000059416,
04.11.2020,ADULT SOCIAL CARE,SUPREME CARE SERVICES LTD,458.29,PHY LTS 65+,HOMECARE - C&V,2103168668,1000059416,
04.11.2020,ADULT SOCIAL CARE,SUPREME CARE SERVICES LTD,458.69,PHY LTS 65+,HOMECARE - C&V,2103156603,1000059416,
04.11.2020,ADULT SOCIAL CARE,SUPREME CARE SERVICES LTD,459.81,PHY LTS 65+,HOMECARE - C&V,2103158350,1000059416,
04.11.2020,ADULT SOCIAL CARE,SUPREME CARE SERVICES LTD,462.10,PHY LTS 65+,HOMECARE - C&V,2103164802,1000059416,
04.11.2020,ADULT SOCIAL CARE,SUPREME CARE SERVICES LTD,462.56,PHY LTS 65+,HOMECARE - C&V,2103167826,1000059416,
04.11.2020,ADULT SOCIAL CARE,SUPREME CARE SERVICES LTD,467.61,PHY LTS 65+,HOMECARE - C&V,2103158483,1000059416,
04.11.2020,ADULT SOCIAL CARE,SUPREME CARE SERVICES LTD,467.61,PHY LTS 65+,HOMECARE - C&V,2103164880,1000059416,
04.11.2020,ADULT SOCIAL CARE,SUPREME CARE SERVICES LTD,469.69,PHY LTS 65+,HOMECARE - C&V,2103167993,1000059416,
04.11.2020,ADULT SOCIAL CARE,SUPREME CARE SERVICES LTD,471.15,PHY LTS 65+,HOMECARE - C&V,2103167853,1000059416,
04.11.2020,ADULT SOCIAL CARE,SUPREME CARE SERVICES LTD,471.15,PHY LTS 65+,HOMECARE - C&V,2103168229,1000059416,
04.11.2020,ADULT SOCIAL CARE,SUPREME CARE SERVICES LTD,471.16,PHY LTS 65+,HOMECARE - C&V,2103156581,1000059416,
04.11.2020,ADULT SOCIAL CARE,SUPREME CARE SERVICES LTD,471.20,PHY LTS 65+,HOMECARE - C&V,2103168293,1000059416,
04.11.2020,ADULT SOCIAL CARE,SUPREME CARE SERVICES LTD,471.21,PHY LTS 65+,HOMECARE - C&V,2103167985,1000059416,
04.11.2020,ADULT SOCIAL CARE,SUPREME CARE SERVICES LTD,471.24,PHY LTS 65+,HOMECARE - C&V,2103158651,1000059416,
04.11.2020,ADULT SOCIAL CARE,SUPREME CARE SERVICES LTD,471.24,PHY LTS 65+,HOMECARE - C&V,2103168781,1000059416,
04.11.2020,ADULT SOCIAL CARE,SUPREME CARE SERVICES LTD,471.40,PHY LTS 65+,HOMECARE - C&V,2103158416,1000059416,
04.11.2020,ADULT SOCIAL CARE,SUPREME CARE SERVICES LTD,471.42,PHY LTS 65+,HOMECARE - C&V,2103167469,1000059416,
04.11.2020,ADULT SOCIAL CARE,SUPREME CARE SERVICES LTD,471.80,PHY LTS 65+,HOMECARE - C&V,2103167863,1000059416,
04.11.2020,ADULT SOCIAL CARE,SUPREME CARE SERVICES LTD,475.54,PHY LTS 65+,HOMECARE - C&V,2103168288,1000059416,
04.11.2020,ADULT SOCIAL CARE,SUPREME CARE SERVICES LTD,475.56,PHY LTS 65+,HOMECARE - C&V,2103167357,1000059416,
04.11.2020,ADULT SOCIAL CARE,SUPREME CARE SERVICES LTD,475.56,PHY LTS 65+,HOMECARE - C&V,2103168383,1000059416,
04.11.2020,ADULT SOCIAL CARE,SUPREME CARE SERVICES LTD,475.56,PHY LTS 65+,HOMECARE - C&V,2103168620,1000059416,
04.11.2020,ADULT SOCIAL CARE,SUPREME CARE SERVICES LTD,475.69,PHY LTS 65+,HOMECARE - C&V,2103168787,1000059416,
04.11.2020,ADULT SOCIAL CARE,SUPREME CARE SERVICES LTD,476.03,PHY LTS 65+,HOMECARE - C&V,2103164553,1000059416,
04.11.2020,ADULT SOCIAL CARE,SUPREME CARE SERVICES LTD,477.37,PHY LTS 65+,HOMECARE - C&V,2103164770,1000059416,
04.11.2020,ADULT SOCIAL CARE,SUPREME CARE SERVICES LTD,477.40,PHY LTS 65+,HOMECARE - C&V,2103164779,1000059416,
04.11.2020,ADULT SOCIAL CARE,SUPREME CARE SERVICES LTD,477.40,PHY LTS 65+,HOMECARE - C&V,2103164845,1000059416,
04.11.2020,ADULT SOCIAL CARE,SUPREME CARE SERVICES LTD,479.88,PHY LTS 65+,HOMECARE - C&V,2103167428,1000059416,
04.11.2020,ADULT SOCIAL CARE,SUPREME CARE SERVICES LTD,480.08,PHY LTS 65+,HOMECARE - C&V,2103167467,1000059416,
04.11.2020,ADULT SOCIAL CARE,SUPREME CARE SERVICES LTD,480.15,PHY LTS 65+,HOMECARE - C&V,2103168381,1000059416,
04.11.2020,ADULT SOCIAL CARE,SUPREME CARE SERVICES LTD,480.32,PHY LTS 65+,HOMECARE - C&V,2103168221,1000059416,
04.11.2020,ADULT SOCIAL CARE,SUPREME CARE SERVICES LTD,484.32,PHY LTS 65+,HOMECARE - C&V,2103167786,1000059416,
04.11.2020,ADULT SOCIAL CARE,SUPREME CARE SERVICES LTD,484.34,PHY LTS 65+,HOMECARE - C&V,2103167660,1000059416,
04.11.2020,ADULT SOCIAL CARE,SUPREME CARE SERVICES LTD,484.51,PHY LTS 65+,HOMECARE - C&V,2103167530,1000059416,
04.11.2020,ADULT SOCIAL CARE,SUPREME CARE SERVICES LTD,484.96,PHY LTS 65+,HOMECARE - C&V,2103168188,1000059416,
04.11.2020,ADULT SOCIAL CARE,SUPREME CARE SERVICES LTD,486.09,PHY LTS 65+,HOMECARE - C&V,2103164589,1000059416,
04.11.2020,ADULT SOCIAL CARE,SUPREME CARE SERVICES LTD,486.20,PHY LTS 65+,HOMECARE - C&V,2103158494,1000059416,
04.11.2020,ADULT SOCIAL CARE,SUPREME CARE SERVICES LTD,486.20,PHY LTS 65+,HOMECARE - C&V,2103164637,1000059416,
04.11.2020,ADULT SOCIAL CARE,SUPREME CARE SERVICES LTD,488.60,PHY LTS 65+,HOMECARE - C&V,2103156498,1000059416,
04.11.2020,ADULT SOCIAL CARE,SUPREME CARE SERVICES LTD,488.60,PHY LTS 65+,HOMECARE - C&V,2103156512,1000059416,
04.11.2020,ADULT SOCIAL CARE,SUPREME CARE SERVICES LTD,488.60,PHY LTS 65+,HOMECARE - C&V,2103156546,1000059416,
04.11.2020,ADULT SOCIAL CARE,SUPREME CARE SERVICES LTD,488.60,PHY LTS 65+,HOMECARE - C&V,2103156564,1000059416,
04.11.2020,ADULT SOCIAL CARE,SUPREME CARE SERVICES LTD,488.60,PHY LTS 65+,HOMECARE - C&V,2103158520,1000059416,
04.11.2020,ADULT SOCIAL CARE,SUPREME CARE SERVICES LTD,488.60,PHY LTS 65+,HOMECARE - C&V,2103165987,1000059416,
04.11.2020,ADULT SOCIAL CARE,SUPREME CARE SERVICES LTD,488.60,PHY LTS 65+,HOMECARE - C&V,2103165989,1000059416,
04.11.2020,ADULT SOCIAL CARE,SUPREME CARE SERVICES LTD,488.60,PHY LTS 65+,HOMECARE - C&V,2103166005,1000059416,
04.11.2020,ADULT SOCIAL CARE,SUPREME CARE SERVICES LTD,488.60,PHY LTS 65+,HOMECARE - C&V,2103167649,1000059416,
04.11.2020,ADULT SOCIAL CARE,SUPREME CARE SERVICES LTD,488.60,PHY LTS 65+,HOMECARE - C&V,2103168676,1000059416,
04.11.2020,ADULT SOCIAL CARE,SUPREME CARE SERVICES LTD,488.85,PHY LTS 65+,HOMECARE - C&V,2103167974,1000059416,
04.11.2020,ADULT SOCIAL CARE,SUPREME CARE SERVICES LTD,488.87,PHY LTS 65+,HOMECARE - C&V,2103167581,1000059416,
04.11.2020,ADULT SOCIAL CARE,SUPREME CARE SERVICES LTD,488.88,PHY LTS 65+,HOMECARE - C&V,2103167586,1000059416,
04.11.2020,ADULT SOCIAL CARE,SUPREME CARE SERVICES LTD,488.88,PHY LTS 65+,HOMECARE - C&V,2103167983,1000059416,
04.11.2020,ADULT SOCIAL CARE,SUPREME CARE SERVICES LTD,490.45,PHY LTS 65+,HOMECARE - C&V,2103164762,1000059416,
04.11.2020,ADULT SOCIAL CARE,SUPREME CARE SERVICES LTD,490.46,PHY LTS 65+,HOMECARE - C&V,2103164766,1000059416,
04.11.2020,ADULT SOCIAL CARE,SUPREME CARE SERVICES LTD,492.65,PHY LTS 65+,HOMECARE - C&V,2103168678,1000059416,
04.11.2020,ADULT SOCIAL CARE,SUPREME CARE SERVICES LTD,493.00,PHY LTS 65+,HOMECARE - C&V,2103158389,1000059416,
04.11.2020,ADULT SOCIAL CARE,SUPREME CARE SERVICES LTD,493.00,PHY LTS 65+,HOMECARE - C&V,2103167771,1000059416,
04.11.2020,ADULT SOCIAL CARE,SUPREME CARE SERVICES LTD,493.24,PHY LTS 65+,HOMECARE - C&V,2103158463,1000059416,
04.11.2020,ADULT SOCIAL CARE,SUPREME CARE SERVICES LTD,493.24,PHY LTS 65+,HOMECARE - C&V,2103158701,1000059416,
04.11.2020,ADULT SOCIAL CARE,SUPREME CARE SERVICES LTD,493.24,PHY LTS 65+,HOMECARE - C&V,2103167663,1000059416,
04.11.2020,ADULT SOCIAL CARE,SUPREME CARE SERVICES LTD,493.24,PHY LTS 65+,HOMECARE - C&V,2103168159,1000059416,
04.11.2020,ADULT SOCIAL CARE,SUPREME CARE SERVICES LTD,494.64,PHY LTS 65+,HOMECARE - C&V,2103164645,1000059416,
04.11.2020,ADULT SOCIAL CARE,SUPREME CARE SERVICES LTD,494.72,PHY LTS 65+,HOMECARE - C&V,2103164707,1000059416,
04.11.2020,ADULT SOCIAL CARE,SUPREME CARE SERVICES LTD,496.83,PHY LTS 65+,HOMECARE - C&V,2103168391,1000059416,
04.11.2020,ADULT SOCIAL CARE,SUPREME CARE SERVICES LTD,497.37,PHY LTS 65+,HOMECARE - C&V,2103168526,1000059416,
04.11.2020,ADULT SOCIAL CARE,SUPREME CARE SERVICES LTD,497.47,PHY LTS 65+,HOMECARE - C&V,2103167443,1000059416,
04.11.2020,ADULT SOCIAL CARE,SUPREME CARE SERVICES LTD,497.60,PHY LTS 65+,HOMECARE - C&V,2103168093,1000059416,
04.11.2020,ADULT SOCIAL CARE,SUPREME CARE SERVICES LTD,497.60,PHY LTS 65+,HOMECARE - C&V,2103168251,1000059416,
04.11.2020,ADULT SOCIAL CARE,SUPREME CARE SERVICES LTD,500.02,PHY LTS 65+,HOMECARE - C&V,2103164701,1000059416,
04.11.2020,ADULT SOCIAL CARE,SUPREME CARE SERVICES LTD,501.00,PHY LTS 65+,HOMECARE - C&V,2103168000,1000059416,
04.11.2020,ADULT SOCIAL CARE,SUPREME CARE SERVICES LTD,501.78,PHY LTS 65+,HOMECARE - C&V,2103168145,1000059416,
04.11.2020,ADULT SOCIAL CARE,SUPREME CARE SERVICES LTD,501.95,PHY LTS 65+,HOMECARE - C&V,2103168571,1000059416,
04.11.2020,ADULT SOCIAL CARE,SUPREME CARE SERVICES LTD,501.96,PHY LTS 65+,HOMECARE - C&V,2103167780,1000059416,
04.11.2020,ADULT SOCIAL CARE,SUPREME CARE SERVICES LTD,505.19,PHY LTS 65+,HOMECARE - C&V,2103158467,1000059416,
04.11.2020,ADULT SOCIAL CARE,SUPREME CARE SERVICES LTD,506.04,PHY LTS 65+,HOMECARE - C&V,2103156577,1000059416,
04.11.2020,ADULT SOCIAL CARE,SUPREME CARE SERVICES LTD,506.21,PHY LTS 65+,HOMECARE - C&V,2103167361,1000059416,
04.11.2020,ADULT SOCIAL CARE,SUPREME CARE SERVICES LTD,506.32,PHY LTS 65+,HOMECARE - C&V,2103168792,1000059416,
04.11.2020,ADULT SOCIAL CARE,SUPREME CARE SERVICES LTD,507.37,PHY LTS 65+,HOMECARE - C&V,2103164588,1000059416,
04.11.2020,ADULT SOCIAL CARE,SUPREME CARE SERVICES LTD,507.41,PHY LTS 65+,HOMECARE - C&V,2103158511,1000059416,
04.11.2020,ADULT SOCIAL CARE,SUPREME CARE SERVICES LTD,507.45,PHY LTS 65+,HOMECARE - C&V,2103164808,1000059416,
04.11.2020,ADULT SOCIAL CARE,SUPREME CARE SERVICES LTD,509.36,PHY LTS 65+,HOMECARE - C&V,2103167474,1000059416,
04.11.2020,ADULT SOCIAL CARE,SUPREME CARE SERVICES LTD,509.48,PHY LTS 65+,HOMECARE - C&V,2103168682,1000059416,
04.11.2020,ADULT SOCIAL CARE,SUPREME CARE SERVICES LTD,510.56,PHY LTS 65+,HOMECARE - C&V,2103168326,1000059416,
04.11.2020,ADULT SOCIAL CARE,SUPREME CARE SERVICES LTD,511.57,PHY LTS 65+,HOMECARE - C&V,2103164549,1000059416,
04.11.2020,ADULT SOCIAL CARE,SUPREME CARE SERVICES LTD,511.75,PHY LTS 65+,HOMECARE - C&V,2103158585,1000059416,
04.11.2020,ADULT SOCIAL CARE,SUPREME CARE SERVICES LTD,511.77,PHY LTS 65+,HOMECARE - C&V,2103158401,1000059416,
04.11.2020,ADULT SOCIAL CARE,SUPREME CARE SERVICES LTD,511.80,PHY LTS 65+,HOMECARE - C&V,2103158729,1000059416,
04.11.2020,ADULT SOCIAL CARE,SUPREME CARE SERVICES LTD,514.98,PHY LTS 65+,HOMECARE - C&V,2103168110,1000059416,
04.11.2020,ADULT SOCIAL CARE,SUPREME CARE SERVICES LTD,514.99,PHY LTS 65+,HOMECARE - C&V,2103168660,1000059416,
04.11.2020,ADULT SOCIAL CARE,SUPREME CARE SERVICES LTD,515.26,PHY LTS 65+,HOMECARE - C&V,2103164640,1000059416,
04.11.2020,ADULT SOCIAL CARE,SUPREME CARE SERVICES LTD,516.16,PHY LTS 65+,HOMECARE - C&V,2103167897,1000059416,
04.11.2020,ADULT SOCIAL CARE,SUPREME CARE SERVICES LTD,517.71,PHY LTS 65+,HOMECARE - C&V,2103167396,1000059416,
04.11.2020,ADULT SOCIAL CARE,SUPREME CARE SERVICES LTD,518.77,PHY LTS 65+,HOMECARE - C&V,2103168525,1000059416,
04.11.2020,ADULT SOCIAL CARE,SUPREME CARE SERVICES LTD,519.42,PHY LTS 65+,HOMECARE - C&V,2103168784,1000059416,
04.11.2020,ADULT SOCIAL CARE,SUPREME CARE SERVICES LTD,520.90,PHY LTS 65+,HOMECARE - C&V,2103168223,1000059416,
04.11.2020,ADULT SOCIAL CARE,SUPREME CARE SERVICES LTD,523.43,PHY LTS 65+,HOMECARE - C&V,2103164747,1000059416,
04.11.2020,ADULT SOCIAL CARE,SUPREME CARE SERVICES LTD,524.39,PHY LTS 65+,HOMECARE - C&V,2103164584,1000059416,
04.11.2020,ADULT SOCIAL CARE,SUPREME CARE SERVICES LTD,526.12,PHY LTS 65+,HOMECARE - C&V,2103164739,1000059416,
04.11.2020,ADULT SOCIAL CARE,SUPREME CARE SERVICES LTD,527.92,PHY LTS 65+,HOMECARE - C&V,2103168039,1000059416,
04.11.2020,ADULT SOCIAL CARE,SUPREME CARE SERVICES LTD,527.93,PHY LTS 65+,HOMECARE - C&V,2103168118,1000059416,
04.11.2020,ADULT SOCIAL CARE,SUPREME CARE SERVICES LTD,527.97,PHY LTS 65+,HOMECARE - C&V,2103168518,1000059416,
04.11.2020,ADULT SOCIAL CARE,SUPREME CARE SERVICES LTD,530.28,PHY LTS 65+,HOMECARE - C&V,2103158617,1000059416,
04.11.2020,ADULT SOCIAL CARE,SUPREME CARE SERVICES LTD,532.27,PHY LTS 65+,HOMECARE - C&V,2103158737,1000059416,
04.11.2020,ADULT SOCIAL CARE,SUPREME CARE SERVICES LTD,532.32,PHY LTS 65+,HOMECARE - C&V,2103167846,1000059416,
04.11.2020,ADULT SOCIAL CARE,SUPREME CARE SERVICES LTD,532.33,PHY LTS 65+,HOMECARE - C&V,2103167763,1000059416,
04.11.2020,ADULT SOCIAL CARE,SUPREME CARE SERVICES LTD,534.50,PHY LTS 65+,HOMECARE - C&V,2103168127,1000059416,
04.11.2020,ADULT SOCIAL CARE,SUPREME CARE SERVICES LTD,535.13,PHY LTS 65+,HOMECARE - C&V,2103168543,1000059416,
04.11.2020,ADULT SOCIAL CARE,SUPREME CARE SERVICES LTD,536.65,PHY LTS 65+,HOMECARE - C&V,2103167638,1000059416,
04.11.2020,ADULT SOCIAL CARE,SUPREME CARE SERVICES LTD,537.29,PHY LTS 65+,HOMECARE - C&V,2103168649,1000059416,
04.11.2020,ADULT SOCIAL CARE,SUPREME CARE SERVICES LTD,537.44,PHY LTS 65+,HOMECARE - C&V,2103168769,1000059416,
04.11.2020,ADULT SOCIAL CARE,SUPREME CARE SERVICES LTD,538.46,PHY LTS 65+,HOMECARE - C&V,2103156550,1000059416,
04.11.2020,ADULT SOCIAL CARE,SUPREME CARE SERVICES LTD,538.58,PHY LTS 65+,HOMECARE - C&V,2103164677,1000059416,
04.11.2020,ADULT SOCIAL CARE,SUPREME CARE SERVICES LTD,541.37,PHY LTS 65+,HOMECARE - C&V,2103158717,1000059416,
04.11.2020,ADULT SOCIAL CARE,SUPREME CARE SERVICES LTD,545.38,PHY LTS 65+,HOMECARE - C&V,2103168753,1000059416,
04.11.2020,ADULT SOCIAL CARE,SUPREME CARE SERVICES LTD,545.42,PHY LTS 65+,HOMECARE - C&V,2103168627,1000059416,
04.11.2020,ADULT SOCIAL CARE,SUPREME CARE SERVICES LTD,545.48,PHY LTS 65+,HOMECARE - C&V,2103168695,1000059416,
04.11.2020,ADULT SOCIAL CARE,SUPREME CARE SERVICES LTD,545.53,PHY LTS 65+,HOMECARE - C&V,2103158466,1000059416,
04.11.2020,ADULT SOCIAL CARE,SUPREME CARE SERVICES LTD,545.61,PHY LTS 65+,HOMECARE - C&V,2103167815,1000059416,
04.11.2020,ADULT SOCIAL CARE,SUPREME CARE SERVICES LTD,546.93,PHY LTS 65+,HOMECARE - C&V,2103168515,1000059416,
04.11.2020,ADULT SOCIAL CARE,SUPREME CARE SERVICES LTD,547.23,PHY LTS 65+,HOMECARE - C&V,2103167693,1000059416,
04.11.2020,ADULT SOCIAL CARE,SUPREME CARE SERVICES LTD,549.68,PHY LTS 65+,HOMECARE - C&V,2103158348,1000059416,
04.11.2020,ADULT SOCIAL CARE,SUPREME CARE SERVICES LTD,549.68,PHY LTS 65+,HOMECARE - C&V,2103168386,1000059416,
04.11.2020,ADULT SOCIAL CARE,SUPREME CARE SERVICES LTD,549.83,PHY LTS 65+,HOMECARE - C&V,2103168200,1000059416,
04.11.2020,ADULT SOCIAL CARE,SUPREME CARE SERVICES LTD,549.99,PHY LTS 65+,HOMECARE - C&V,2103167592,1000059416,
04.11.2020,ADULT SOCIAL CARE,SUPREME CARE SERVICES LTD,554.31,PHY LTS 65+,HOMECARE - C&V,2103167435,1000059416,
04.11.2020,ADULT SOCIAL CARE,SUPREME CARE SERVICES LTD,557.97,PHY LTS 65+,HOMECARE - C&V,2103167568,1000059416,
04.11.2020,ADULT SOCIAL CARE,SUPREME CARE SERVICES LTD,558.40,PHY LTS 65+,HOMECARE - C&V,2103156562,1000059416,
04.11.2020,ADULT SOCIAL CARE,SUPREME CARE SERVICES LTD,558.40,PHY LTS 65+,HOMECARE - C&V,2103156587,1000059416,
04.11.2020,ADULT SOCIAL CARE,SUPREME CARE SERVICES LTD,558.40,PHY LTS 65+,HOMECARE - C&V,2103158641,1000059416,
04.11.2020,ADULT SOCIAL CARE,SUPREME CARE SERVICES LTD,558.40,PHY LTS 65+,HOMECARE - C&V,2103167743,1000059416,
04.11.2020,ADULT SOCIAL CARE,SUPREME CARE SERVICES LTD,558.67,PHY LTS 65+,HOMECARE - C&V,2103158676,1000059416,
04.11.2020,ADULT SOCIAL CARE,SUPREME CARE SERVICES LTD,558.67,PHY LTS 65+,HOMECARE - C&V,2103168132,1000059416,
04.11.2020,ADULT SOCIAL CARE,SUPREME CARE SERVICES LTD,558.68,PHY LTS 65+,HOMECARE - C&V,2103167958,1000059416,
04.11.2020,ADULT SOCIAL CARE,SUPREME CARE SERVICES LTD,561.51,PHY LTS 65+,HOMECARE - C&V,2103164875,1000059416,
04.11.2020,ADULT SOCIAL CARE,SUPREME CARE SERVICES LTD,563.77,PHY LTS 65+,HOMECARE - C&V,2103167942,1000059416,
04.11.2020,ADULT SOCIAL CARE,SUPREME CARE SERVICES LTD,563.80,PHY LTS 65+,HOMECARE - C&V,2103168290,1000059416,
04.11.2020,ADULT SOCIAL CARE,SUPREME CARE SERVICES LTD,567.12,PHY LTS 65+,HOMECARE - C&V,2103167668,1000059416,
04.11.2020,ADULT SOCIAL CARE,SUPREME CARE SERVICES LTD,567.19,PHY LTS 65+,HOMECARE - C&V,2103168752,1000059416,
04.11.2020,ADULT SOCIAL CARE,SUPREME CARE SERVICES LTD,567.31,PHY LTS 65+,HOMECARE - C&V,2103168738,1000059416,
04.11.2020,ADULT SOCIAL CARE,SUPREME CARE SERVICES LTD,571.18,PHY LTS 65+,HOMECARE - C&V,2103164920,1000059416,
04.11.2020,ADULT SOCIAL CARE,SUPREME CARE SERVICES LTD,571.48,PHY LTS 65+,HOMECARE - C&V,2103167464,1000059416,
04.11.2020,ADULT SOCIAL CARE,SUPREME CARE SERVICES LTD,571.64,PHY LTS 65+,HOMECARE - C&V,2103168474,1000059416,
04.11.2020,ADULT SOCIAL CARE,SUPREME CARE SERVICES LTD,571.66,PHY LTS 65+,HOMECARE - C&V,2103168285,1000059416,
04.11.2020,ADULT SOCIAL CARE,SUPREME CARE SERVICES LTD,571.75,PHY LTS 65+,HOMECARE - C&V,2103158411,1000059416,
04.11.2020,ADULT SOCIAL CARE,SUPREME CARE SERVICES LTD,572.88,PHY LTS 65+,HOMECARE - C&V,2103164864,1000059416,
04.11.2020,ADULT SOCIAL CARE,SUPREME CARE SERVICES LTD,575.84,PHY LTS 65+,HOMECARE - C&V,2103156529,1000059416,
04.11.2020,ADULT SOCIAL CARE,SUPREME CARE SERVICES LTD,575.84,PHY LTS 65+,HOMECARE - C&V,2103166006,1000059416,
04.11.2020,ADULT SOCIAL CARE,SUPREME CARE SERVICES LTD,576.16,PHY LTS 65+,HOMECARE - C&V,2103168236,1000059416,
04.11.2020,ADULT SOCIAL CARE,SUPREME CARE SERVICES LTD,576.22,PHY LTS 65+,HOMECARE - C&V,2103167433,1000059416,
04.11.2020,ADULT SOCIAL CARE,SUPREME CARE SERVICES LTD,579.72,PHY LTS 65+,HOMECARE - C&V,2103164890,1000059416,
04.11.2020,ADULT SOCIAL CARE,SUPREME CARE SERVICES LTD,580.09,PHY LTS 65+,HOMECARE - C&V,2103164814,1000059416,
04.11.2020,ADULT SOCIAL CARE,SUPREME CARE SERVICES LTD,580.33,PHY LTS 65+,HOMECARE - C&V,2103167835,1000059416,
04.11.2020,ADULT SOCIAL CARE,SUPREME CARE SERVICES LTD,580.34,PHY LTS 65+,HOMECARE - C&V,2103158595,1000059416,
04.11.2020,ADULT SOCIAL CARE,SUPREME CARE SERVICES LTD,580.40,PHY LTS 65+,HOMECARE - C&V,2103167934,1000059416,
04.11.2020,ADULT SOCIAL CARE,SUPREME CARE SERVICES LTD,581.74,PHY LTS 65+,HOMECARE - C&V,2103164901,1000059416,
04.11.2020,ADULT SOCIAL CARE,SUPREME CARE SERVICES LTD,583.33,PHY LTS 65+,HOMECARE - C&V,2103165977,1000059416,
04.11.2020,ADULT SOCIAL CARE,SUPREME CARE SERVICES LTD,583.97,PHY LTS 65+,HOMECARE - C&V,2103164883,1000059416,
04.11.2020,ADULT SOCIAL CARE,SUPREME CARE SERVICES LTD,584.64,PHY LTS 65+,HOMECARE - C&V,2103164737,1000059416,
04.11.2020,ADULT SOCIAL CARE,SUPREME CARE SERVICES LTD,584.64,PHY LTS 65+,HOMECARE - C&V,2103167387,1000059416,
04.11.2020,ADULT SOCIAL CARE,SUPREME CARE SERVICES LTD,584.64,PHY LTS 65+,HOMECARE - C&V,2103167720,1000059416,
04.11.2020,ADULT SOCIAL CARE,SUPREME CARE SERVICES LTD,584.64,PHY LTS 65+,HOMECARE - C&V,2103168234,1000059416,
04.11.2020,ADULT SOCIAL CARE,SUPREME CARE SERVICES LTD,584.64,PHY LTS 65+,HOMECARE - C&V,2103168724,1000059416,
04.11.2020,ADULT SOCIAL CARE,SUPREME CARE SERVICES LTD,584.75,PHY LTS 65+,HOMECARE - C&V,2103168478,1000059416,
04.11.2020,ADULT SOCIAL CARE,SUPREME CARE SERVICES LTD,584.83,PHY LTS 65+,HOMECARE - C&V,2103158370,1000059416,
04.11.2020,ADULT SOCIAL CARE,SUPREME CARE SERVICES LTD,588.44,PHY LTS 65+,HOMECARE - C&V,2103164656,1000059416,
04.11.2020,ADULT SOCIAL CARE,SUPREME CARE SERVICES LTD,588.74,PHY LTS 65+,HOMECARE - C&V,2103158612,1000059416,
04.11.2020,ADULT SOCIAL CARE,SUPREME CARE SERVICES LTD,589.14,PHY LTS 65+,HOMECARE - C&V,2103167834,1000059416,
04.11.2020,ADULT SOCIAL CARE,SUPREME CARE SERVICES LTD,589.14,PHY LTS 65+,HOMECARE - C&V,2103168350,1000059416,
04.11.2020,ADULT SOCIAL CARE,SUPREME CARE SERVICES LTD,591.35,PHY LTS 65+,HOMECARE - C&V,2103167544,1000059416,
04.11.2020,ADULT SOCIAL CARE,SUPREME CARE SERVICES LTD,592.72,PHY LTS 65+,HOMECARE - C&V,2103158721,1000059416,
04.11.2020,ADULT SOCIAL CARE,SUPREME CARE SERVICES LTD,592.88,PHY LTS 65+,HOMECARE - C&V,2103158482,1000059416,
04.11.2020,ADULT SOCIAL CARE,SUPREME CARE SERVICES LTD,593.32,PHY LTS 65+,HOMECARE - C&V,2103156553,1000059416,
04.11.2020,ADULT SOCIAL CARE,SUPREME CARE SERVICES LTD,593.32,PHY LTS 65+,HOMECARE - C&V,2103156566,1000059416,
04.11.2020,ADULT SOCIAL CARE,SUPREME CARE SERVICES LTD,593.32,PHY LTS 65+,HOMECARE - C&V,2103167741,1000059416,
04.11.2020,ADULT SOCIAL CARE,SUPREME CARE SERVICES LTD,593.32,PHY LTS 65+,HOMECARE - C&V,2103167751,1000059416,
04.11.2020,ADULT SOCIAL CARE,SUPREME CARE SERVICES LTD,593.32,PHY LTS 65+,HOMECARE - C&V,2103168182,1000059416,
04.11.2020,ADULT SOCIAL CARE,SUPREME CARE SERVICES LTD,593.32,PHY LTS 65+,HOMECARE - C&V,2103168637,1000059416,
04.11.2020,ADULT SOCIAL CARE,SUPREME CARE SERVICES LTD,593.47,PHY LTS 65+,HOMECARE - C&V,2103168094,1000059416,
04.11.2020,ADULT SOCIAL CARE,SUPREME CARE SERVICES LTD,593.49,PHY LTS 65+,HOMECARE - C&V,2103158354,1000059416,
04.11.2020,ADULT SOCIAL CARE,SUPREME CARE SERVICES LTD,593.49,PHY LTS 65+,HOMECARE - C&V,2103168092,1000059416,
04.11.2020,ADULT SOCIAL CARE,SUPREME CARE SERVICES LTD,593.51,PHY LTS 65+,HOMECARE - C&V,2103167571,1000059416,
04.11.2020,ADULT SOCIAL CARE,SUPREME CARE SERVICES LTD,593.52,PHY LTS 65+,HOMECARE - C&V,2103168148,1000059416,
04.11.2020,ADULT SOCIAL CARE,SUPREME CARE SERVICES LTD,593.58,PHY LTS 65+,HOMECARE - C&V,2103168489,1000059416,
04.11.2020,ADULT SOCIAL CARE,SUPREME CARE SERVICES LTD,593.59,PHY LTS 65+,HOMECARE - C&V,2103167827,1000059416,
04.11.2020,ADULT SOCIAL CARE,SUPREME CARE SERVICES LTD,594.85,PHY LTS 65+,HOMECARE - C&V,2103164531,1000059416,
04.11.2020,ADULT SOCIAL CARE,SUPREME CARE SERVICES LTD,596.96,PHY LTS 65+,HOMECARE - C&V,2103158536,1000059416,
04.11.2020,ADULT SOCIAL CARE,SUPREME CARE SERVICES LTD,596.96,PHY LTS 65+,HOMECARE - C&V,2103164634,1000059416,
04.11.2020,ADULT SOCIAL CARE,SUPREME CARE SERVICES LTD,596.96,PHY LTS 65+,HOMECARE - C&V,2103164662,1000059416,
04.11.2020,ADULT SOCIAL CARE,SUPREME CARE SERVICES LTD,597.05,PHY LTS 65+,HOMECARE - C&V,2103164787,1000059416,
04.11.2020,ADULT SOCIAL CARE,SUPREME CARE SERVICES LTD,597.06,PHY LTS 65+,HOMECARE - C&V,2103167347,1000059416,
04.11.2020,ADULT SOCIAL CARE,SUPREME CARE SERVICES LTD,597.11,PHY LTS 65+,HOMECARE - C&V,2103167555,1000059416,
04.11.2020,ADULT SOCIAL CARE,SUPREME CARE SERVICES LTD,597.40,PHY LTS 65+,HOMECARE - C&V,2103164816,1000059416,
04.11.2020,ADULT SOCIAL CARE,SUPREME CARE SERVICES LTD,601.22,PHY LTS 65+,HOMECARE - C&V,2103158452,1000059416,
04.11.2020,ADULT SOCIAL CARE,SUPREME CARE SERVICES LTD,601.24,PHY LTS 65+,HOMECARE - C&V,2103164619,1000059416,
04.11.2020,ADULT SOCIAL CARE,SUPREME CARE SERVICES LTD,601.24,PHY LTS 65+,HOMECARE - C&V,2103167855,1000059416,
04.11.2020,ADULT SOCIAL CARE,SUPREME CARE SERVICES LTD,602.05,PHY LTS 65+,HOMECARE - C&V,2103167338,1000059416,
04.11.2020,ADULT SOCIAL CARE,SUPREME CARE SERVICES LTD,602.14,PHY LTS 65+,HOMECARE - C&V,2103158478,1000059416,
04.11.2020,ADULT SOCIAL CARE,SUPREME CARE SERVICES LTD,602.22,PHY LTS 65+,HOMECARE - C&V,2103167401,1000059416,
04.11.2020,ADULT SOCIAL CARE,SUPREME CARE SERVICES LTD,602.23,PHY LTS 65+,HOMECARE - C&V,2103158674,1000059416,
04.11.2020,ADULT SOCIAL CARE,SUPREME CARE SERVICES LTD,602.23,PHY LTS 65+,HOMECARE - C&V,2103167898,1000059416,
04.11.2020,ADULT SOCIAL CARE,SUPREME CARE SERVICES LTD,602.23,PHY LTS 65+,HOMECARE - C&V,2103167937,1000059416,
04.11.2020,ADULT SOCIAL CARE,SUPREME CARE SERVICES LTD,602.29,PHY LTS 65+,HOMECARE - C&V,2103167549,1000059416,
04.11.2020,ADULT SOCIAL CARE,SUPREME CARE SERVICES LTD,605.28,PHY LTS 65+,HOMECARE - C&V,2103158568,1000059416,
04.11.2020,ADULT SOCIAL CARE,SUPREME CARE SERVICES LTD,605.29,PHY LTS 65+,HOMECARE - C&V,2103158404,1000059416,
04.11.2020,ADULT SOCIAL CARE,SUPREME CARE SERVICES LTD,606.59,PHY LTS 65+,HOMECARE - C&V,2103168539,1000059416,
04.11.2020,ADULT SOCIAL CARE,SUPREME CARE SERVICES LTD,606.59,PHY LTS 65+,HOMECARE - C&V,2103168601,1000059416,
04.11.2020,ADULT SOCIAL CARE,SUPREME CARE SERVICES LTD,606.60,PHY LTS 65+,HOMECARE - C&V,2103167817,1000059416,
04.11.2020,ADULT SOCIAL CARE,SUPREME CARE SERVICES LTD,606.62,PHY LTS 65+,HOMECARE - C&V,2103168625,1000059416,
04.11.2020,ADULT SOCIAL CARE,SUPREME CARE SERVICES LTD,606.64,PHY LTS 65+,HOMECARE - C&V,2103168306,1000059416,
04.11.2020,ADULT SOCIAL CARE,SUPREME CARE SERVICES LTD,606.67,PHY LTS 65+,HOMECARE - C&V,2103167491,1000059416,
04.11.2020,ADULT SOCIAL CARE,SUPREME CARE SERVICES LTD,606.68,PHY LTS 65+,HOMECARE - C&V,2103168382,1000059416,
04.11.2020,ADULT SOCIAL CARE,SUPREME CARE SERVICES LTD,608.82,PHY LTS 65+,HOMECARE - C&V,2103164767,1000059416,
04.11.2020,ADULT SOCIAL CARE,SUPREME CARE SERVICES LTD,610.76,PHY LTS 65+,HOMECARE - C&V,2103156482,1000059416,
04.11.2020,ADULT SOCIAL CARE,SUPREME CARE SERVICES LTD,610.76,PHY LTS 65+,HOMECARE - C&V,2103156483,1000059416,
04.11.2020,ADULT SOCIAL CARE,SUPREME CARE SERVICES LTD,610.76,PHY LTS 65+,HOMECARE - C&V,2103156499,1000059416,
04.11.2020,ADULT SOCIAL CARE,SUPREME CARE SERVICES LTD,610.76,PHY LTS 65+,HOMECARE - C&V,2103156526,1000059416,
04.11.2020,ADULT SOCIAL CARE,SUPREME CARE SERVICES LTD,610.76,PHY LTS 65+,HOMECARE - C&V,2103156538,1000059416,
04.11.2020,ADULT SOCIAL CARE,SUPREME CARE SERVICES LTD,610.76,PHY LTS 65+,HOMECARE - C&V,2103156548,1000059416,
04.11.2020,ADULT SOCIAL CARE,SUPREME CARE SERVICES LTD,610.76,PHY LTS 65+,HOMECARE - C&V,2103156570,1000059416,
04.11.2020,ADULT SOCIAL CARE,SUPREME CARE SERVICES LTD,610.76,PHY LTS 65+,HOMECARE - C&V,2103158707,1000059416,
04.11.2020,ADULT SOCIAL CARE,SUPREME CARE SERVICES LTD,610.76,PHY LTS 65+,HOMECARE - C&V,2103165980,1000059416,
04.11.2020,ADULT SOCIAL CARE,SUPREME CARE SERVICES LTD,610.76,PHY LTS 65+,HOMECARE - C&V,2103165984,1000059416,
04.11.2020,ADULT SOCIAL CARE,SUPREME CARE SERVICES LTD,610.76,PHY LTS 65+,HOMECARE - C&V,2103165995,1000059416,
04.11.2020,ADULT SOCIAL CARE,SUPREME CARE SERVICES LTD,610.76,PHY LTS 65+,HOMECARE - C&V,2103166020,1000059416,
04.11.2020,ADULT SOCIAL CARE,SUPREME CARE SERVICES LTD,610.76,PHY LTS 65+,HOMECARE - C&V,2103166023,1000059416,
04.11.2020,ADULT SOCIAL CARE,SUPREME CARE SERVICES LTD,610.76,PHY LTS 65+,HOMECARE - C&V,2103168801,1000059416,
04.11.2020,ADULT SOCIAL CARE,SUPREME CARE SERVICES LTD,610.92,PHY LTS 65+,HOMECARE - C&V,2103167661,1000059416,
04.11.2020,ADULT SOCIAL CARE,SUPREME CARE SERVICES LTD,610.95,PHY LTS 65+,HOMECARE - C&V,2103167995,1000059416,
04.11.2020,ADULT SOCIAL CARE,SUPREME CARE SERVICES LTD,610.96,PHY LTS 65+,HOMECARE - C&V,2103158491,1000059416,
04.11.2020,ADULT SOCIAL CARE,SUPREME CARE SERVICES LTD,610.96,PHY LTS 65+,HOMECARE - C&V,2103167447,1000059416,
04.11.2020,ADULT SOCIAL CARE,SUPREME CARE SERVICES LTD,610.96,PHY LTS 65+,HOMECARE - C&V,2103167463,1000059416,
04.11.2020,ADULT SOCIAL CARE,SUPREME CARE SERVICES LTD,610.96,PHY LTS 65+,HOMECARE - C&V,2103167764,1000059416,
04.11.2020,ADULT SOCIAL CARE,SUPREME CARE SERVICES LTD,610.96,PHY LTS 65+,HOMECARE - C&V,2103167941,1000059416,
04.11.2020,ADULT SOCIAL CARE,SUPREME CARE SERVICES LTD,610.96,PHY LTS 65+,HOMECARE - C&V,2103168354,1000059416,
04.11.2020,ADULT SOCIAL CARE,SUPREME CARE SERVICES LTD,610.96,PHY LTS 65+,HOMECARE - C&V,2103168541,1000059416,
04.11.2020,ADULT SOCIAL CARE,SUPREME CARE SERVICES LTD,610.96,PHY LTS 65+,HOMECARE - C&V,2103168715,1000059416,
04.11.2020,ADULT SOCIAL CARE,SUPREME CARE SERVICES LTD,613.78,PHY LTS 65+,HOMECARE - C&V,2103167727,1000059416,
04.11.2020,ADULT SOCIAL CARE,SUPREME CARE SERVICES LTD,613.80,PHY LTS 65+,HOMECARE - C&V,2103168464,1000059416,
04.11.2020,ADULT SOCIAL CARE,SUPREME CARE SERVICES LTD,613.82,PHY LTS 65+,HOMECARE - C&V,2103168585,1000059416,
04.11.2020,ADULT SOCIAL CARE,SUPREME CARE SERVICES LTD,614.00,PHY LTS 65+,HOMECARE - C&V,2103158476,1000059416,
04.11.2020,ADULT SOCIAL CARE,SUPREME CARE SERVICES LTD,614.38,PHY LTS 65+,HOMECARE - C&V,2103168257,1000059416,
04.11.2020,ADULT SOCIAL CARE,SUPREME CARE SERVICES LTD,615.32,PHY LTS 65+,HOMECARE - C&V,2103167595,1000059416,
04.11.2020,ADULT SOCIAL CARE,SUPREME CARE SERVICES LTD,615.32,PHY LTS 65+,HOMECARE - C&V,2103168329,1000059416,
04.11.2020,ADULT SOCIAL CARE,SUPREME CARE SERVICES LTD,616.57,PHY LTS 65+,HOMECARE - C&V,2103158506,1000059416,
04.11.2020,ADULT SOCIAL CARE,SUPREME CARE SERVICES LTD,619.67,PHY LTS 65+,HOMECARE - C&V,2103168042,1000059416,
04.11.2020,ADULT SOCIAL CARE,SUPREME CARE SERVICES LTD,619.68,PHY LTS 65+,HOMECARE - C&V,2103158497,1000059416,
04.11.2020,ADULT SOCIAL CARE,SUPREME CARE SERVICES LTD,619.68,PHY LTS 65+,HOMECARE - C&V,2103168353,1000059416,
04.11.2020,ADULT SOCIAL CARE,SUPREME CARE SERVICES LTD,619.68,PHY LTS 65+,HOMECARE - C&V,2103168624,1000059416,
04.11.2020,ADULT SOCIAL CARE,SUPREME CARE SERVICES LTD,622.14,PHY LTS 65+,HOMECARE - C&V,2103168773,1000059416,
04.11.2020,ADULT SOCIAL CARE,SUPREME CARE SERVICES LTD,622.52,PHY LTS 65+,HOMECARE - C&V,2103164528,1000059416,
04.11.2020,ADULT SOCIAL CARE,SUPREME CARE SERVICES LTD,623.99,PHY LTS 65+,HOMECARE - C&V,2103168688,1000059416,
04.11.2020,ADULT SOCIAL CARE,SUPREME CARE SERVICES LTD,624.04,PHY LTS 65+,HOMECARE - C&V,2103168339,1000059416,
04.11.2020,ADULT SOCIAL CARE,SUPREME CARE SERVICES LTD,626.70,PHY LTS 65+,HOMECARE - C&V,2103164571,1000059416,
04.11.2020,ADULT SOCIAL CARE,SUPREME CARE SERVICES LTD,628.40,PHY LTS 65+,HOMECARE - C&V,2103167769,1000059416,
04.11.2020,ADULT SOCIAL CARE,SUPREME CARE SERVICES LTD,628.48,PHY LTS 65+,HOMECARE - C&V,2103158357,1000059416,
04.11.2020,ADULT SOCIAL CARE,SUPREME CARE SERVICES LTD,630.57,PHY LTS 65+,HOMECARE - C&V,2103168129,1000059416,
04.11.2020,ADULT SOCIAL CARE,SUPREME CARE SERVICES LTD,632.76,PHY LTS 65+,HOMECARE - C&V,2103158479,1000059416,
04.11.2020,ADULT SOCIAL CARE,SUPREME CARE SERVICES LTD,632.76,PHY LTS 65+,HOMECARE - C&V,2103167417,1000059416,
04.11.2020,ADULT SOCIAL CARE,SUPREME CARE SERVICES LTD,632.76,PHY LTS 65+,HOMECARE - C&V,2103167804,1000059416,
04.11.2020,ADULT SOCIAL CARE,SUPREME CARE SERVICES LTD,632.76,PHY LTS 65+,HOMECARE - C&V,2103168755,1000059416,
04.11.2020,ADULT SOCIAL CARE,SUPREME CARE SERVICES LTD,632.80,PHY LTS 65+,HOMECARE - C&V,2103167746,1000059416,
04.11.2020,ADULT SOCIAL CARE,SUPREME CARE SERVICES LTD,633.22,PHY LTS 65+,HOMECARE - C&V,2103167468,1000059416,
04.11.2020,ADULT SOCIAL CARE,SUPREME CARE SERVICES LTD,635.28,PHY LTS 65+,HOMECARE - C&V,2103164526,1000059416,
04.11.2020,ADULT SOCIAL CARE,SUPREME CARE SERVICES LTD,635.31,PHY LTS 65+,HOMECARE - C&V,2103158725,1000059416,
04.11.2020,ADULT SOCIAL CARE,SUPREME CARE SERVICES LTD,635.31,PHY LTS 65+,HOMECARE - C&V,2103158738,1000059416,
04.11.2020,ADULT SOCIAL CARE,SUPREME CARE SERVICES LTD,635.33,PHY LTS 65+,HOMECARE - C&V,2103164573,1000059416,
04.11.2020,ADULT SOCIAL CARE,SUPREME CARE SERVICES LTD,637.08,PHY LTS 65+,HOMECARE - C&V,2103168020,1000059416,
04.11.2020,ADULT SOCIAL CARE,SUPREME CARE SERVICES LTD,637.43,PHY LTS 65+,HOMECARE - C&V,2103168691,1000059416,
04.11.2020,ADULT SOCIAL CARE,SUPREME CARE SERVICES LTD,640.04,PHY LTS 65+,HOMECARE - C&V,2103164698,1000059416,
04.11.2020,ADULT SOCIAL CARE,SUPREME CARE SERVICES LTD,645.64,PHY LTS 65+,HOMECARE - C&V,2103166013,1000059416,
04.11.2020,ADULT SOCIAL CARE,SUPREME CARE SERVICES LTD,645.84,PHY LTS 65+,HOMECARE - C&V,2103167873,1000059416,
04.11.2020,ADULT SOCIAL CARE,SUPREME CARE SERVICES LTD,645.88,PHY LTS 65+,HOMECARE - C&V,2103168007,1000059416,
04.11.2020,ADULT SOCIAL CARE,SUPREME CARE SERVICES LTD,645.99,PHY LTS 65+,HOMECARE - C&V,2103168302,1000059416,
04.11.2020,ADULT SOCIAL CARE,SUPREME CARE SERVICES LTD,648.09,PHY LTS 65+,HOMECARE - C&V,2103164893,1000059416,
04.11.2020,ADULT SOCIAL CARE,SUPREME CARE SERVICES LTD,650.20,PHY LTS 65+,HOMECARE - C&V,2103168141,1000059416,
04.11.2020,ADULT SOCIAL CARE,SUPREME CARE SERVICES LTD,650.20,PHY LTS 65+,HOMECARE - C&V,2103168286,1000059416,
04.11.2020,ADULT SOCIAL CARE,SUPREME CARE SERVICES LTD,650.20,PHY LTS 65+,HOMECARE - C&V,2103168653,1000059416,
04.11.2020,ADULT SOCIAL CARE,SUPREME CARE SERVICES LTD,650.21,PHY LTS 65+,HOMECARE - C&V,2103158693,1000059416,
04.11.2020,ADULT SOCIAL CARE,SUPREME CARE SERVICES LTD,650.21,PHY LTS 65+,HOMECARE - C&V,2103167915,1000059416,
04.11.2020,ADULT SOCIAL CARE,SUPREME CARE SERVICES LTD,651.44,PHY LTS 65+,HOMECARE - C&V,2103167476,1000059416,
04.11.2020,ADULT SOCIAL CARE,SUPREME CARE SERVICES LTD,651.44,PHY LTS 65+,HOMECARE - C&V,2103167760,1000059416,
04.11.2020,ADULT SOCIAL CARE,SUPREME CARE SERVICES LTD,652.34,PHY LTS 65+,HOMECARE - C&V,2103158405,1000059416,
04.11.2020,ADULT SOCIAL CARE,SUPREME CARE SERVICES LTD,654.37,PHY LTS 65+,HOMECARE - C&V,2103167416,1000059416,
04.11.2020,ADULT SOCIAL CARE,SUPREME CARE SERVICES LTD,654.56,PHY LTS 65+,HOMECARE - C&V,2103167527,1000059416,
04.11.2020,ADULT SOCIAL CARE,SUPREME CARE SERVICES LTD,654.56,PHY LTS 65+,HOMECARE - C&V,2103167689,1000059416,
04.11.2020,ADULT SOCIAL CARE,SUPREME CARE SERVICES LTD,654.57,PHY LTS 65+,HOMECARE - C&V,2103168194,1000059416,
04.11.2020,ADULT SOCIAL CARE,SUPREME CARE SERVICES LTD,654.67,PHY LTS 65+,HOMECARE - C&V,2103168084,1000059416,
04.11.2020,ADULT SOCIAL CARE,SUPREME CARE SERVICES LTD,656.64,PHY LTS 65+,HOMECARE - C&V,2103158526,1000059416,
04.11.2020,ADULT SOCIAL CARE,SUPREME CARE SERVICES LTD,658.92,PHY LTS 65+,HOMECARE - C&V,2103168287,1000059416,
04.11.2020,ADULT SOCIAL CARE,SUPREME CARE SERVICES LTD,658.93,PHY LTS 65+,HOMECARE - C&V,2103168730,1000059416,
04.11.2020,ADULT SOCIAL CARE,SUPREME CARE SERVICES LTD,659.72,PHY LTS 65+,HOMECARE - C&V,2103164788,1000059416,
04.11.2020,ADULT SOCIAL CARE,SUPREME CARE SERVICES LTD,659.74,PHY LTS 65+,HOMECARE - C&V,2103167386,1000059416,
04.11.2020,ADULT SOCIAL CARE,SUPREME CARE SERVICES LTD,660.54,PHY LTS 65+,HOMECARE - C&V,2103168144,1000059416,
04.11.2020,ADULT SOCIAL CARE,SUPREME CARE SERVICES LTD,661.13,PHY LTS 65+,HOMECARE - C&V,2103168044,1000059416,
04.11.2020,ADULT SOCIAL CARE,SUPREME CARE SERVICES LTD,661.74,PHY LTS 65+,HOMECARE - C&V,2103168310,1000059416,
04.11.2020,ADULT SOCIAL CARE,SUPREME CARE SERVICES LTD,662.54,PHY LTS 65+,HOMECARE - C&V,2103164577,1000059416,
04.11.2020,ADULT SOCIAL CARE,SUPREME CARE SERVICES LTD,663.09,PHY LTS 65+,HOMECARE - C&V,2103168349,1000059416,
04.11.2020,ADULT SOCIAL CARE,SUPREME CARE SERVICES LTD,663.12,PHY LTS 65+,HOMECARE - C&V,2103156544,1000059416,
04.11.2020,ADULT SOCIAL CARE,SUPREME CARE SERVICES LTD,663.12,PHY LTS 65+,HOMECARE - C&V,2103166003,1000059416,
04.11.2020,ADULT SOCIAL CARE,SUPREME CARE SERVICES LTD,663.28,PHY LTS 65+,HOMECARE - C&V,2103168210,1000059416,
04.11.2020,ADULT SOCIAL CARE,SUPREME CARE SERVICES LTD,663.40,PHY LTS 65+,HOMECARE - C&V,2103167914,1000059416,
04.11.2020,ADULT SOCIAL CARE,SUPREME CARE SERVICES LTD,663.46,PHY LTS 65+,HOMECARE - C&V,2103158720,1000059416,
04.11.2020,ADULT SOCIAL CARE,SUPREME CARE SERVICES LTD,667.64,PHY LTS 65+,HOMECARE - C&V,2103167703,1000059416,
04.11.2020,ADULT SOCIAL CARE,SUPREME CARE SERVICES LTD,667.76,PHY LTS 65+,HOMECARE - C&V,2103167442,1000059416,
04.11.2020,ADULT SOCIAL CARE,SUPREME CARE SERVICES LTD,668.50,PHY LTS 65+,HOMECARE - C&V,2103164902,1000059416,
04.11.2020,ADULT SOCIAL CARE,SUPREME CARE SERVICES LTD,669.42,PHY LTS 65+,HOMECARE - C&V,2103158623,1000059416,
04.11.2020,ADULT SOCIAL CARE,SUPREME CARE SERVICES LTD,669.44,PHY LTS 65+,HOMECARE - C&V,2103164799,1000059416,
04.11.2020,ADULT SOCIAL CARE,SUPREME CARE SERVICES LTD,672.03,PHY LTS 65+,HOMECARE - C&V,2103168018,1000059416,
04.11.2020,ADULT SOCIAL CARE,SUPREME CARE SERVICES LTD,676.33,PHY LTS 65+,HOMECARE - C&V,2103167665,1000059416,
04.11.2020,ADULT SOCIAL CARE,SUPREME CARE SERVICES LTD,676.46,PHY LTS 65+,HOMECARE - C&V,2103167911,1000059416,
04.11.2020,ADULT SOCIAL CARE,SUPREME CARE SERVICES LTD,677.34,PHY LTS 65+,HOMECARE - C&V,2103164897,1000059416,
04.11.2020,ADULT SOCIAL CARE,SUPREME CARE SERVICES LTD,680.56,PHY LTS 65+,HOMECARE - C&V,2103156530,1000059416,
04.11.2020,ADULT SOCIAL CARE,SUPREME CARE SERVICES LTD,680.56,PHY LTS 65+,HOMECARE - C&V,2103156572,1000059416,
04.11.2020,ADULT SOCIAL CARE,SUPREME CARE SERVICES LTD,680.68,PHY LTS 65+,HOMECARE - C&V,2103168737,1000059416,
04.11.2020,ADULT SOCIAL CARE,SUPREME CARE SERVICES LTD,680.76,PHY LTS 65+,HOMECARE - C&V,2103158656,1000059416,
04.11.2020,ADULT SOCIAL CARE,SUPREME CARE SERVICES LTD,680.84,PHY LTS 65+,HOMECARE - C&V,2103158570,1000059416,
04.11.2020,ADULT SOCIAL CARE,SUPREME CARE SERVICES LTD,682.28,PHY LTS 65+,HOMECARE - C&V,2103164728,1000059416,
04.11.2020,ADULT SOCIAL CARE,SUPREME CARE SERVICES LTD,682.73,PHY LTS 65+,HOMECARE - C&V,2103158410,1000059416,
04.11.2020,ADULT SOCIAL CARE,SUPREME CARE SERVICES LTD,685.06,PHY LTS 65+,HOMECARE - C&V,2103168155,1000059416,
04.11.2020,ADULT SOCIAL CARE,SUPREME CARE SERVICES LTD,685.12,PHY LTS 65+,HOMECARE - C&V,2103167623,1000059416,
04.11.2020,ADULT SOCIAL CARE,SUPREME CARE SERVICES LTD,687.73,PHY LTS 65+,HOMECARE - C&V,2103164714,1000059416,
04.11.2020,ADULT SOCIAL CARE,SUPREME CARE SERVICES LTD,688.54,PHY LTS 65+,HOMECARE - C&V,2103167424,1000059416,
04.11.2020,ADULT SOCIAL CARE,SUPREME CARE SERVICES LTD,689.48,PHY LTS 65+,HOMECARE - C&V,2103167518,1000059416,
04.11.2020,ADULT SOCIAL CARE,SUPREME CARE SERVICES LTD,689.54,PHY LTS 65+,HOMECARE - C&V,2103167375,1000059416,
04.11.2020,ADULT SOCIAL CARE,SUPREME CARE SERVICES LTD,693.84,PHY LTS 65+,HOMECARE - C&V,2103167923,1000059416,
04.11.2020,ADULT SOCIAL CARE,SUPREME CARE SERVICES LTD,693.90,PHY LTS 65+,HOMECARE - C&V,2103167406,1000059416,
04.11.2020,ADULT SOCIAL CARE,SUPREME CARE SERVICES LTD,694.35,PHY LTS 65+,HOMECARE - C&V,2103164746,1000059416,
04.11.2020,ADULT SOCIAL CARE,SUPREME CARE SERVICES LTD,694.98,PHY LTS 65+,HOMECARE - C&V,2103158577,1000059416,
04.11.2020,ADULT SOCIAL CARE,SUPREME CARE SERVICES LTD,696.40,PHY LTS 65+,HOMECARE - C&V,2103167842,1000059416,
04.11.2020,ADULT SOCIAL CARE,SUPREME CARE SERVICES LTD,697.35,PHY LTS 65+,HOMECARE - C&V,2103168272,1000059416,
04.11.2020,ADULT SOCIAL CARE,SUPREME CARE SERVICES LTD,698.19,PHY LTS 65+,HOMECARE - C&V,2103158683,1000059416,
04.11.2020,ADULT SOCIAL CARE,SUPREME CARE SERVICES LTD,699.26,PHY LTS 65+,HOMECARE - C&V,2103164669,1000059416,
04.11.2020,ADULT SOCIAL CARE,SUPREME CARE SERVICES LTD,701.44,PHY LTS 65+,HOMECARE - C&V,2103167796,1000059416,
04.11.2020,ADULT SOCIAL CARE,SUPREME CARE SERVICES LTD,701.54,PHY LTS 65+,HOMECARE - C&V,2103164843,1000059416,
04.11.2020,ADULT SOCIAL CARE,SUPREME CARE SERVICES LTD,701.56,PHY LTS 65+,HOMECARE - C&V,2103158582,1000059416,
04.11.2020,ADULT SOCIAL CARE,SUPREME CARE SERVICES LTD,702.56,PHY LTS 65+,HOMECARE - C&V,2103167402,1000059416,
04.11.2020,ADULT SOCIAL CARE,SUPREME CARE SERVICES LTD,702.56,PHY LTS 65+,HOMECARE - C&V,2103167687,1000059416,
04.11.2020,ADULT SOCIAL CARE,SUPREME CARE SERVICES LTD,702.56,PHY LTS 65+,HOMECARE - C&V,2103168147,1000059416,
04.11.2020,ADULT SOCIAL CARE,SUPREME CARE SERVICES LTD,702.56,PHY LTS 65+,HOMECARE - C&V,2103168782,1000059416,
04.11.2020,ADULT SOCIAL CARE,SUPREME CARE SERVICES LTD,705.71,PHY LTS 65+,HOMECARE - C&V,2103167605,1000059416,
04.11.2020,ADULT SOCIAL CARE,SUPREME CARE SERVICES LTD,706.91,PHY LTS 65+,HOMECARE - C&V,2103168647,1000059416,
04.11.2020,ADULT SOCIAL CARE,SUPREME CARE SERVICES LTD,706.92,PHY LTS 65+,HOMECARE - C&V,2103158353,1000059416,
04.11.2020,ADULT SOCIAL CARE,SUPREME CARE SERVICES LTD,706.94,PHY LTS 65+,HOMECARE - C&V,2103158604,1000059416,
04.11.2020,ADULT SOCIAL CARE,SUPREME CARE SERVICES LTD,706.96,PHY LTS 65+,HOMECARE - C&V,2103168459,1000059416,
04.11.2020,ADULT SOCIAL CARE,SUPREME CARE SERVICES LTD,707.71,PHY LTS 65+,HOMECARE - C&V,2103164835,1000059416,
04.11.2020,ADULT SOCIAL CARE,SUPREME CARE SERVICES LTD,707.79,PHY LTS 65+,HOMECARE - C&V,2103158377,1000059416,
04.11.2020,ADULT SOCIAL CARE,SUPREME CARE SERVICES LTD,707.99,PHY LTS 65+,HOMECARE - C&V,2103158622,1000059416,
04.11.2020,ADULT SOCIAL CARE,SUPREME CARE SERVICES LTD,709.04,PHY LTS 65+,HOMECARE - C&V,2103164529,1000059416,
04.11.2020,ADULT SOCIAL CARE,SUPREME CARE SERVICES LTD,711.23,PHY LTS 65+,HOMECARE - C&V,2103167688,1000059416,
04.11.2020,ADULT SOCIAL CARE,SUPREME CARE SERVICES LTD,711.98,PHY LTS 65+,HOMECARE - C&V,2103164691,1000059416,
04.11.2020,ADULT SOCIAL CARE,SUPREME CARE SERVICES LTD,715.44,PHY LTS 65+,HOMECARE - C&V,2103156500,1000059416,
04.11.2020,ADULT SOCIAL CARE,SUPREME CARE SERVICES LTD,715.63,PHY LTS 65+,HOMECARE - C&V,2103167485,1000059416,
04.11.2020,ADULT SOCIAL CARE,SUPREME CARE SERVICES LTD,715.64,PHY LTS 65+,HOMECARE - C&V,2103158723,1000059416,
04.11.2020,ADULT SOCIAL CARE,SUPREME CARE SERVICES LTD,715.67,PHY LTS 65+,HOMECARE - C&V,2103158518,1000059416,
04.11.2020,ADULT SOCIAL CARE,SUPREME CARE SERVICES LTD,716.10,PHY LTS 65+,HOMECARE - C&V,2103164722,1000059416,
04.11.2020,ADULT SOCIAL CARE,SUPREME CARE SERVICES LTD,716.28,PHY LTS 65+,HOMECARE - C&V,2103158606,1000059416,
04.11.2020,ADULT SOCIAL CARE,SUPREME CARE SERVICES LTD,718.16,PHY LTS 65+,HOMECARE - C&V,2103167507,1000059416,
04.11.2020,ADULT SOCIAL CARE,SUPREME CARE SERVICES LTD,719.95,PHY LTS 65+,HOMECARE - C&V,2103158580,1000059416,
04.11.2020,ADULT SOCIAL CARE,SUPREME CARE SERVICES LTD,720.49,PHY LTS 65+,HOMECARE - C&V,2103158706,1000059416,
04.11.2020,ADULT SOCIAL CARE,SUPREME CARE SERVICES LTD,724.36,PHY LTS 65+,HOMECARE - C&V,2103168335,1000059416,
04.11.2020,ADULT SOCIAL CARE,SUPREME CARE SERVICES LTD,724.38,PHY LTS 65+,HOMECARE - C&V,2103167626,1000059416,
04.11.2020,ADULT SOCIAL CARE,SUPREME CARE SERVICES LTD,724.39,PHY LTS 65+,HOMECARE - C&V,2103167327,1000059416,
04.11.2020,ADULT SOCIAL CARE,SUPREME CARE SERVICES LTD,724.39,PHY LTS 65+,HOMECARE - C&V,2103167334,1000059416,
04.11.2020,ADULT SOCIAL CARE,SUPREME CARE SERVICES LTD,724.45,PHY LTS 65+,HOMECARE - C&V,2103167943,1000059416,
04.11.2020,ADULT SOCIAL CARE,SUPREME CARE SERVICES LTD,724.61,PHY LTS 65+,HOMECARE - C&V,2103164832,1000059416,
04.11.2020,ADULT SOCIAL CARE,SUPREME CARE SERVICES LTD,724.85,PHY LTS 65+,HOMECARE - C&V,2103164530,1000059416,
04.11.2020,ADULT SOCIAL CARE,SUPREME CARE SERVICES LTD,726.59,PHY LTS 65+,HOMECARE - C&V,2103168766,1000059416,
04.11.2020,ADULT SOCIAL CARE,SUPREME CARE SERVICES LTD,728.54,PHY LTS 65+,HOMECARE - C&V,2103168170,1000059416,
04.11.2020,ADULT SOCIAL CARE,SUPREME CARE SERVICES LTD,728.95,PHY LTS 65+,HOMECARE - C&V,2103167864,1000059416,
04.11.2020,ADULT SOCIAL CARE,SUPREME CARE SERVICES LTD,729.30,PHY LTS 65+,HOMECARE - C&V,2103164842,1000059416,
04.11.2020,ADULT SOCIAL CARE,SUPREME CARE SERVICES LTD,729.99,PHY LTS 65+,HOMECARE - C&V,2103167837,1000059416,
04.11.2020,ADULT SOCIAL CARE,SUPREME CARE SERVICES LTD,732.90,PHY LTS 65+,HOMECARE - C&V,2103160809,1000059416,
04.11.2020,ADULT SOCIAL CARE,SUPREME CARE SERVICES LTD,732.90,PHY LTS 65+,HOMECARE - C&V,2103167418,1000059416,
04.11.2020,ADULT SOCIAL CARE,SUPREME CARE SERVICES LTD,732.92,PHY LTS 65+,HOMECARE - C&V,2103165975,1000059416,
04.11.2020,ADULT SOCIAL CARE,SUPREME CARE SERVICES LTD,732.92,PHY LTS 65+,HOMECARE - C&V,2103166008,1000059416,
04.11.2020,ADULT SOCIAL CARE,SUPREME CARE SERVICES LTD,733.00,PHY LTS 65+,HOMECARE - C&V,2103168700,1000059416,
04.11.2020,ADULT SOCIAL CARE,SUPREME CARE SERVICES LTD,733.11,PHY LTS 65+,HOMECARE - C&V,2103167562,1000059416,
04.11.2020,ADULT SOCIAL CARE,SUPREME CARE SERVICES LTD,733.20,PHY LTS 65+,HOMECARE - C&V,2103168453,1000059416,
04.11.2020,ADULT SOCIAL CARE,SUPREME CARE SERVICES LTD,733.21,PHY LTS 65+,HOMECARE - C&V,2103164868,1000059416,
04.11.2020,ADULT SOCIAL CARE,SUPREME CARE SERVICES LTD,733.32,PHY LTS 65+,HOMECARE - C&V,2103167616,1000059416,
04.11.2020,ADULT SOCIAL CARE,SUPREME CARE SERVICES LTD,733.32,PHY LTS 65+,HOMECARE - C&V,2103168193,1000059416,
04.11.2020,ADULT SOCIAL CARE,SUPREME CARE SERVICES LTD,733.32,PHY LTS 65+,HOMECARE - C&V,2103168692,1000059416,
04.11.2020,ADULT SOCIAL CARE,SUPREME CARE SERVICES LTD,733.36,PHY LTS 65+,HOMECARE - C&V,2103164609,1000059416,
04.11.2020,ADULT SOCIAL CARE,SUPREME CARE SERVICES LTD,733.36,PHY LTS 65+,HOMECARE - C&V,2103164804,1000059416,
04.11.2020,ADULT SOCIAL CARE,SUPREME CARE SERVICES LTD,736.08,PHY LTS 65+,HOMECARE - C&V,2103164730,1000059416,
04.11.2020,ADULT SOCIAL CARE,SUPREME CARE SERVICES LTD,736.48,PHY LTS 65+,HOMECARE - C&V,2103167994,1000059416,
04.11.2020,ADULT SOCIAL CARE,SUPREME CARE SERVICES LTD,737.40,PHY LTS 65+,HOMECARE - C&V,2103168619,1000059416,
04.11.2020,ADULT SOCIAL CARE,SUPREME CARE SERVICES LTD,737.47,PHY LTS 65+,HOMECARE - C&V,2103167845,1000059416,
04.11.2020,ADULT SOCIAL CARE,SUPREME CARE SERVICES LTD,737.48,PHY LTS 65+,HOMECARE - C&V,2103167849,1000059416,
04.11.2020,ADULT SOCIAL CARE,SUPREME CARE SERVICES LTD,741.72,PHY LTS 65+,HOMECARE - C&V,2103168356,1000059416,
04.11.2020,ADULT SOCIAL CARE,SUPREME CARE SERVICES LTD,743.28,PHY LTS 65+,HOMECARE - C&V,2103167659,1000059416,
04.11.2020,ADULT SOCIAL CARE,SUPREME CARE SERVICES LTD,746.07,PHY LTS 65+,HOMECARE - C&V,2103167373,1000059416,
04.11.2020,ADULT SOCIAL CARE,SUPREME CARE SERVICES LTD,746.19,PHY LTS 65+,HOMECARE - C&V,2103167466,1000059416,
04.11.2020,ADULT SOCIAL CARE,SUPREME CARE SERVICES LTD,746.20,PHY LTS 65+,HOMECARE - C&V,2103167810,1000059416,
04.11.2020,ADULT SOCIAL CARE,SUPREME CARE SERVICES LTD,746.20,PHY LTS 65+,HOMECARE - C&V,2103168099,1000059416,
04.11.2020,ADULT SOCIAL CARE,SUPREME CARE SERVICES LTD,746.20,PHY LTS 65+,HOMECARE - C&V,2103168547,1000059416,
04.11.2020,ADULT SOCIAL CARE,SUPREME CARE SERVICES LTD,746.29,PHY LTS 65+,HOMECARE - C&V,2103158538,1000059416,
04.11.2020,ADULT SOCIAL CARE,SUPREME CARE SERVICES LTD,746.30,PHY LTS 65+,HOMECARE - C&V,2103167992,1000059416,
04.11.2020,ADULT SOCIAL CARE,SUPREME CARE SERVICES LTD,747.35,PHY LTS 65+,HOMECARE - C&V,2103164616,1000059416,
04.11.2020,ADULT SOCIAL CARE,SUPREME CARE SERVICES LTD,750.36,PHY LTS 65+,HOMECARE - C&V,2103156508,1000059416,
04.11.2020,ADULT SOCIAL CARE,SUPREME CARE SERVICES LTD,750.36,PHY LTS 65+,HOMECARE - C&V,2103156525,1000059416,
04.11.2020,ADULT SOCIAL CARE,SUPREME CARE SERVICES LTD,750.36,PHY LTS 65+,HOMECARE - C&V,2103165990,1000059416,
04.11.2020,ADULT SOCIAL CARE,SUPREME CARE SERVICES LTD,750.36,PHY LTS 65+,HOMECARE - C&V,2103166030,1000059416,
04.11.2020,ADULT SOCIAL CARE,SUPREME CARE SERVICES LTD,750.56,PHY LTS 65+,HOMECARE - C&V,2103168609,1000059416,
04.11.2020,ADULT SOCIAL CARE,SUPREME CARE SERVICES LTD,750.62,PHY LTS 65+,HOMECARE - C&V,2103168023,1000059416,
04.11.2020,ADULT SOCIAL CARE,SUPREME CARE SERVICES LTD,750.72,PHY LTS 65+,HOMECARE - C&V,2103167484,1000059416,
04.11.2020,ADULT SOCIAL CARE,SUPREME CARE SERVICES LTD,751.57,PHY LTS 65+,HOMECARE - C&V,2103168393,1000059416,
04.11.2020,ADULT SOCIAL CARE,SUPREME CARE SERVICES LTD,751.64,PHY LTS 65+,HOMECARE - C&V,2103167729,1000059416,
04.11.2020,ADULT SOCIAL CARE,SUPREME CARE SERVICES LTD,751.64,PHY LTS 65+,HOMECARE - C&V,2103168195,1000059416,
04.11.2020,ADULT SOCIAL CARE,SUPREME CARE SERVICES LTD,754.88,PHY LTS 65+,HOMECARE - C&V,2103168563,1000059416,
04.11.2020,ADULT SOCIAL CARE,SUPREME CARE SERVICES LTD,754.91,PHY LTS 65+,HOMECARE - C&V,2103168374,1000059416,
04.11.2020,ADULT SOCIAL CARE,SUPREME CARE SERVICES LTD,755.01,PHY LTS 65+,HOMECARE - C&V,2103167497,1000059416,
04.11.2020,ADULT SOCIAL CARE,SUPREME CARE SERVICES LTD,755.81,PHY LTS 65+,HOMECARE - C&V,2103168731,1000059416,
04.11.2020,ADULT SOCIAL CARE,SUPREME CARE SERVICES LTD,759.30,PHY LTS 65+,HOMECARE - C&V,2103158418,1000059416,
04.11.2020,ADULT SOCIAL CARE,SUPREME CARE SERVICES LTD,759.32,PHY LTS 65+,HOMECARE - C&V,2103168247,1000059416,
04.11.2020,ADULT SOCIAL CARE,SUPREME CARE SERVICES LTD,760.02,PHY LTS 65+,HOMECARE - C&V,2103158532,1000059416,
04.11.2020,ADULT SOCIAL CARE,SUPREME CARE SERVICES LTD,763.56,PHY LTS 65+,HOMECARE - C&V,2103168300,1000059416,
04.11.2020,ADULT SOCIAL CARE,SUPREME CARE SERVICES LTD,763.63,PHY LTS 65+,HOMECARE - C&V,2103167551,1000059416,
04.11.2020,ADULT SOCIAL CARE,SUPREME CARE SERVICES LTD,763.64,PHY LTS 65+,HOMECARE - C&V,2103168655,1000059416,
04.11.2020,ADULT SOCIAL CARE,SUPREME CARE SERVICES LTD,764.14,PHY LTS 65+,HOMECARE - C&V,2103168058,1000059416,
04.11.2020,ADULT SOCIAL CARE,SUPREME CARE SERVICES LTD,764.16,PHY LTS 65+,HOMECARE - C&V,2103158624,1000059416,
04.11.2020,ADULT SOCIAL CARE,SUPREME CARE SERVICES LTD,767.38,PHY LTS 65+,HOMECARE - C&V,2103164620,1000059416,
04.11.2020,ADULT SOCIAL CARE,SUPREME CARE SERVICES LTD,767.80,PHY LTS 65+,HOMECARE - C&V,2103156485,1000059416,
04.11.2020,ADULT SOCIAL CARE,SUPREME CARE SERVICES LTD,768.00,PHY LTS 65+,HOMECARE - C&V,2103167713,1000059416,
04.11.2020,ADULT SOCIAL CARE,SUPREME CARE SERVICES LTD,772.33,PHY LTS 65+,HOMECARE - C&V,2103158457,1000059416,
04.11.2020,ADULT SOCIAL CARE,SUPREME CARE SERVICES LTD,772.36,PHY LTS 65+,HOMECARE - C&V,2103167487,1000059416,
04.11.2020,ADULT SOCIAL CARE,SUPREME CARE SERVICES LTD,772.82,PHY LTS 65+,HOMECARE - C&V,2103158712,1000059416,
04.11.2020,ADULT SOCIAL CARE,SUPREME CARE SERVICES LTD,775.76,PHY LTS 65+,HOMECARE - C&V,2103158468,1000059416,
04.11.2020,ADULT SOCIAL CARE,SUPREME CARE SERVICES LTD,776.71,PHY LTS 65+,HOMECARE - C&V,2103168316,1000059416,
04.11.2020,ADULT SOCIAL CARE,SUPREME CARE SERVICES LTD,776.72,PHY LTS 65+,HOMECARE - C&V,2103167564,1000059416,
04.11.2020,ADULT SOCIAL CARE,SUPREME CARE SERVICES LTD,780.22,PHY LTS 65+,HOMECARE - C&V,2103164518,1000059416,
04.11.2020,ADULT SOCIAL CARE,SUPREME CARE SERVICES LTD,780.23,PHY LTS 65+,HOMECARE - C&V,2103158686,1000059416,
04.11.2020,ADULT SOCIAL CARE,SUPREME CARE SERVICES LTD,780.77,PHY LTS 65+,HOMECARE - C&V,2103168553,1000059416,
04.11.2020,ADULT SOCIAL CARE,SUPREME CARE SERVICES LTD,784.48,PHY LTS 65+,HOMECARE - C&V,2103164829,1000059416,
04.11.2020,ADULT SOCIAL CARE,SUPREME CARE SERVICES LTD,785.44,PHY LTS 65+,HOMECARE - C&V,2103158420,1000059416,
04.11.2020,ADULT SOCIAL CARE,SUPREME CARE SERVICES LTD,785.44,PHY LTS 65+,HOMECARE - C&V,2103167683,1000059416,
04.11.2020,ADULT SOCIAL CARE,SUPREME CARE SERVICES LTD,785.44,PHY LTS 65+,HOMECARE - C&V,2103168142,1000059416,
04.11.2020,ADULT SOCIAL CARE,SUPREME CARE SERVICES LTD,785.44,PHY LTS 65+,HOMECARE - C&V,2103168388,1000059416,
04.11.2020,ADULT SOCIAL CARE,SUPREME CARE SERVICES LTD,785.46,PHY LTS 65+,HOMECARE - C&V,2103168629,1000059416,
04.11.2020,ADULT SOCIAL CARE,SUPREME CARE SERVICES LTD,785.57,PHY LTS 65+,HOMECARE - C&V,2103167596,1000059416,
04.11.2020,ADULT SOCIAL CARE,SUPREME CARE SERVICES LTD,786.01,PHY LTS 65+,HOMECARE - C&V,2103164791,1000059416,
04.11.2020,ADULT SOCIAL CARE,SUPREME CARE SERVICES LTD,790.00,PHY LTS 65+,HOMECARE - C&V,2103167734,1000059416,
04.11.2020,ADULT SOCIAL CARE,SUPREME CARE SERVICES LTD,792.82,PHY LTS 65+,HOMECARE - C&V,2103164693,1000059416,
04.11.2020,ADULT SOCIAL CARE,SUPREME CARE SERVICES LTD,793.22,PHY LTS 65+,HOMECARE - C&V,2103167877,1000059416,
04.11.2020,ADULT SOCIAL CARE,SUPREME CARE SERVICES LTD,794.16,PHY LTS 65+,HOMECARE - C&V,2103168245,1000059416,
04.11.2020,ADULT SOCIAL CARE,SUPREME CARE SERVICES LTD,794.17,PHY LTS 65+,HOMECARE - C&V,2103167773,1000059416,
04.11.2020,ADULT SOCIAL CARE,SUPREME CARE SERVICES LTD,797.47,PHY LTS 65+,HOMECARE - C&V,2103164839,1000059416,
04.11.2020,ADULT SOCIAL CARE,SUPREME CARE SERVICES LTD,797.50,PHY LTS 65+,HOMECARE - C&V,2103164581,1000059416,
04.11.2020,ADULT SOCIAL CARE,SUPREME CARE SERVICES LTD,798.03,PHY LTS 65+,HOMECARE - C&V,2103168468,1000059416,
04.11.2020,ADULT SOCIAL CARE,SUPREME CARE SERVICES LTD,798.64,PHY LTS 65+,HOMECARE - C&V,2103158650,1000059416,
04.11.2020,ADULT SOCIAL CARE,SUPREME CARE SERVICES LTD,801.25,PHY LTS 65+,HOMECARE - C&V,2103168425,1000059416,
04.11.2020,ADULT SOCIAL CARE,SUPREME CARE SERVICES LTD,802.72,PHY LTS 65+,HOMECARE - C&V,2103156589,1000059416,
04.11.2020,ADULT SOCIAL CARE,SUPREME CARE SERVICES LTD,803.03,PHY LTS 65+,HOMECARE - C&V,2103167425,1000059416,
04.11.2020,ADULT SOCIAL CARE,SUPREME CARE SERVICES LTD,803.03,PHY LTS 65+,HOMECARE - C&V,2103167628,1000059416,
04.11.2020,ADULT SOCIAL CARE,SUPREME CARE SERVICES LTD,803.09,PHY LTS 65+,HOMECARE - C&V,2103167794,1000059416,
04.11.2020,ADULT SOCIAL CARE,SUPREME CARE SERVICES LTD,803.09,PHY LTS 65+,HOMECARE - C&V,2103168675,1000059416,
04.11.2020,ADULT SOCIAL CARE,SUPREME CARE SERVICES LTD,805.61,PHY LTS 65+,HOMECARE - C&V,2103167836,1000059416,
04.11.2020,ADULT SOCIAL CARE,SUPREME CARE SERVICES LTD,805.69,PHY LTS 65+,HOMECARE - C&V,2103164764,1000059416,
04.11.2020,ADULT SOCIAL CARE,SUPREME CARE SERVICES LTD,807.35,PHY LTS 65+,HOMECARE - C&V,2103168372,1000059416,
04.11.2020,ADULT SOCIAL CARE,SUPREME CARE SERVICES LTD,811.60,PHY LTS 65+,HOMECARE - C&V,2103167603,1000059416,
04.11.2020,ADULT SOCIAL CARE,SUPREME CARE SERVICES LTD,814.46,PHY LTS 65+,HOMECARE - C&V,2103158566,1000059416,
04.11.2020,ADULT SOCIAL CARE,SUPREME CARE SERVICES LTD,814.51,PHY LTS 65+,HOMECARE - C&V,2103167988,1000059416,
04.11.2020,ADULT SOCIAL CARE,SUPREME CARE SERVICES LTD,816.00,PHY LTS 65+,HOMECARE - C&V,2103168054,1000059416,
04.11.2020,ADULT SOCIAL CARE,SUPREME CARE SERVICES LTD,816.10,PHY LTS 65+,HOMECARE - C&V,2103168004,1000059416,
04.11.2020,ADULT SOCIAL CARE,SUPREME CARE SERVICES LTD,816.10,PHY LTS 65+,HOMECARE - C&V,2103168089,1000059416,
04.11.2020,ADULT SOCIAL CARE,SUPREME CARE SERVICES LTD,816.10,PHY LTS 65+,HOMECARE - C&V,2103168733,1000059416,
04.11.2020,ADULT SOCIAL CARE,SUPREME CARE SERVICES LTD,816.12,PHY LTS 65+,HOMECARE - C&V,2103158347,1000059416,
04.11.2020,ADULT SOCIAL CARE,SUPREME CARE SERVICES LTD,818.44,PHY LTS 65+,HOMECARE - C&V,2103167441,1000059416,
04.11.2020,ADULT SOCIAL CARE,SUPREME CARE SERVICES LTD,818.44,PHY LTS 65+,HOMECARE - C&V,2103168005,1000059416,
04.11.2020,ADULT SOCIAL CARE,SUPREME CARE SERVICES LTD,818.44,PHY LTS 65+,HOMECARE - C&V,2103168322,1000059416,
04.11.2020,ADULT SOCIAL CARE,SUPREME CARE SERVICES LTD,818.44,PHY LTS 65+,HOMECARE - C&V,2103168472,1000059416,
04.11.2020,ADULT SOCIAL CARE,SUPREME CARE SERVICES LTD,820.28,PHY LTS 65+,HOMECARE - C&V,2103168244,1000059416,
04.11.2020,ADULT SOCIAL CARE,SUPREME CARE SERVICES LTD,820.32,PHY LTS 65+,HOMECARE - C&V,2103167966,1000059416,
04.11.2020,ADULT SOCIAL CARE,SUPREME CARE SERVICES LTD,820.46,PHY LTS 65+,HOMECARE - C&V,2103167619,1000059416,
04.11.2020,ADULT SOCIAL CARE,SUPREME CARE SERVICES LTD,823.81,PHY LTS 65+,HOMECARE - C&V,2103164655,1000059416,
04.11.2020,ADULT SOCIAL CARE,SUPREME CARE SERVICES LTD,824.68,PHY LTS 65+,HOMECARE - C&V,2103168607,1000059416,
04.11.2020,ADULT SOCIAL CARE,SUPREME CARE SERVICES LTD,824.86,PHY LTS 65+,HOMECARE - C&V,2103167481,1000059416,
04.11.2020,ADULT SOCIAL CARE,SUPREME CARE SERVICES LTD,824.89,PHY LTS 65+,HOMECARE - C&V,2103168097,1000059416,
04.11.2020,ADULT SOCIAL CARE,SUPREME CARE SERVICES LTD,826.50,PHY LTS 65+,HOMECARE - C&V,2103167991,1000059416,
04.11.2020,ADULT SOCIAL CARE,SUPREME CARE SERVICES LTD,827.49,PHY LTS 65+,HOMECARE - C&V,2103164862,1000059416,
04.11.2020,ADULT SOCIAL CARE,SUPREME CARE SERVICES LTD,829.11,PHY LTS 65+,HOMECARE - C&V,2103168041,1000059416,
04.11.2020,ADULT SOCIAL CARE,SUPREME CARE SERVICES LTD,829.21,PHY LTS 65+,HOMECARE - C&V,2103158414,1000059416,
04.11.2020,ADULT SOCIAL CARE,SUPREME CARE SERVICES LTD,831.31,PHY LTS 65+,HOMECARE - C&V,2103164554,1000059416,
04.11.2020,ADULT SOCIAL CARE,SUPREME CARE SERVICES LTD,831.33,PHY LTS 65+,HOMECARE - C&V,2103164641,1000059416,
04.11.2020,ADULT SOCIAL CARE,SUPREME CARE SERVICES LTD,831.49,PHY LTS 65+,HOMECARE - C&V,2103158402,1000059416,
04.11.2020,ADULT SOCIAL CARE,SUPREME CARE SERVICES LTD,834.18,PHY LTS 65+,HOMECARE - C&V,2103164710,1000059416,
04.11.2020,ADULT SOCIAL CARE,SUPREME CARE SERVICES LTD,834.79,PHY LTS 65+,HOMECARE - C&V,2103164537,1000059416,
04.11.2020,ADULT SOCIAL CARE,SUPREME CARE SERVICES LTD,837.76,PHY LTS 65+,HOMECARE - C&V,2103167343,1000059416,
04.11.2020,ADULT SOCIAL CARE,SUPREME CARE SERVICES LTD,839.13,PHY LTS 65+,HOMECARE - C&V,2103167640,1000059416,
04.11.2020,ADULT SOCIAL CARE,SUPREME CARE SERVICES LTD,839.22,PHY LTS 65+,HOMECARE - C&V,2103167615,1000059416,
04.11.2020,ADULT SOCIAL CARE,SUPREME CARE SERVICES LTD,839.32,PHY LTS 65+,HOMECARE - C&V,2103158471,1000059416,
04.11.2020,ADULT SOCIAL CARE,SUPREME CARE SERVICES LTD,839.32,PHY LTS 65+,HOMECARE - C&V,2103167905,1000059416,
04.11.2020,ADULT SOCIAL CARE,SUPREME CARE SERVICES LTD,839.32,PHY LTS 65+,HOMECARE - C&V,2103168770,1000059416,
04.11.2020,ADULT SOCIAL CARE,SUPREME CARE SERVICES LTD,839.41,PHY LTS 65+,HOMECARE - C&V,2103168056,1000059416,
04.11.2020,ADULT SOCIAL CARE,SUPREME CARE SERVICES LTD,839.78,PHY LTS 65+,HOMECARE - C&V,2103158588,1000059416,
04.11.2020,ADULT SOCIAL CARE,SUPREME CARE SERVICES LTD,839.87,PHY LTS 65+,HOMECARE - C&V,2103167370,1000059416,
04.11.2020,ADULT SOCIAL CARE,SUPREME CARE SERVICES LTD,840.06,PHY LTS 65+,HOMECARE - C&V,2103158399,1000059416,
04.11.2020,ADULT SOCIAL CARE,SUPREME CARE SERVICES LTD,840.06,PHY LTS 65+,HOMECARE - C&V,2103164896,1000059416,
04.11.2020,ADULT SOCIAL CARE,SUPREME CARE SERVICES LTD,842.12,PHY LTS 65+,HOMECARE - C&V,2103158371,1000059416,
04.11.2020,ADULT SOCIAL CARE,SUPREME CARE SERVICES LTD,842.12,PHY LTS 65+,HOMECARE - C&V,2103167959,1000059416,
04.11.2020,ADULT SOCIAL CARE,SUPREME CARE SERVICES LTD,842.33,PHY LTS 65+,HOMECARE - C&V,2103168567,1000059416,
04.11.2020,ADULT SOCIAL CARE,SUPREME CARE SERVICES LTD,843.49,PHY LTS 65+,HOMECARE - C&V,2103167434,1000059416,
04.11.2020,ADULT SOCIAL CARE,SUPREME CARE SERVICES LTD,843.49,PHY LTS 65+,HOMECARE - C&V,2103168184,1000059416,
04.11.2020,ADULT SOCIAL CARE,SUPREME CARE SERVICES LTD,846.41,PHY LTS 65+,HOMECARE - C&V,2103167448,1000059416,
04.11.2020,ADULT SOCIAL CARE,SUPREME CARE SERVICES LTD,846.48,PHY LTS 65+,HOMECARE - C&V,2103168079,1000059416,
04.11.2020,ADULT SOCIAL CARE,SUPREME CARE SERVICES LTD,846.67,PHY LTS 65+,HOMECARE - C&V,2103168426,1000059416,
04.11.2020,ADULT SOCIAL CARE,SUPREME CARE SERVICES LTD,846.70,PHY LTS 65+,HOMECARE - C&V,2103158601,1000059416,
04.11.2020,ADULT SOCIAL CARE,SUPREME CARE SERVICES LTD,847.67,PHY LTS 65+,HOMECARE - C&V,2103164621,1000059416,
04.11.2020,ADULT SOCIAL CARE,SUPREME CARE SERVICES LTD,850.99,PHY LTS 65+,HOMECARE - C&V,2103168417,1000059416,
04.11.2020,ADULT SOCIAL CARE,SUPREME CARE SERVICES LTD,851.01,PHY LTS 65+,HOMECARE - C&V,2103158394,1000059416,
04.11.2020,ADULT SOCIAL CARE,SUPREME CARE SERVICES LTD,851.01,PHY LTS 65+,HOMECARE - C&V,2103167883,1000059416,
04.11.2020,ADULT SOCIAL CARE,SUPREME CARE SERVICES LTD,851.65,PHY LTS 65+,HOMECARE - C&V,2103164586,1000059416,
04.11.2020,ADULT SOCIAL CARE,SUPREME CARE SERVICES LTD,852.82,PHY LTS 65+,HOMECARE - C&V,2103164877,1000059416,
04.11.2020,ADULT SOCIAL CARE,SUPREME CARE SERVICES LTD,852.92,PHY LTS 65+,HOMECARE - C&V,2103164592,1000059416,
04.11.2020,ADULT SOCIAL CARE,SUPREME CARE SERVICES LTD,855.04,PHY LTS 65+,HOMECARE - C&V,2103156484,1000059416,
04.11.2020,ADULT SOCIAL CARE,SUPREME CARE SERVICES LTD,855.04,PHY LTS 65+,HOMECARE - C&V,2103156545,1000059416,
04.11.2020,ADULT SOCIAL CARE,SUPREME CARE SERVICES LTD,855.04,PHY LTS 65+,HOMECARE - C&V,2103156547,1000059416,
04.11.2020,ADULT SOCIAL CARE,SUPREME CARE SERVICES LTD,855.04,PHY LTS 65+,HOMECARE - C&V,2103166014,1000059416,
04.11.2020,ADULT SOCIAL CARE,SUPREME CARE SERVICES LTD,855.40,PHY LTS 65+,HOMECARE - C&V,2103158692,1000059416,
04.11.2020,ADULT SOCIAL CARE,SUPREME CARE SERVICES LTD,855.40,PHY LTS 65+,HOMECARE - C&V,2103167329,1000059416,
04.11.2020,ADULT SOCIAL CARE,SUPREME CARE SERVICES LTD,855.40,PHY LTS 65+,HOMECARE - C&V,2103167583,1000059416,
04.11.2020,ADULT SOCIAL CARE,SUPREME CARE SERVICES LTD,855.40,PHY LTS 65+,HOMECARE - C&V,2103167843,1000059416,
04.11.2020,ADULT SOCIAL CARE,SUPREME CARE SERVICES LTD,855.40,PHY LTS 65+,HOMECARE - C&V,2103167981,1000059416,
04.11.2020,ADULT SOCIAL CARE,SUPREME CARE SERVICES LTD,855.40,PHY LTS 65+,HOMECARE - C&V,2103168168,1000059416,
04.11.2020,ADULT SOCIAL CARE,SUPREME CARE SERVICES LTD,855.40,PHY LTS 65+,HOMECARE - C&V,2103168299,1000059416,
04.11.2020,ADULT SOCIAL CARE,SUPREME CARE SERVICES LTD,855.40,PHY LTS 65+,HOMECARE - C&V,2103168796,1000059416,
04.11.2020,ADULT SOCIAL CARE,SUPREME CARE SERVICES LTD,855.44,PHY LTS 65+,HOMECARE - C&V,2103158508,1000059416,
04.11.2020,ADULT SOCIAL CARE,SUPREME CARE SERVICES LTD,855.44,PHY LTS 65+,HOMECARE - C&V,2103168046,1000059416,
04.11.2020,ADULT SOCIAL CARE,SUPREME CARE SERVICES LTD,858.78,PHY LTS 65+,HOMECARE - C&V,2103156579,1000059416,
04.11.2020,ADULT SOCIAL CARE,SUPREME CARE SERVICES LTD,859.40,PHY LTS 65+,HOMECARE - C&V,2103156521,1000059416,
04.11.2020,ADULT SOCIAL CARE,SUPREME CARE SERVICES LTD,859.51,PHY LTS 65+,HOMECARE - C&V,2103167922,1000059416,
04.11.2020,ADULT SOCIAL CARE,SUPREME CARE SERVICES LTD,859.76,PHY LTS 65+,HOMECARE - C&V,2103167704,1000059416,
04.11.2020,ADULT SOCIAL CARE,SUPREME CARE SERVICES LTD,860.20,PHY LTS 65+,HOMECARE - C&V,2103164623,1000059416,
04.11.2020,ADULT SOCIAL CARE,SUPREME CARE SERVICES LTD,861.20,PHY LTS 65+,HOMECARE - C&V,2103164627,1000059416,
04.11.2020,ADULT SOCIAL CARE,SUPREME CARE SERVICES LTD,864.09,PHY LTS 65+,HOMECARE - C&V,2103158602,1000059416,
04.11.2020,ADULT SOCIAL CARE,SUPREME CARE SERVICES LTD,864.12,PHY LTS 65+,HOMECARE - C&V,2103168424,1000059416,
04.11.2020,ADULT SOCIAL CARE,SUPREME CARE SERVICES LTD,864.16,PHY LTS 65+,HOMECARE - C&V,2103168359,1000059416,
04.11.2020,ADULT SOCIAL CARE,SUPREME CARE SERVICES LTD,864.17,PHY LTS 65+,HOMECARE - C&V,2103167648,1000059416,
04.11.2020,ADULT SOCIAL CARE,SUPREME CARE SERVICES LTD,868.49,PHY LTS 65+,HOMECARE - C&V,2103168140,1000059416,
04.11.2020,ADULT SOCIAL CARE,SUPREME CARE SERVICES LTD,868.51,PHY LTS 65+,HOMECARE - C&V,2103158607,1000059416,
04.11.2020,ADULT SOCIAL CARE,SUPREME CARE SERVICES LTD,872.52,PHY LTS 65+,HOMECARE - C&V,2103156592,1000059416,
04.11.2020,ADULT SOCIAL CARE,SUPREME CARE SERVICES LTD,872.52,PHY LTS 65+,HOMECARE - C&V,2103166033,1000059416,
04.11.2020,ADULT SOCIAL CARE,SUPREME CARE SERVICES LTD,872.55,PHY LTS 65+,HOMECARE - C&V,2103167784,1000059416,
04.11.2020,ADULT SOCIAL CARE,SUPREME CARE SERVICES LTD,872.72,PHY LTS 65+,HOMECARE - C&V,2103168307,1000059416,
04.11.2020,ADULT SOCIAL CARE,SUPREME CARE SERVICES LTD,872.84,PHY LTS 65+,HOMECARE - C&V,2103168340,1000059416,
04.11.2020,ADULT SOCIAL CARE,SUPREME CARE SERVICES LTD,872.92,PHY LTS 65+,HOMECARE - C&V,2103167456,1000059416,
04.11.2020,ADULT SOCIAL CARE,SUPREME CARE SERVICES LTD,876.92,PHY LTS 65+,HOMECARE - C&V,2103158474,1000059416,
04.11.2020,ADULT SOCIAL CARE,SUPREME CARE SERVICES LTD,877.19,PHY LTS 65+,HOMECARE - C&V,2103167875,1000059416,
04.11.2020,ADULT SOCIAL CARE,SUPREME CARE SERVICES LTD,877.28,PHY LTS 65+,HOMECARE - C&V,2103168705,1000059416,
04.11.2020,ADULT SOCIAL CARE,SUPREME CARE SERVICES LTD,878.40,PHY LTS 65+,HOMECARE - C&V,2103164717,1000059416,
04.11.2020,ADULT SOCIAL CARE,SUPREME CARE SERVICES LTD,885.92,PHY LTS 65+,HOMECARE - C&V,2103168623,1000059416,
04.11.2020,ADULT SOCIAL CARE,SUPREME CARE SERVICES LTD,886.00,PHY LTS 65+,HOMECARE - C&V,2103167739,1000059416,
04.11.2020,ADULT SOCIAL CARE,SUPREME CARE SERVICES LTD,886.00,PHY LTS 65+,HOMECARE - C&V,2103168298,1000059416,
04.11.2020,ADULT SOCIAL CARE,SUPREME CARE SERVICES LTD,886.92,PHY LTS 65+,HOMECARE - C&V,2103158544,1000059416,
04.11.2020,ADULT SOCIAL CARE,SUPREME CARE SERVICES LTD,888.05,PHY LTS 65+,HOMECARE - C&V,2103164761,1000059416,
04.11.2020,ADULT SOCIAL CARE,SUPREME CARE SERVICES LTD,890.27,PHY LTS 65+,HOMECARE - C&V,2103167451,1000059416,
04.11.2020,ADULT SOCIAL CARE,SUPREME CARE SERVICES LTD,894.31,PHY LTS 65+,HOMECARE - C&V,2103156554,1000059416,
04.11.2020,ADULT SOCIAL CARE,SUPREME CARE SERVICES LTD,894.65,PHY LTS 65+,HOMECARE - C&V,2103158598,1000059416,
04.11.2020,ADULT SOCIAL CARE,SUPREME CARE SERVICES LTD,894.72,PHY LTS 65+,HOMECARE - C&V,2103158392,1000059416,
04.11.2020,ADULT SOCIAL CARE,SUPREME CARE SERVICES LTD,895.43,PHY LTS 65+,HOMECARE - C&V,2103164753,1000059416,
04.11.2020,ADULT SOCIAL CARE,SUPREME CARE SERVICES LTD,899.00,PHY LTS 65+,HOMECARE - C&V,2103168786,1000059416,
04.11.2020,ADULT SOCIAL CARE,SUPREME CARE SERVICES LTD,903.89,PHY LTS 65+,HOMECARE - C&V,2103158505,1000059416,
04.11.2020,ADULT SOCIAL CARE,SUPREME CARE SERVICES LTD,904.00,PHY LTS 65+,HOMECARE - C&V,2103158441,1000059416,
04.11.2020,ADULT SOCIAL CARE,SUPREME CARE SERVICES LTD,906.13,PHY LTS 65+,HOMECARE - C&V,2103168362,1000059416,
04.11.2020,ADULT SOCIAL CARE,SUPREME CARE SERVICES LTD,907.72,PHY LTS 65+,HOMECARE - C&V,2103167364,1000059416,
04.11.2020,ADULT SOCIAL CARE,SUPREME CARE SERVICES LTD,907.72,PHY LTS 65+,HOMECARE - C&V,2103168418,1000059416,
04.11.2020,ADULT SOCIAL CARE,SUPREME CARE SERVICES LTD,909.80,PHY LTS 65+,HOMECARE - C&V,2103164582,1000059416,
04.11.2020,ADULT SOCIAL CARE,SUPREME CARE SERVICES LTD,910.29,PHY LTS 65+,HOMECARE - C&V,2103167561,1000059416,
04.11.2020,ADULT SOCIAL CARE,SUPREME CARE SERVICES LTD,911.76,PHY LTS 65+,HOMECARE - C&V,2103156556,1000059416,
04.11.2020,ADULT SOCIAL CARE,SUPREME CARE SERVICES LTD,912.08,PHY LTS 65+,HOMECARE - C&V,2103168486,1000059416,
04.11.2020,ADULT SOCIAL CARE,SUPREME CARE SERVICES LTD,916.52,PHY LTS 65+,HOMECARE - C&V,2103167776,1000059416,
04.11.2020,ADULT SOCIAL CARE,SUPREME CARE SERVICES LTD,916.96,PHY LTS 65+,HOMECARE - C&V,2103167756,1000059416,
04.11.2020,ADULT SOCIAL CARE,SUPREME CARE SERVICES LTD,918.57,PHY LTS 65+,HOMECARE - C&V,2103168401,1000059416,
04.11.2020,ADULT SOCIAL CARE,SUPREME CARE SERVICES LTD,921.43,PHY LTS 65+,HOMECARE - C&V,2103158496,1000059416,
04.11.2020,ADULT SOCIAL CARE,SUPREME CARE SERVICES LTD,922.82,PHY LTS 65+,HOMECARE - C&V,2103168135,1000059416,
04.11.2020,ADULT SOCIAL CARE,SUPREME CARE SERVICES LTD,924.84,PHY LTS 65+,HOMECARE - C&V,2103156510,1000059416,
04.11.2020,ADULT SOCIAL CARE,SUPREME CARE SERVICES LTD,924.84,PHY LTS 65+,HOMECARE - C&V,2103165962,1000059416,
04.11.2020,ADULT SOCIAL CARE,SUPREME CARE SERVICES LTD,924.84,PHY LTS 65+,HOMECARE - C&V,2103165973,1000059416,
04.11.2020,ADULT SOCIAL CARE,SUPREME CARE SERVICES LTD,924.84,PHY LTS 65+,HOMECARE - C&V,2103166002,1000059416,
04.11.2020,ADULT SOCIAL CARE,SUPREME CARE SERVICES LTD,926.50,PHY LTS 65+,HOMECARE - C&V,2103164522,1000059416,
04.11.2020,ADULT SOCIAL CARE,SUPREME CARE SERVICES LTD,927.00,PHY LTS 65+,HOMECARE - C&V,2103168592,1000059416,
04.11.2020,ADULT SOCIAL CARE,SUPREME CARE SERVICES LTD,927.04,PHY LTS 65+,HOMECARE - C&V,2103167609,1000059416,
04.11.2020,ADULT SOCIAL CARE,SUPREME CARE SERVICES LTD,929.55,PHY LTS 65+,HOMECARE - C&V,2103164752,1000059416,
04.11.2020,ADULT SOCIAL CARE,SUPREME CARE SERVICES LTD,929.57,PHY LTS 65+,HOMECARE - C&V,2103167641,1000059416,
04.11.2020,ADULT SOCIAL CARE,SUPREME CARE SERVICES LTD,931.17,PHY LTS 65+,HOMECARE - C&V,2103164678,1000059416,
04.11.2020,ADULT SOCIAL CARE,SUPREME CARE SERVICES LTD,931.17,PHY LTS 65+,HOMECARE - C&V,2103167761,1000059416,
04.11.2020,ADULT SOCIAL CARE,SUPREME CARE SERVICES LTD,933.92,PHY LTS 65+,HOMECARE - C&V,2103158531,1000059416,
04.11.2020,ADULT SOCIAL CARE,SUPREME CARE SERVICES LTD,938.27,PHY LTS 65+,HOMECARE - C&V,2103158356,1000059416,
04.11.2020,ADULT SOCIAL CARE,SUPREME CARE SERVICES LTD,938.27,PHY LTS 65+,HOMECARE - C&V,2103168246,1000059416,
04.11.2020,ADULT SOCIAL CARE,SUPREME CARE SERVICES LTD,938.57,PHY LTS 65+,HOMECARE - C&V,2103164647,1000059416,
04.11.2020,ADULT SOCIAL CARE,SUPREME CARE SERVICES LTD,939.52,PHY LTS 65+,HOMECARE - C&V,2103167752,1000059416,
04.11.2020,ADULT SOCIAL CARE,SUPREME CARE SERVICES LTD,947.01,PHY LTS 65+,HOMECARE - C&V,2103167529,1000059416,
